Workbook

Sheet LA Sheets
B2: 2018/19 Quarterly Planning Performance Statistics
B3: Quarter 3
B4: Published 23rd July 2019
B6: SCOTLAND
B7: Aberdeen City
B8: Aberdeenshire
B9: Angus
B10: Argyll and Bute
B11: Cairngorms National Park
B12: Clackmannanshire
B13: Dumfries and Galloway
B14: Dundee City
B15: East Ayrshire
B16: East Dunbartonshire
B17: East Lothian
B18: East Renfrewshire
B19: City of Edinburgh
B20: Falkirk
B21: Fife
B22: Glasgow City
B23: Highland
B24: Inverclyde
B25: Loch Lomond and The Trossachs National Park
B26: Midlothian
B27: Moray
B28: Na h-Eileanan Siar
B29: North Ayrshire
B30: North Lanarkshire
B31: Orkney Islands
B32: Perth and Kinross
B33: Renfrewshire
B34: Scottish Borders
B35: Shetland Islands
B36: South Ayrshire
B37: South Lanarkshire
B38: Stirling
B39: West Dunbartonshire
B40: West Lothian
B42: Notes
B43: Cairngorms Statement
B44: Summary Data
B45: Legacy Cases
B46: Clock Stops by Planning Authority

Sheet NOTES
O1: Return to Contents

Sheet Cairngorms Statement
M1: Return to Contents

Sheet Summary Data
A1: Summary Comparisons1
P2: Return to Contents
A3: Local Developments (excluding legacy cases)
B4: Post 3 August 2009 | M4: Return To Contents
B5: Q3 - 2018/19 | E5: Q2 - 2018/19 | G5: Q1 - 2018/19 | I5: Q4 - 2017/18 | K5: Q3 - 2017/18 | M5: Q2 - 2017/18
B6: Applications | C6: Overall Average (Weeks) | D6: Percentage under 2 months | E6: Overall Average (Weeks) | F6: Percentage under 2 months | G6: Overall Average (Weeks) | H6: Percentage under 2 months | I6: Overall Average (Weeks) | J6: Percentage under 2 months | K6: Overall Average (Weeks) | L6: Percentage under 2 months | M6: Overall Average (Weeks) | N6: Percentage under 2 months
A7: All Local Developments2 | B7: 6155 | C7: 8.839039109 | D7: 0.7681559708 | E7: 8.826573942 | F7: 0.7570518653 | G7: 8.9026318 | H7: 0.7545615068 | I7: 9.32840078 | J7: 0.7255972696 | K7: 9.098541739 | L7: 0.716992665 | M7: 8.973781365 | N7: 0.7427361659
A8: Householder | B8: 3044 | C8: 6.957433828 | D8: 0.8810775296 | E8: 7.243142684 | F8: 0.8612961841 | G8: 7.212238991 | H8: 0.8593342981 | I8: 7.622048459 | J8: 0.8271516024 | K8: 7.345423383 | L8: 0.829766537 | M8: 7.206294425 | N8: 0.8748921484
A9: Housing | B9: 1169 | C9: 12.25186362 | D9: 0.5979469632 | E9: 12.06613982 | F9: 0.5812765957 | G9: 11.97578098 | H9: 0.5651105651 | I9: 11.96087516 | J9: 0.5882882883 | K9: 11.70414062 | L9: 0.5425268373 | M9: 12.78391259 | N9: 0.5101708706
A10: Business and Industry | B10: 372 | C10: 9.21390169 | D10: 0.7016129032 | E10: 8.969730528 | F10: 0.7002583979 | G10: 8.571786609 | H10: 0.7593984962 | I10: 9.467138922 | J10: 0.7024793388 | K10: 10.18305815 | L10: 0.6733668342 | M10: 8.938095238 | N10: 0.7025641026
A12: Major Developments (excluding legacy cases)
B13: Post 3 August 2009
B14: Q3 - 2018/19 | D14: Q2 - 2018/19 | F14: Q1 - 2018/19 | H14: Q4 - 2017/18 | J14: Q3 - 2017/18 | L14: Q2 - 2017/18
B15: Applications | C15: Overall Average (Weeks) | D15: Applications | E15: Overall Average (Weeks) | F15: Applications | G15: Overall Average (Weeks) | H15: Applications | I15: Overall Average (Weeks) | J15: Applications | K15: Overall Average (Weeks) | L15: Applications | M15: Overall Average (Weeks)
A16: All Major developments2 | B16: 58 | C16: 26.45566502 | D16: 57 | E16: 37.71929825 | F16: 54 | G16: 31.74074074 | H16: 63 | I16: 34.7755102 | J16: 63 | K16: 27.67346939 | L16: 57 | M16: 32.8
A17: Housing | B17: 28 | C17: 30.0255102 | D17: 28 | E17: 39.00510204 | F17: 24 | G17: 34.64285714 | H17: 33 | I17: 38.11255411 | J17: 31 | K17: 33.81105991 | L17: 22 | M17: 36.4025974
A18: Business and Industry | B18: 8 | C18: 13.375 | D18: 2 | E18: 12.57142857 | F18: 8 | G18: 24.35714286 | H18: 7 | I18: 21.51020408 | J18: 6 | K18: 33.97619048 | L18: 0 | M18: 0
A21: Legal Agreements Comparison3
B22: Post 3 August 2009
B23: Q3 - 2018/19 | E23: Q2 - 2018/19 | H23: Q1 - 2018/19 | K23: Q4 - 2017/18 | N23: Q3 - 2017/18 | Q23: Q2 - 2017/18
B24: Without Legal Agreements (weeks) | C24: With Legal Agreement (weeks) | D24: Overall Average (Weeks) | E24: Without Legal Agreements (weeks) | F24: With Legal Agreement (weeks) | G24: Overall Average (Weeks) | H24: Without Legal Agreements (weeks) | I24: With Legal Agreement (weeks) | J24: Overall Average (Weeks) | K24: Without Legal Agreements (weeks) | L24: With Legal Agreement (weeks) | M24: Overall Average (Weeks) | N24: Without Legal Agreements (weeks) | O24: With Legal Agreement (weeks) | P24: Overall Average (Weeks) | Q24: Without Legal Agreements (weeks) | R24: With Legal Agreement (weeks) | S24: Overall Average (Weeks)
A25: All Local4 | B25: 8.436212734 | C25: 39.82097649 | D25: 8.839039109 | E25: 8.567620215 | F25: 34.0533049 | G25: 8.826573942 | H25: 8.668557829 | I25: 30.45988258 | J25: 8.9026318 | K25: 8.916502085 | L25: 32.138833 | M25: 9.167039312 | N25: 9.01324536 | O25: 32.39059675 | P25: 9.32840078 | Q25: 8.959819363 | R25: 24.34624697 | S25: 9.098541739
A26: All Major | B26: 19.65357143 | C26: 41.57142857 | D26: 26.45566502 | E26: 27.70383275 | F26: 63.38392857 | G26: 37.71929825 | H26: 19.68571429 | I26: 46.80952381 | J26: 31.74074074 | K26: 25.58008658 | L26: 44.16326531 | M26: 34.11007026 | N26: 26.06428571 | O26: 49.92546584 | P26: 34.7755102 | Q26: 20.51648352 | R26: 39.30357143 | S26: 27.67346939
A30: 1. Excludes Other Consents, Local developments with Environmental Impact Assessments, and applications with processing agreements.
A31: 2. Overall averages per quarter will be affected by the volumes of different case-types that happen to be decided on in that quarter.
A32: 3. Excludes legacy cases and applications with legal agreements that also had a processing agreement.
A33: 4. 2018/19 Q1/Q2 figures were revised on 23 July 2019.

Sheet Legacy Cases
A1: Legacy Cases (pre-3rd August 2009) | G1: 2018/19 Quarter 3 | I1: Return to Contents
A3: The following tables show details of applications that were validated pre-3rd August 2009 and so were originally subject to a previous reporting system.
A5: Legacy cases by planning authority - applications with processing agreements | E5: Legacy cases by development type - applications with processing agreements
A6: Local Authority | B6: Number of Legacy Cases | C6: % meeting agreed timescales | E6: Development Type | F6: Number of Legacy Cases | G6: % meeting agreed timescales
A7: None | B7: 0 | C7: - | E7: None | F7: 0 | G7: -
A9: Total | E9: Total
A11: Legacy cases by planning authority - applications without processing agreements | E11: Legacy cases by development type - applications without processing agreements
A12: Local Authority | B12: Number of Legacy Cases | C12: Average Decision Time (weeks) | E12: Development Type | F12: Number of Legacy Cases | G12: Average Decision Time (weeks)
A13: East Lothian1 | B13: 2 | C13: 59.14285714 | E13: Housing - Local1 | F13: 1 | G13: 299.2857143
A14: City of Edinburgh1 | B14: 1 | C14: 299.2857143 | E14: Other Developments - Major1 | F14: 1 | G14: 129.4285714
A15: Falkirk1 | B15: 1 | C15: 129.4285714 | E15: Other Developments - Local1 | F15: 1 | G15: 58
A16: Total | B16: 4 | C16: 136.75 | E16: Listed Building Consents1 | F16: 1 | G16: 60.28571429
E17: Total | F17: 4 | G17: 136.75
A19: 1. These legacy cases had time removed from the decision time calculation where delays were caused by the applicant or external consultees, outwith the planning authority’s control.

Sheet Clock Stops
A1: Clock Stops by Planning Authority1,2 | E1: 2018/19 Quarter 3
A3: Planning Authority | B3: Total applications decided in 2018/19 Q3 | C3: Number of applications with clock stopped | D3: Percentage of applications with clock stopped | E3: Average length of time clock stopped (weeks)
A4: Aberdeen City | B4: 188 | C4: 8 | D4: =IF(B4=0, "-",C4/B4) -> 0.04255319149 | E4: 38.25
A5: Aberdeenshire | B5: 489 | C5: 4 | D5: =IF(B5=0, "-",C5/B5) -> 0.0081799591 | E5: 3.892857143
A6: Angus | B6: 154 | D6: 0 | E6: 0
A7: Argyll and Bute | B7: 329 | C7: 16 | D7: 0.04863221884 | E7: 16.80357143
A8: Cairngorms National Park | B8: 1 | D8: 0 | E8: 0
A9: Clackmannanshire | B9: 63 | C9: 1 | D9: 0.01587301587 | E9: 3.142857143
A10: Dumfries and Galloway | B10: 296 | C10: 15 | D10: 0.05067567568 | E10: 31.26666667
A11: Dundee City | B11: 178 | C11: 7 | D11: 0.0393258427 | E11: 30.48979592
A12: East Ayrshire | B12: 125 | C12: 15 | D12: 0.12 | E12: 9
A13: East Dunbartonshire | B13: 193 | C13: 40 | D13: 0.207253886 | E13: 4.217857143
A14: East Lothian | B14: 295 | C14: 21 | D14: 0.07118644068 | E14: 7.571428571
A15: East Renfrewshire | B15: 159 | C15: 3 | D15: 0.01886792453 | E15: 17.57142857
A16: City of Edinburgh | B16: 755 | C16: 2 | D16: 0.002649006623 | E16: 148.0714286
A17: Falkirk | B17: 139 | C17: 5 | D17: 0.03597122302 | E17: 8.342857143
A18: Fife | B18: 395 | C18: 10 | D18: 0.0253164557 | E18: 5.214285714
A19: Glasgow City | B19: 661 | C19: 88 | D19: 0.1331316188 | E19: 10.35551948
A20: Highland | B20: 746 | C20: 35 | D20: 0.04691689008 | E20: 26.24897959
A21: Inverclyde | B21: 78 | C21: 5 | D21: 0.0641025641 | E21: 17.22857143
A22: Loch Lomond and The Trossachs National Park | B22: 72 | C22: 25 | D22: 0.3472222222 | E22: 16.72571429
A23: Midlothian | B23: 152 | C23: 12 | D23: 0.07894736842 | E23: 10.03571429
A24: Moray | B24: 157 | C24: 37 | D24: 0.2356687898 | E24: 8.482625483
A25: Na h-Eileanan Siar | B25: 99 | D25: 0 | E25: 0
A26: North Ayrshire | B26: 127 | C26: 6 | D26: 0.04724409449 | E26: 8.547619048
A27: North Lanarkshire | B27: 197 | C27: 4 | D27: 0.02030456853 | E27: 27.53571429
A28: Orkney Islands | B28: 115 | C28: 21 | D28: 0.1826086957 | E28: 7.666666667
A29: Perth and Kinross | B29: 415 | C29: 15 | D29: 0.03614457831 | E29: 14.9047619
A30: Renfrewshire | B30: 160 | C30: 18 | D30: 0.1125 | E30: 10.14285714
A31: Scottish Borders | B31: 192 | C31: 1 | D31: 0.005208333333 | E31: 3
A32: Shetland Islands | B32: 67 | C32: 10 | D32: 0.1492537313 | E32: 5.9
A33: South Ayrshire | B33: 216 | D33: 0 | E33: 0
A34: South Lanarkshire | B34: 350 | C34: 8 | D34: 0.02285714286 | E34: 30.05357143
A35: Stirling | B35: 196 | C35: 1 | D35: 0.005102040816 | E35: 23.42857143
A36: West Dunbartonshire | B36: 58 | C36: 17 | D36: 0.2931034483 | E36: 7.697478992
A37: West Lothian2 | B37: 196 | C37: 13 | D37: 0.06632653061 | E37: 16.8021978
A38: SCOTLAND | B38: 8013 | C38: =SUM(C4:C37) -> 463 | D38: 0.0577811057 | E38: 13.72292502
A39: 1. Processing Agreements are not included in this analysis.
A40: 2. Legacy cases are not included in this analysis

Sheet Glasgow Note (hidden)

Sheet Charts_data -Annual (hidden)
A1: Chart 5: Local Development Planning Applications - Number of decisions
C2: Number of decisions
A3: 2012/13 | B3: Q1 | C3: =#REF! -> 
B4: Q2 | C4: =#REF! -> 
B5: Q3 | C5: =#REF! -> 
B6: Q4 | C6: =#REF! -> 
A7: 2013/14 | B7: Q1 | C7: =#REF! -> 
B8: Q2 | C8: =#REF! -> 
B9: Q3 | C9: =#REF! -> 
B10: Q4 | C10: =#REF! -> 
A11: 2014/15 | B11: Q1 | C11: =#REF! -> 
B12: Q2 | C12: =#REF! -> 
B13: Q3 | C13: =#REF! -> 
B14: Q4 | C14: =#REF! -> 
A15: 2015/16 | B15: Q1 | C15: =#REF! -> 
B16: Q2 | C16: =#REF! -> 
B17: Q3 | C17: =#REF! -> 
B18: Q4 | C18: =#REF! -> 
A19: 2016/17 | B19: Q1 | C19: =#REF! -> 
B20: Q2 | C20: =#REF! -> 
B21: Q3 | C21: =#REF! -> 
B22: Q4 | C22: =#REF! -> 
A26: Chart 6: Local Development Planning Applications - Average decision time (weeks)
C27: Average decision time
A28: 2012/13 | B28: Q1 | C28: =#REF! -> 
B29: Q2 | C29: =#REF! -> 
B30: Q3 | C30: =#REF! -> 
B31: Q4 | C31: =#REF! -> 
A32: 2013/14 | B32: Q1 | C32: =#REF! -> 
B33: Q2 | C33: =#REF! -> 
B34: Q3 | C34: =#REF! -> 
B35: Q4 | C35: =#REF! -> 
A36: 2014/15 | B36: Q1 | C36: =#REF! -> 
B37: Q2 | C37: =#REF! -> 
B38: Q3 | C38: =#REF! -> 
B39: Q4 | C39: =#REF! -> 
A40: 2015/16 | B40: Q1 | C40: =#REF! -> 
B41: Q2 | C41: =#REF! -> 
B42: Q3 | C42: =#REF! -> 
B43: Q4 | C43: =#REF! -> 
A44: 2016/17 | B44: Q1 | C44: =#REF! -> 
B45: Q2 | C45: =#REF! -> 
B46: Q3 | C46: =#REF! -> 
B47: Q4 | C47: =#REF! -> 
A50: Chart 7: Major Development Planning Applications - Number of decisions
C51: Number of decisions
A52: 2012/13 | B52: Q1 | C52: =#REF! -> 
B53: Q2 | C53: =#REF! -> 
B54: Q3 | C54: =#REF! -> 
B55: Q4 | C55: =#REF! -> 
A56: 2013/14 | B56: Q1 | C56: =#REF! -> 
B57: Q2 | C57: =#REF! -> 
B58: Q3 | C58: =#REF! -> 
B59: Q4 | C59: =#REF! -> 
A60: 2014/15 | B60: Q1 | C60: =#REF! -> 
B61: Q2 | C61: =#REF! -> 
B62: Q3 | C62: =#REF! -> 
B63: Q4 | C63: =#REF! -> 
A64: 2015/16 | B64: Q1 | C64: =#REF! -> 
B65: Q2 | C65: =#REF! -> 
B66: Q3 | C66: =#REF! -> 
B67: Q4 | C67: =#REF! -> 
A68: 2016/17 | B68: Q1 | C68: =#REF! -> 
B69: Q2 | C69: =#REF! -> 
B70: Q3 | C70: =#REF! -> 
B71: Q4 | C71: =#REF! -> 
A74: Chart 8: Major Development Planning Applications - Average decision time (weeks
C75: Average decision time
A76: 2012/13 | B76: Q1 | C76: =#REF! -> 
B77: Q2 | C77: =#REF! -> 
B78: Q3 | C78: =#REF! -> 
B79: Q4 | C79: =#REF! -> 
A80: 2013/14 | B80: Q1 | C80: =#REF! -> 
B81: Q2 | C81: =#REF! -> 
B82: Q3 | C82: =#REF! -> 
B83: Q4 | C83: =#REF! -> 
A84: 2014/15 | B84: Q1 | C84: =#REF! -> 
B85: Q2 | C85: =#REF! -> 
B86: Q3 | C86: =#REF! -> 
B87: Q4 | C87: =#REF! -> 
A88: 2015/16 | B88: Q1 | C88: =#REF! -> 
B89: Q2 | C89: =#REF! -> 
B90: Q3 | C90: =#REF! -> 
B91: Q4 | C91: =#REF! -> 
A92: 2016/17 | B92: Q1 | C92: =#REF! -> 
B93: Q2 | C93: =#REF! -> 
B94: Q3 | C94: =#REF! -> 
B95: Q4 | C95: =#REF! -> 
A100: Chart 21: All Local Development Planning Applications - Number of decisions
A101: Year/ Quarter | C101: All Applications | D101: Post-August 2009
A102: 2012/13 | B102: Q1 | C102: =#REF! ->  | D102: =#REF! -> 
B103: Q2 | C103: =#REF! ->  | D103: =#REF! -> 
B104: Q3 | C104: =#REF! ->  | D104: =#REF! -> 
B105: Q4 | C105: =#REF! ->  | D105: =#REF! -> 
A106: 2013/14 | B106: Q1 | C106: =#REF! ->  | D106: =#REF! -> 
B107: Q2 | C107: =#REF! ->  | D107: =#REF! -> 
B108: Q3 | C108: =#REF! ->  | D108: =#REF! -> 
B109: Q4 | C109: =#REF! ->  | D109: =#REF! -> 
A110: 2014/15 | B110: Q1 | C110: =#REF! ->  | D110: =#REF! -> 
B111: Q2 | C111: =#REF! ->  | D111: =#REF! -> 
B112: Q3 | C112: =#REF! ->  | D112: =#REF! -> 
B113: Q4 | C113: =#REF! ->  | D113: =#REF! -> 
A114: 2015/16 | B114: Q1 | C114: =#REF! ->  | D114: =#REF! -> 
B115: Q2 | C115: =#REF! ->  | D115: =#REF! -> 
B116: Q3 | C116: =#REF! ->  | D116: =#REF! -> 
B117: Q4 | C117: =#REF! ->  | D117: =#REF! -> 
A118: 2016/17 | B118: Q1 | C118: =#REF! ->  | D118: =#REF! -> 
B119: Q2 | C119: =#REF! ->  | D119: =#REF! -> 
B120: Q3 | C120: =#REF! ->  | D120: =#REF! -> 
B121: Q4 | C121: =#REF! ->  | D121: =#REF! -> 
A126: Chart 22: All Local Development Planning Applications - Average decision time (weeks)
A127: Year/ Quarter | C127: All Applications | D127: Post-August 2009
A128: 2012/13 | B128: Q1 | C128: =#REF! ->  | D128: =#REF! -> 
B129: Q2 | C129: =#REF! ->  | D129: =#REF! -> 
B130: Q3 | C130: =#REF! ->  | D130: =#REF! -> 
B131: Q4 | C131: =#REF! ->  | D131: =#REF! -> 
A132: 2013/14 | B132: Q1 | C132: =#REF! ->  | D132: =#REF! -> 
B133: Q2 | C133: =#REF! ->  | D133: =#REF! -> 
B134: Q3 | C134: =#REF! ->  | D134: =#REF! -> 
B135: Q4 | C135: =#REF! ->  | D135: =#REF! -> 
A136: 2014/15 | B136: Q1 | C136: =#REF! ->  | D136: =#REF! -> 
B137: Q2 | C137: =#REF! ->  | D137: =#REF! -> 
B138: Q3 | C138: =#REF! ->  | D138: =#REF! -> 
B139: Q4 | C139: =#REF! ->  | D139: =#REF! -> 
A140: 2015/16 | B140: Q1 | C140: =#REF! ->  | D140: =#REF! -> 
B141: Q2 | C141: =#REF! ->  | D141: =#REF! -> 
B142: Q3 | C142: =#REF! ->  | D142: =#REF! -> 
B143: Q4 | C143: =#REF! ->  | D143: =#REF! -> 
A144: 2016/17 | B144: Q1 | C144: =#REF! ->  | D144: =#REF! -> 
B145: Q2 | C145: =#REF! ->  | D145: =#REF! -> 
B146: Q3 | C146: =#REF! ->  | D146: =#REF! -> 
B147: Q4 | C147: =#REF! ->  | D147: =#REF! -> 
A151: Chart 23: Householder developments - Number of decisions
A152: Year/ Quarter | C152: All Applications | D152: Post-August 2009
A153: 2012/13 | B153: Q1 | C153: =#REF! ->  | D153: =#REF! -> 
B154: Q2 | C154: =#REF! ->  | D154: =#REF! -> 
B155: Q3 | C155: =#REF! ->  | D155: =#REF! -> 
B156: Q4 | C156: =#REF! ->  | D156: =#REF! -> 
A157: 2013/14 | B157: Q1 | C157: =#REF! ->  | D157: =#REF! -> 
B158: Q2 | C158: =#REF! ->  | D158: =#REF! -> 
B159: Q3 | C159: =#REF! ->  | D159: =#REF! -> 
B160: Q4 | C160: =#REF! ->  | D160: =#REF! -> 
A161: 2014/15 | B161: Q1 | C161: =#REF! ->  | D161: =#REF! -> 
B162: Q2 | C162: =#REF! ->  | D162: =#REF! -> 
B163: Q3 | C163: =#REF! ->  | D163: =#REF! -> 
B164: Q4 | C164: =#REF! ->  | D164: =#REF! -> 
A165: 2015/16 | B165: Q1 | C165: =#REF! ->  | D165: =#REF! -> 
B166: Q2 | C166: =#REF! ->  | D166: =#REF! -> 
B167: Q3 | C167: =#REF! ->  | D167: =#REF! -> 
B168: Q4 | C168: =#REF! ->  | D168: =#REF! -> 
A169: 2016/17 | B169: Q1 | C169: =#REF! ->  | D169: =#REF! -> 
B170: Q2 | C170: =#REF! ->  | D170: =#REF! -> 
B171: Q3 | C171: =#REF! ->  | D171: =#REF! -> 
B172: Q4 | C172: =#REF! ->  | D172: =#REF! -> 
A175: Chart 24: Householder developments - Average decision time (weeks)
A176: Year/ Quarter | C176: All Applications | D176: Post-August 2009
A177: 2012/13 | B177: Q1 | C177: =#REF! ->  | D177: =#REF! -> 
B178: Q2 | C178: =#REF! ->  | D178: =#REF! -> 
B179: Q3 | C179: =#REF! ->  | D179: =#REF! -> 
B180: Q4 | C180: =#REF! ->  | D180: =#REF! -> 
A181: 2013/14 | B181: Q1 | C181: =#REF! ->  | D181: =#REF! -> 
B182: Q2 | C182: =#REF! ->  | D182: =#REF! -> 
B183: Q3 | C183: =#REF! ->  | D183: =#REF! -> 
B184: Q4 | C184: =#REF! ->  | D184: =#REF! -> 
A185: 2014/15 | B185: Q1 | C185: =#REF! ->  | D185: =#REF! -> 
B186: Q2 | C186: =#REF! ->  | D186: =#REF! -> 
B187: Q3 | C187: =#REF! ->  | D187: =#REF! -> 
B188: Q4 | C188: =#REF! ->  | D188: =#REF! -> 
A189: 2015/16 | B189: Q1 | C189: =#REF! ->  | D189: =#REF! -> 
B190: Q2 | C190: =#REF! ->  | D190: =#REF! -> 
B191: Q3 | C191: =#REF! ->  | D191: =#REF! -> 
B192: Q4 | C192: =#REF! ->  | D192: =#REF! -> 
A193: 2016/17 | B193: Q1 | C193: =#REF! ->  | D193: =#REF! -> 
B194: Q2 | C194: =#REF! ->  | D194: =#REF! -> 
B195: Q3 | C195: =#REF! ->  | D195: =#REF! -> 
B196: Q4 | C196: =#REF! ->  | D196: =#REF! -> 
A198: Chart 25: Local Housing developments - Number of decisions
A199: Year/ Quarter | C199: All Applications | D199: Post-August 2009
A200: 2012/13 | B200: Q1 | C200: =#REF! ->  | D200: =#REF! -> 
B201: Q2 | C201: =#REF! ->  | D201: =#REF! -> 
B202: Q3 | C202: =#REF! ->  | D202: =#REF! -> 
B203: Q4 | C203: =#REF! ->  | D203: =#REF! -> 
A204: 2013/14 | B204: Q1 | C204: =#REF! ->  | D204: =#REF! -> 
B205: Q2 | C205: =#REF! ->  | D205: =#REF! -> 
B206: Q3 | C206: =#REF! ->  | D206: =#REF! -> 
B207: Q4 | C207: =#REF! ->  | D207: =#REF! -> 
A208: 2014/15 | B208: Q1 | C208: =#REF! ->  | D208: =#REF! -> 
B209: Q2 | C209: =#REF! ->  | D209: =#REF! -> 
B210: Q3 | C210: =#REF! ->  | D210: =#REF! -> 
B211: Q4 | C211: =#REF! ->  | D211: =#REF! -> 
A212: 2015/16 | B212: Q1 | C212: =#REF! ->  | D212: =#REF! -> 
B213: Q2 | C213: =#REF! ->  | D213: =#REF! -> 
B214: Q3 | C214: =#REF! ->  | D214: =#REF! -> 
B215: Q4 | C215: =#REF! ->  | D215: =#REF! -> 
A216: 2016/17 | B216: Q1 | C216: =#REF! ->  | D216: =#REF! -> 
B217: Q2 | C217: =#REF! ->  | D217: =#REF! -> 
B218: Q3 | C218: =#REF! ->  | D218: =#REF! -> 
B219: Q4 | C219: =#REF! ->  | D219: =#REF! -> 
A221: Chart 26: Local Housing developments - Average decision time (weeks)
A222: Year/ Quarter | C222: All Applications | D222: Post-August 2009
... 284 more rows

Sheet SCOTLAND
A1: Planning Authority Performance Statistics1,2 | D1: SCOTLAND | I1: For Scottish Government Use during analysis Please do not delete or move these columns
D2: 2018/19 Q3
D3: Post-3rd August 2009 | J3: Check total number of applications
K4: =SUM('Aberdeen City:West Lothian'!J3) -> 8700 | L4: total apps | M4: =IF(ROUND(B6+B13+B17+B49+B50,6)=ROUND(K4,6),"OK","error - check summary and legacy") -> error - check summary and legacy
A5: Category | B5: Total Number of Decisions | C5: % Within Agreed Timescales | I5: Check PA Totals | K5: =ROUND(B6+B13+B17+B49+B50,6) -> 8696 | L5: from summary | M5: OK total is 8696+4 8700
A6: Processing Agreements | B6: =SUM(B7:B10) -> 683 | C6: 0.7994143485 | I6: =IF(SUM(B7:B10)=B6,"ok","error") -> ok | K6: 4 | L6: legacy
A7: Major Applications | B7: =SUM('Aberdeen City:West Lothian'!B7) -> 28 | C7: 0.7857142857
A8: Local Applications | B8: =SUM('Aberdeen City:West Lothian'!B8) -> 546 | C8: 0.8021978022
A9: EIA developments | B9: =SUM('Aberdeen City:West Lothian'!B9) -> 0 | C9: -
A10: Other Consents | B10: =SUM('Aberdeen City:West Lothian'!B10) -> 109 | C10: 0.7889908257
B12: Total Number of Decisions | C12: Proportion of Decisions | D12: Average Time (Weeks) | I12: Check Totals
A13: All Major Developments | B13: =SUM('Aberdeen City:West Lothian'!B13) -> 58 | D13: 26.45566502 | I13: =IF(B13=B14+B15,"ok","error") -> ok | J13: =IF(C14+C15=1,"ok","error") -> ok | K13: =C14*D14+C15*D15 -> 26.45566502 | L13: =IF(D13=K13,"ok","error") -> ok
A14: Without Legal Agreement | B14: =SUM('Aberdeen City:West Lothian'!B14) -> 40 | C14: =B14/B13 -> 0.6896551724 | D14: 19.65357143
A15: With Legal Agreement | B15: =SUM('Aberdeen City:West Lothian'!B15) -> 18 | C15: =B15/B13 -> 0.3103448276 | D15: 41.57142857
A17: All Local Developments | B17: =SUM('Aberdeen City:West Lothian'!B17) -> 6155 | D17: 8.839039109 | I17: =IF(B17=B18+B19,"ok","error") -> ok | J17: =IF(C18+C19=1,"ok","error") -> ok | K17: =C18*D18+C19*D19 -> 8.839039109 | L17: =IF(ROUND(D17,2)=ROUND(K17,2),"ok","error") -> ok
A18: Without Legal Agreement | B18: =SUM('Aberdeen City:West Lothian'!B18) -> 6076 | C18: =B18/B17 -> 0.9871649066 | D18: 8.436212734
A19: With Legal Agreement | B19: =SUM('Aberdeen City:West Lothian'!B19) -> 79 | C19: =B19/B17 -> 0.01283509342 | D19: 39.82097649
A20: Local: less than 2 months | B20: =SUM('Aberdeen City:West Lothian'!B20) -> 4728 | C20: =B20/B17 -> 0.7681559708 | D20: 6.432831762 | I20: =IF(B17=B20+B21,"ok","error") -> ok | J20: =IF(C20+C21=1,"ok","error") -> ok | K20: =C20*D20+C21*D21 -> 8.839039109 | L20: =IF(ROUND(D17,6)=ROUND(K20,6),"ok","error") -> ok
A21: Local: more than 2 months | B21: =SUM('Aberdeen City:West Lothian'!B21) -> 1427 | C21: =B21/B17 -> 0.2318440292 | D21: 16.81139253
A23: All Local developments (non-householder) | B23: =SUM('Aberdeen City:West Lothian'!B23) -> 3111 | D23: 10.68012123 | I23: =IF(B23=B24+B25,"ok","error") -> ok | J23: =IF(C24+C25=1,"ok","error") -> ok | K23: =C24*D24+C25*D25 -> 10.68012123 | L23: =IF(D23=K23,"ok","error") -> ok
A24: Local: less than 2 months | B24: =SUM('Aberdeen City:West Lothian'!B24) -> 2046 | C24: =B24/B23 -> 0.6576663452 | D24: 6.662756598
A25: Local: more than 2 months | B25: =SUM('Aberdeen City:West Lothian'!B25) -> 1065 | C25: =B25/B23 -> 0.3423336548 | D25: 18.39798793
A27: Householder developments | B27: =SUM('Aberdeen City:West Lothian'!B27) -> 3044 | D27: 6.957433828 | I27: =IF(B27=B28+B29,"ok","error") -> ok | J27: =IF(C28+C29=1,"ok","error") -> ok | K27: =C28*D28+C29*D29 -> 6.957433828 | L27: =IF(ROUND(D27,6)=ROUND(K27,6),"ok","error") -> ok
A28: Local: less than 2 months | B28: =SUM('Aberdeen City:West Lothian'!B28) -> 2682 | C28: =B28/B27 -> 0.8810775296 | D28: 6.257430489
A29: Local: more than 2 months | B29: =SUM('Aberdeen City:West Lothian'!B29) -> 362 | C29: =B29/B27 -> 0.1189224704 | D29: 12.14364641
A31: Housing Developments - Major | B31: =SUM('Aberdeen City:West Lothian'!B31) -> 28 | D31: 30.0255102
A33: Housing Developments - Local | B33: =SUM('Aberdeen City:West Lothian'!B33) -> 1169 | D33: 12.25186362 | I33: =IF(B33=B34+B35,"ok","error") -> ok | J33: =IF(C34+C35=1,"ok","error") -> ok | K33: =C34*D34+C35*D35 -> 12.25186362 | L33: =IF(D33=K33,"ok","error") -> ok
A34: Local: less than 2 months | B34: =SUM('Aberdeen City:West Lothian'!B34) -> 699 | C34: =B34/B33 -> 0.5979469632 | D34: 6.793787043
A35: Local: more than 2 months | B35: =SUM('Aberdeen City:West Lothian'!B35) -> 470 | C35: =B35/B33 -> 0.4020530368 | D35: 20.36930091
A37: Business & Industry - Major | B37: =SUM('Aberdeen City:West Lothian'!B37) -> 8 | D37: 13.375
A39: Business & Industry - Local | B39: =SUM('Aberdeen City:West Lothian'!B39) -> 372 | D39: 9.21390169 | I39: =IF(B39=B40+B41,"ok","error") -> ok | J39: =IF(C40+C41=1,"ok","error") -> ok | K39: =C40*D40+C41*D41 -> 9.21390169 | L39: =IF(D39=K39,"ok","error") -> ok
A40: Local: less than 2 months | B40: =SUM('Aberdeen City:West Lothian'!B40) -> 261 | C40: =B40/B39 -> 0.7016129032 | D40: 6.724137931
A41: Local: more than 2 months | B41: =SUM('Aberdeen City:West Lothian'!B41) -> 111 | C41: =B41/B39 -> 0.2983870968 | D41: 15.06821107
A43: Other developments - Major | B43: =SUM('Aberdeen City:West Lothian'!B43) -> 19 | D43: 25.9924812
A45: Other developments - Local | B45: =SUM('Aberdeen City:West Lothian'!B45) -> 1408 | D45: 9.660105519 | I45: =IF(B45=B46+B47,"ok","error") -> ok | J45: =IF(C46+C47=1,"ok","error") -> ok | K45: =C46*D46+C47*D47 -> 9.660105519 | L45: =IF(ROUND(D45,6)=ROUND(K45,6),"ok","error") -> ok
A46: Local: less than 2 months | B46: =SUM('Aberdeen City:West Lothian'!B46) -> 978 | C46: =B46/B45 -> 0.6946022727 | D46: 6.515775635
A47: Local: more than 2 months | B47: =SUM('Aberdeen City:West Lothian'!B47) -> 430 | C47: =B47/B45 -> 0.3053977273 | D47: 16.81162791
A49: EIA Developments | B49: =SUM('Aberdeen City:West Lothian'!B49) -> 3 | D49: 21.9047619
A50: Other Consents | B50: =SUM('Aberdeen City:West Lothian'!B50) -> 1797 | D50: 7.599888703
A52: Decision Making: Applications subject to
A53: Planning/Legal Agreements | B53: =SUM('Aberdeen City:West Lothian'!B53) -> 100 | D53: 39.16428571 | I53: Check Local Review Totals
A54: Local Reviews | B54: =SUM('Aberdeen City:West Lothian'!B54) -> 146 | D54: 11.00391389 | I54: =IF(B54=B59,"ok","error") -> ok
A56: Decision Making: Local Reviews and Appeals
B58: Total number of decisions | C58: Original decision upheld (%)
A59: Local Reviews | B59: =SUM('Aberdeen City:West Lothian'!B59) -> 146 | C59: 0.5550684932
A60: Appeals to Scottish Ministers3 | B60: =SUM('Aberdeen City:West Lothian'!B60) -> 90 | C60: 0.5112666667
A62: Enforcement Activity
B64: Number
A65: Cases Taken Up | B65: 1237
A66: Notices Served | B66: 139
A67: Reports to Procurator Fiscal | B67: 2
A68: Prosecutions | B68: 0
A70: Approved and Delegated
A72: Percentage Approved | B72: =J72/K72 -> 0.935346402 | I72: Approved | J72: =SUM('Aberdeen City:West Lothian'!$J$72) -> 7682 | K72: =SUM('Aberdeen City:West Lothian'!$K$72) -> 8213 | L72: Total Applications less N17
A73: Percentage Delegated | B73: =J73/K73 -> 0.9642528736 | I73: Delegated | J73: =SUM('Aberdeen City:West Lothian'!$J$73) -> 8389 | K73: =SUM('Aberdeen City:West Lothian'!K$73) -> 8700 | L73: Total Applications
K74: =SUM('Aberdeen City:West Lothian'!K74) - 'Cairngorms National Park'!K74 -> 9459 | L74: Applications received (excludes Cairngorms)
A75: 1. For a full description of the categories in this analysis please see NOTES page. | I75: Check % approved | K75: OK
A76: 2. Time has been removed from the decision time for a total of 478 applications where delays were outwith the control of 29 local authorities. Other local authorities either indicated that they were not able to provide details of dates for delays that were outwith their control or did not require any decision time to be removed from any of their applications. Average decision times for those local authorities who are not able to provide details for delays may be higher than otherwise, and higher than those authorities who are able to report delays in decision making. | I76: Check % Delegated | K76: OK
A80: 3. Cases where the decision was recalled and made by Ministers are not included in these figures.

Sheet Aberdeen City
A1: Planning Authority Performance Statistics1,3 | D1: Aberdeen City | I1: For Scottish Government Use during analysis Please do not delete or move these columns
D2: 2018/19 Q3 | J2: Check total number of applications
D3: All Applications excluding Legacy Cases | J3: 292 | K3: total apps | M3: OK
A5: Processing Agreements | B5: Total Number of Decisions | C5: % Within Agreed Timescales
A6: TOTAL | B6: 104 | C6: 1
A7: Major Applications | B7: 3 | C7: 1
A8: Local Applications | B8: 75 | C8: 1
A9: EIA Applications | B9: 0 | C9: -
A10: Other Applications | B10: 26 | C10: 1
A11: Applications with processing agreements are not included in the following figures.
B12: Total Number of Decisions | C12: Proportion of Decisions | D12: Average Time (Weeks) | J12: check sums to total
A13: All Major Developments | B13: 2 | D13: 25.92857143 | J13: OK | K13: OK
A14: Without Legal Agreement | B14: 0 | C14: 0 | D14: -
A15: With Legal Agreement | B15: 2 | C15: 1 | D15: 25.92857143
J16: OK
A17: All Local Developments | B17: 127 | D17: 7.436445444 | J17: OK | K17: OK | L17: OK
A18: Without Legal Agreement | B18: 123 | C18: 0.968503937 | D18: 6.643437863
A19: With Legal Agreement | B19: 4 | C19: 0.03149606299 | D19: 31.82142857
A20: Local: less than 2 months | B20: 121 | C20: 0.9527559055 | D20: 6.517119244 | J20: OK | K20: OK | L20: OK
A21: Local: more than 2 months | B21: 6 | C21: 0.04724409449 | D21: 25.97619048
A23: All Local developments (non-householder) | B23: 52 | D23: 8.398351648 | J23: OK | K23: OK | L23: OK
A24: Local: less than 2 months | B24: 46 | C24: 0.8846153846 | D24: 6.105590062
A25: Local: more than 2 months | B25: 6 | C25: 0.1153846154 | D25: 25.97619048
A27: Householder developments | B27: 75 | D27: 6.76952381 | J27: OK | K27: OK
A28: Local: less than 2 months | B28: 75 | C28: 1 | D28: 6.76952381
A29: Local: more than 2 months | B29: 0 | C29: 0 | D29: -
A31: Housing Developments - Major | B31: 0 | D31: -
A33: Housing Developments - Local | B33: 7 | D33: 21.65306122 | J33: OK | K33: OK | L33: OK
A34: Local: less than 2 months | B34: 3 | C34: 0.4285714286 | D34: 6.666666667
A35: Local: more than 2 months | B35: 4 | C35: 0.5714285714 | D35: 32.89285714
A37: Business & Industry - Major | B37: 0 | D37: -
A39: Business & Industry - Local | B39: 5 | D39: 5.714285714 | J39: OK | K39: OK
A40: Local: less than 2 months | B40: 5 | C40: 1 | D40: 5.714285714
A41: Local: more than 2 months | B41: 0 | C41: 0 | D41: -
A43: Other developments - Major | B43: 2 | D43: 25.92857143
A45: Other developments - Local | B45: 36 | D45: 6.349206349 | J45: OK | K45: OK | L45: OK
A46: Local: less than 2 months | B46: 34 | C46: 0.9444444444 | D46: 6.008403361
A47: Local: more than 2 months | B47: 2 | C47: 0.05555555556 | D47: 12.14285714
A49: EIA Developments | B49: 0 | D49: -
A50: Other Consents | B50: 59 | D50: 5.927360775
A52: Decision Making: Applications subject to
A53: Planning/Legal Agreements | B53: 6 | D53: 29.85714286
A54: Local Reviews | B54: 13 | D54: 7.615384615 | J54: Check local review totals
J55: OK
A56: Decision Making: Local Reviews and Appeals
B58: Total number of decisions | C58: Original decision upheld (%)
A59: Local Reviews | B59: 13 | C59: 0.2307692308
A60: Appeals to Scottish Ministers2 | B60: 3 | C60: 0.333
A62: Enforcement Activity
B64: Number
A65: Cases Taken Up | B65: 30
A66: Notices Served | B66: 2
A67: Reports to Procurator Fiscal | B67: 0
A68: Prosecutions | B68: 0
A69: Number of breaches resolved | B69: 21
A70: Approved and Delegated
A72: Percentage Approved | B72: 0.9071428571 | I72: Approved | J72: 254 | K72: 280 | L72: Total Applications less N17
A73: Percentage Delegated | B73: 0.9657534247 | I73: Delegated | J73: 282 | K73: 292 | L73: Total Applications
K74: 331 | L74: applications received
A75: 1. For a full description of the categories in this analysis please see NOTES page.
A76: 2. Cases where the decision was recalled and made by Ministers are not included in these figures.
A77: 3. Time has been removed from the decision time for 8 applications where delays were outwith the control of the local authority.

Sheet Aberdeenshire
A1: Planning Authority Performance Statistics1,3 | D1: Aberdeenshire | I1: For Scottish Government Use during analysis Please do not delete or move these columns
D2: 2018/19 Q3 | J2: Check total number of applications
D3: All Applications excluding Legacy Cases | J3: 609 | K3: total apps | M3: OK
A5: Processing Agreements | B5: Total Number of Decisions | C5: % Within Agreed Timescales
A6: TOTAL | B6: 120 | C6: 0.9
A7: Major Applications | B7: 2 | C7: 1
A8: Local Applications | B8: 105 | C8: 0.8952380952
A9: EIA Applications | B9: 0 | C9: -
A10: Other Applications | B10: 13 | C10: 0.9230769231
A11: Applications with processing agreements are not included in the following figures.
B12: Total Number of Decisions | C12: Proportion of Decisions | D12: Average Time (Weeks) | J12: check sums to total
A13: All Major Developments | B13: 1 | D13: 16.71428571 | J13: OK | K13: OK
A14: Without Legal Agreement | B14: 1 | C14: 1 | D14: 16.71428571
A15: With Legal Agreement | B15: 0 | C15: 0 | D15: -
J16: OK
A17: All Local Developments | B17: 425 | D17: 7.777815126 | J17: OK | K17: OK | L17: OK
A18: Without Legal Agreement | B18: 410 | C18: 0.9647058824 | D18: 7.699303136
A19: With Legal Agreement | B19: 15 | C19: 0.03529411765 | D19: 9.923809524
A20: Local: less than 2 months | B20: 379 | C20: 0.8917647059 | D20: 7.056916698 | J20: OK | K20: OK | L20: OK
A21: Local: more than 2 months | B21: 46 | C21: 0.1082352941 | D21: 13.7173913
A23: All Local developments (non-householder) | B23: 253 | D23: 8.233201581 | J23: OK | K23: OK | L23: OK
A24: Local: less than 2 months | B24: 220 | C24: 0.8695652174 | D24: 7.37987013
A25: Local: more than 2 months | B25: 33 | C25: 0.1304347826 | D25: 13.92207792
A27: Householder developments | B27: 172 | D27: 7.107973422 | J27: OK | K27: OK | L27: OK
A28: Local: less than 2 months | B28: 159 | C28: 0.9244186047 | D28: 6.610062893
A29: Local: more than 2 months | B29: 13 | C29: 0.07558139535 | D29: 13.1978022
A31: Housing Developments - Major | B31: 0 | D31: -
A33: Housing Developments - Local | B33: 118 | D33: 8.449152542 | J33: OK | K33: OK | L33: OK
A34: Local: less than 2 months | B34: 102 | C34: 0.8644067797 | D34: 7.598039216
A35: Local: more than 2 months | B35: 16 | C35: 0.1355932203 | D35: 13.875
A37: Business & Industry - Major | B37: 1 | D37: 16.71428571
A39: Business & Industry - Local | B39: 33 | D39: 7.748917749 | J39: OK | K39: OK | L39: OK
A40: Local: less than 2 months | B40: 28 | C40: 0.8484848485 | D40: 7.045918367
A41: Local: more than 2 months | B41: 5 | C41: 0.1515151515 | D41: 11.68571429
A43: Other developments - Major | B43: 0 | D43: -
A45: Other developments - Local | B45: 77 | D45: 7.818181818 | J45: OK | K45: OK | L45: OK
A46: Local: less than 2 months | B46: 69 | C46: 0.8961038961 | D46: 7.17184265
A47: Local: more than 2 months | B47: 8 | C47: 0.1038961039 | D47: 13.39285714
A49: EIA Developments | B49: 0 | D49: -
A50: Other Consents | B50: 63 | D50: 7.485260771
A52: Decision Making: Applications subject to
A53: Planning/Legal Agreements | B53: 15 | D53: 9.923809524
A54: Local Reviews | B54: 7 | D54: 10.79591837 | J54: Check local review totals
J55: OK
A56: Decision Making: Local Reviews and Appeals
B58: Total number of decisions | C58: Original decision upheld (%)
A59: Local Reviews | B59: 7 | C59: 1
A60: Appeals to Scottish Ministers2 | B60: 7 | C60: 0.571
A62: Enforcement Activity
B64: Number
A65: Cases Taken Up | B65: 92
A66: Notices Served | B66: 0
A67: Reports to Procurator Fiscal | B67: 0
A68: Prosecutions | B68: 0
A69: Number of breaches resolved | B69: 94
A70: Approved and Delegated
A72: Percentage Approved | B72: 0.9282136895 | I72: Approved | J72: 556 | K72: 599 | L72: Total Applications less N17
A73: Percentage Delegated | B73: 0.9261083744 | I73: Delegated | J73: 564 | K73: 609 | L73: Total Applications
K74: 629 | L74: applications received
A75: 1. For a full description of the categories in this analysis please see NOTES page.
A76: 2. Cases where the decision was recalled and made by Ministers are not included in these figures.
A77: 3. Time has been removed from the decision time for 4 applications where delays were outwith the control of the local authority.

Sheet Angus
A1: Planning Authority Performance Statistics1,3 | D1: Angus | I1: For Scottish Government Use during analysis Please do not delete or move these columns
D2: 2018/19 Q3 | J2: Check total number of applications
D3: All Applications excluding Legacy Cases | J3: 189 | K3: total apps | M3: OK
A5: Processing Agreements | B5: Total Number of Decisions | C5: % Within Agreed Timescales
A6: TOTAL | B6: 35 | C6: 0.9428571429
A7: Major Applications | B7: 0 | C7: -
A8: Local Applications | B8: 31 | C8: 0.9677419355
A9: EIA Applications | B9: 0 | C9: -
A10: Other Applications | B10: 4 | C10: 0.75
A11: Applications with processing agreements are not included in the following figures.
B12: Total Number of Decisions | C12: Proportion of Decisions | D12: Average Time (Weeks) | J12: check sums to total
A13: All Major Developments | B13: 1 | D13: 10.28571429 | J13: OK | K13: OK
A14: Without Legal Agreement | B14: 1 | C14: 1 | D14: 10.28571429
A15: With Legal Agreement | B15: 0 | C15: 0 | D15: -
J16: OK
A17: All Local Developments | B17: 128 | D17: 6.5859375 | J17: OK | K17: OK
A18: Without Legal Agreement | B18: 128 | C18: 1 | D18: 6.5859375
A19: With Legal Agreement | B19: 0 | C19: 0 | D19: -
A20: Local: less than 2 months | B20: 117 | C20: 0.9140625 | D20: 6.194139194 | J20: OK | K20: OK | L20: OK
A21: Local: more than 2 months | B21: 11 | C21: 0.0859375 | D21: 10.75324675
A23: All Local developments (non-householder) | B23: 61 | D23: 7.510538642 | J23: OK | K23: OK | L23: OK
A24: Local: less than 2 months | B24: 52 | C24: 0.8524590164 | D24: 6.958791209
A25: Local: more than 2 months | B25: 9 | C25: 0.1475409836 | D25: 10.6984127
A27: Householder developments | B27: 67 | D27: 5.744136461 | J27: OK | K27: OK | L27: OK
A28: Local: less than 2 months | B28: 65 | C28: 0.9701492537 | D28: 5.582417582
A29: Local: more than 2 months | B29: 2 | C29: 0.02985074627 | D29: 11
A31: Housing Developments - Major | B31: 1 | D31: 10.28571429
A33: Housing Developments - Local | B33: 23 | D33: 7.310559006 | J33: OK | K33: OK | L33: OK
A34: Local: less than 2 months | B34: 19 | C34: 0.8260869565 | D34: 6.864661654
A35: Local: more than 2 months | B35: 4 | C35: 0.1739130435 | D35: 9.428571429
A37: Business & Industry - Major | B37: 0 | D37: -
A39: Business & Industry - Local | B39: 11 | D39: 7.727272727 | J39: OK | K39: OK | L39: OK
A40: Local: less than 2 months | B40: 9 | C40: 0.8181818182 | D40: 7.444444444
A41: Local: more than 2 months | B41: 2 | C41: 0.1818181818 | D41: 9
A43: Other developments - Major | B43: 0 | D43: -
A45: Other developments - Local | B45: 27 | D45: 7.592592593 | J45: OK | K45: OK | L45: OK
A46: Local: less than 2 months | B46: 24 | C46: 0.8888888889 | D46: 6.851190476
A47: Local: more than 2 months | B47: 3 | C47: 0.1111111111 | D47: 13.52380952
A49: EIA Developments | B49: 0 | D49: -
A50: Other Consents | B50: 25 | D50: 6
A52: Decision Making: Applications subject to
A53: Planning/Legal Agreements | B53: 0 | D53: -
A54: Local Reviews | B54: 2 | D54: 10.78571429 | J54: Check local review totals
J55: OK
A56: Decision Making: Local Reviews and Appeals
B58: Total number of decisions | C58: Original decision upheld (%)
A59: Local Reviews | B59: 2 | C59: 1
A60: Appeals to Scottish Ministers2 | B60: 0
A62: Enforcement Activity
B64: Number
A65: Cases Taken Up | B65: 15
A66: Notices Served | B66: 6
A67: Reports to Procurator Fiscal | B67: 0
A68: Prosecutions | B68: 0
A69: Number of breaches resolved | B69: 4
A70: Approved and Delegated
A72: Percentage Approved | B72: 0.9836065574 | I72: Approved | J72: 180 | K72: 183 | L72: Total Applications less N17
A73: Percentage Delegated | B73: 0.9523809524 | I73: Delegated | J73: 180 | K73: 189 | L73: Total Applications
K74: 186 | L74: applications received
A75: 1. For a full description of the categories in this analysis please see NOTES page.
A76: 2. Cases where the decision was recalled and made by Ministers are not included in these figures.
A77: 3. Time has not been removed from the decision time for any applications.

Sheet Argyll and Bute
A1: Planning Authority Performance Statistics1,3 | D1: Argyll and Bute | I1: For Scottish Government Use during analysis Please do not delete or move these columns
D2: 2018/19 Q3 | J2: Check total number of applications
D3: All Applications excluding Legacy Cases | J3: 329 | K3: total apps | M3: OK
A5: Processing Agreements | B5: Total Number of Decisions | C5: % Within Agreed Timescales
A6: TOTAL | B6: 0 | C6: -
A7: Major Applications | B7: 0 | C7: -
A8: Local Applications | B8: 0 | C8: -
A9: EIA Applications | B9: 0 | C9: -
A10: Other Applications | B10: 0 | C10: -
A11: Applications with processing agreements are not included in the following figures.
B12: Total Number of Decisions | C12: Proportion of Decisions | D12: Average Time (Weeks) | J12: check sums to total
A13: All Major Developments | B13: 2 | D13: 9.785714286 | J13: OK | K13: OK
A14: Without Legal Agreement | B14: 2 | C14: 1 | D14: 9.785714286
A15: With Legal Agreement | B15: 0 | C15: 0 | D15: -
J16: OK
A17: All Local Developments | B17: 265 | D17: 8.818867925 | J17: OK | K17: OK
A18: Without Legal Agreement | B18: 265 | C18: 1 | D18: 8.818867925
A19: With Legal Agreement | B19: 0 | C19: 0 | D19: -
A20: Local: less than 2 months | B20: 186 | C20: 0.7018867925 | D20: 6.28187404 | J20: OK | K20: OK | L20: OK
A21: Local: more than 2 months | B21: 79 | C21: 0.2981132075 | D21: 14.7920434
A23: All Local developments (non-householder) | B23: 175 | D23: 9.664489796 | J23: OK | K23: OK | L23: OK
A24: Local: less than 2 months | B24: 114 | C24: 0.6514285714 | D24: 6.71679198
A25: Local: more than 2 months | B25: 61 | C25: 0.3485714286 | D25: 15.17330211
A27: Householder developments | B27: 90 | D27: 7.174603175 | J27: OK | K27: OK | L27: OK
A28: Local: less than 2 months | B28: 72 | C28: 0.8 | D28: 5.593253968
A29: Local: more than 2 months | B29: 18 | C29: 0.2 | D29: 13.5
A31: Housing Developments - Major | B31: 1 | D31: 12.28571429
A33: Housing Developments - Local | B33: 92 | D33: 9.933229814 | J33: OK | K33: OK | L33: OK
A34: Local: less than 2 months | B34: 57 | C34: 0.6195652174 | D34: 6.884711779
A35: Local: more than 2 months | B35: 35 | C35: 0.3804347826 | D35: 14.89795918
A37: Business & Industry - Major | B37: 1 | D37: 7.285714286
A39: Business & Industry - Local | B39: 3 | D39: 7.285714286 | J39: OK | K39: OK | L39: OK
A40: Local: less than 2 months | B40: 2 | C40: 0.6666666667 | D40: 6.214285714
A41: Local: more than 2 months | B41: 1 | C41: 0.3333333333 | D41: 9.428571429
A43: Other developments - Major | B43: 0 | D43: -
A45: Other developments - Local | B45: 67 | D45: 9.92750533 | J45: OK | K45: OK | L45: OK
A46: Local: less than 2 months | B46: 43 | C46: 0.6417910448 | D46: 6.591362126
A47: Local: more than 2 months | B47: 24 | C47: 0.3582089552 | D47: 15.9047619
A49: EIA Developments | B49: 0 | D49: -
A50: Other Consents | B50: 62 | D50: 6.794930876
A52: Decision Making: Applications subject to
A53: Planning/Legal Agreements | B53: 0 | D53: -
A54: Local Reviews | B54: 1 | D54: 6.142857143 | J54: Check local review totals
J55: OK
A56: Decision Making: Local Reviews and Appeals
B58: Total number of decisions | C58: Original decision upheld (%)
A59: Local Reviews | B59: 1 | C59: 1
A60: Appeals to Scottish Ministers2 | B60: 1 | C60: 1
A62: Enforcement Activity
B64: Number
A65: Cases Taken Up | B65: 108
A66: Notices Served | B66: 24
A67: Reports to Procurator Fiscal | B67: 0
A68: Prosecutions | B68: 0
A69: Number of breaches resolved | B69: 93
A70: Approved and Delegated
A72: Percentage Approved | B72: 0.9678456592 | I72: Approved | J72: 301 | K72: 311 | L72: Total Applications less N17
A73: Percentage Delegated | B73: 0.990881459 | I73: Delegated | J73: 326 | K73: 329 | L73: Total Applications
K74: 355 | L74: applications received
A75: 1. For a full description of the categories in this analysis please see NOTES page.
A76: 2. Cases where the decision was recalled and made by Ministers are not included in these figures.
A77: 3. Time has been removed from the decision time for 16 applications where delays were outwith the control of the local authority.

Sheet Cairngorms National Park
A1: Planning Authority Performance Statistics1,3 | D1: Cairngorms National Park | I1: For Scottish Government Use during analysis Please do not delete or move these columns
D2: 2018/19 Q3 | J2: Check total number of applications
D3: All Applications excluding Legacy Cases | J3: 10 | K3: total apps | M3: OK
A5: Processing Agreements | B5: Total Number of Decisions | C5: % Within Agreed Timescales
A6: TOTAL | B6: 9 | C6: 0.6666666667
A7: Major Applications | B7: 0 | C7: -
A8: Local Applications | B8: 9 | C8: 0.6666666667
A9: EIA Applications | B9: 0 | C9: -
A10: Other Applications | B10: 0 | C10: -
A11: Applications with processing agreements are not included in the following figures.
B12: Total Number of Decisions | C12: Proportion of Decisions | D12: Average Time (Weeks) | J12: check sums to total
A13: All Major Developments | B13: 0 | D13: - | J13: OK
A14: Without Legal Agreement | B14: 0 | C14: - | D14: -
A15: With Legal Agreement | B15: 0 | C15: - | D15: -
J16: OK
A17: All Local Developments | B17: 1 | D17: 8 | J17: OK | K17: OK
A18: Without Legal Agreement | B18: 1 | C18: 1 | D18: 8
A19: With Legal Agreement | B19: 0 | C19: 0 | D19: -
A20: Local: less than 2 months | B20: 1 | C20: 1 | D20: 8 | J20: OK | K20: OK
A21: Local: more than 2 months | B21: 0 | C21: 0 | D21: -
A23: All Local developments (non-householder) | B23: 1 | D23: 8 | J23: OK | K23: OK
A24: Local: less than 2 months | B24: 1 | C24: 1 | D24: 8
A25: Local: more than 2 months | B25: 0 | C25: 0 | D25: -
A27: Householder developments | B27: 0 | D27: - | J27: OK
A28: Local: less than 2 months | B28: 0 | C28: - | D28: -
A29: Local: more than 2 months | B29: 0 | C29: - | D29: -
A31: Housing Developments - Major | B31: 0 | D31: -
A33: Housing Developments - Local | B33: 0 | D33: - | J33: OK
A34: Local: less than 2 months | B34: 0 | C34: - | D34: -
A35: Local: more than 2 months | B35: 0 | C35: - | D35: -
A37: Business & Industry - Major | B37: 0 | D37: -
A39: Business & Industry - Local | B39: 0 | D39: - | J39: OK
A40: Local: less than 2 months | B40: 0 | C40: - | D40: -
A41: Local: more than 2 months | B41: 0 | C41: - | D41: -
A43: Other developments - Major | B43: 0 | D43: -
A45: Other developments - Local | B45: 1 | D45: 8 | J45: OK | K45: OK
A46: Local: less than 2 months | B46: 1 | C46: 1 | D46: 8
A47: Local: more than 2 months | B47: 0 | C47: 0 | D47: -
A49: EIA Developments | B49: 0 | D49: -
A50: Other Consents | B50: 0 | D50: -
A52: Decision Making: Applications subject to
A53: Planning/Legal Agreements | B53: 0 | D53: -
A54: Local Reviews | B54: 0 | D54: - | J54: Check local review totals
J55: OK
A56: Decision Making: Local Reviews and Appeals
B58: Total number of decisions | C58: Original decision upheld (%)
A59: Local Reviews | B59: 0 | C59: -
A60: Appeals to Scottish Ministers2 | B60: 2 | C60: 0
A62: Enforcement Activity
B64: Number
A65: Cases Taken Up | B65: 6
A66: Notices Served | B66: 0
A67: Reports to Procurator Fiscal | B67: 0
A68: Prosecutions | B68: 0
A69: Number of breaches resolved | B69: 15
A70: Approved and Delegated
A72: Percentage Approved | B72: 0.9 | I72: Approved | J72: 9 | K72: 10 | L72: Total Applications less N17
A73: Percentage Delegated | B73: 0 | I73: Delegated | J73: 0 | K73: 10 | L73: Total Applications
K74: 4 | L74: applications received
A75: 1. For a full description of the categories in this analysis please see NOTES page.
A76: 2. Cases where the decision was recalled and made by Ministers are not included in these figures.
A77: 3. Time has not been removed from the decision time for any applications.

Sheet Clackmannanshire
A1: Planning Authority Performance Statistics1,3 | D1: Clackmannanshire | I1: For Scottish Government Use during analysis Please do not delete or move these columns
D2: 2018/19 Q3 | J2: Check total number of applications
D3: All Applications excluding Legacy Cases | J3: 63 | K3: total apps | M3: OK
A5: Processing Agreements | B5: Total Number of Decisions | C5: % Within Agreed Timescales
A6: TOTAL | B6: 0 | C6: -
A7: Major Applications | B7: 0 | C7: -
A8: Local Applications | B8: 0 | C8: -
A9: EIA Applications | B9: 0 | C9: -
A10: Other Applications | B10: 0 | C10: -
A11: Applications with processing agreements are not included in the following figures.
B12: Total Number of Decisions | C12: Proportion of Decisions | D12: Average Time (Weeks) | J12: check sums to total
A13: All Major Developments | B13: 0 | D13: - | J13: OK
A14: Without Legal Agreement | B14: 0 | C14: - | D14: -
A15: With Legal Agreement | B15: 0 | C15: - | D15: -
J16: OK
A17: All Local Developments | B17: 53 | D17: 5.970350404 | J17: OK | K17: OK
A18: Without Legal Agreement | B18: 53 | C18: 1 | D18: 5.970350404
A19: With Legal Agreement | B19: 0 | C19: 0 | D19: -
A20: Local: less than 2 months | B20: 51 | C20: 0.9622641509 | D20: 5.106442577 | J20: OK | K20: OK | L20: OK
A21: Local: more than 2 months | B21: 2 | C21: 0.03773584906 | D21: 28
A23: All Local developments (non-householder) | B23: 17 | D23: 8.781512605 | J23: OK | K23: OK | L23: OK
A24: Local: less than 2 months | B24: 15 | C24: 0.8823529412 | D24: 6.219047619
A25: Local: more than 2 months | B25: 2 | C25: 0.1176470588 | D25: 28
A27: Householder developments | B27: 36 | D27: 4.642857143 | J27: OK | K27: OK
A28: Local: less than 2 months | B28: 36 | C28: 1 | D28: 4.642857143
A29: Local: more than 2 months | B29: 0 | C29: 0 | D29: -
A31: Housing Developments - Major | B31: 0 | D31: -
A33: Housing Developments - Local | B33: 6 | D33: 13.64285714 | J33: OK | K33: OK | L33: OK
A34: Local: less than 2 months | B34: 4 | C34: 0.6666666667 | D34: 6.464285714
A35: Local: more than 2 months | B35: 2 | C35: 0.3333333333 | D35: 28
A37: Business & Industry - Major | B37: 0 | D37: -
A39: Business & Industry - Local | B39: 6 | D39: 5.880952381 | J39: OK | K39: OK
A40: Local: less than 2 months | B40: 6 | C40: 1 | D40: 5.880952381
A41: Local: more than 2 months | B41: 0 | C41: 0 | D41: -
A43: Other developments - Major | B43: 0 | D43: -
A45: Other developments - Local | B45: 4 | D45: 5.928571429 | J45: OK | K45: OK
A46: Local: less than 2 months | B46: 4 | C46: 1 | D46: 5.928571429
A47: Local: more than 2 months | B47: 0 | C47: 0 | D47: -
A49: EIA Developments | B49: 0 | D49: -
A50: Other Consents | B50: 10 | D50: 4.428571429
A52: Decision Making: Applications subject to
A53: Planning/Legal Agreements | B53: 0 | D53: -
A54: Local Reviews | B54: 0 | D54: - | J54: Check local review totals
J55: OK
A56: Decision Making: Local Reviews and Appeals
B58: Total number of decisions | C58: Original decision upheld (%)
A59: Local Reviews | B59: 0 | C59: -
A60: Appeals to Scottish Ministers2 | B60: 0
A62: Enforcement Activity
B64: Number
A65: Cases Taken Up | B65: 8
A66: Notices Served | B66: 0
A67: Reports to Procurator Fiscal | B67: 0
A68: Prosecutions | B68: 0
A69: Number of breaches resolved | B69: 6
A70: Approved and Delegated
A72: Percentage Approved | B72: 0.9838709677 | I72: Approved | J72: 61 | K72: 62 | L72: Total Applications less N17
A73: Percentage Delegated | B73: 0.9841269841 | I73: Delegated | J73: 62 | K73: 63 | L73: Total Applications
K74: 71 | L74: applications received
A75: 1. For a full description of the categories in this analysis please see NOTES page.
A76: 2. Cases where the decision was recalled and made by Ministers are not included in these figures.
A77: 3. Time has been removed from the decision time for 1 application where delays were outwith the control of the local authority.

Sheet Dumfries and Galloway
A1: Planning Authority Performance Statistics1,3 | D1: Dumfries and Galloway | I1: For Scottish Government Use during analysis Please do not delete or move these columns
D2: 2018/19 Q3 | J2: Check total number of applications
D3: All Applications excluding Legacy Cases | J3: 313 | K3: total apps | M3: OK
A5: Processing Agreements | B5: Total Number of Decisions | C5: % Within Agreed Timescales
A6: TOTAL | B6: 17 | C6: 1
A7: Major Applications | B7: 4 | C7: 1
A8: Local Applications | B8: 13 | C8: 1
A9: EIA Applications | B9: 0 | C9: -
A10: Other Applications | B10: 0 | C10: -
A11: Applications with processing agreements are not included in the following figures.
B12: Total Number of Decisions | C12: Proportion of Decisions | D12: Average Time (Weeks) | J12: check sums to total
A13: All Major Developments | B13: 1 | D13: 37.14285714 | J13: OK | K13: OK
A14: Without Legal Agreement | B14: 1 | C14: 1 | D14: 37.14285714
A15: With Legal Agreement | B15: 0 | C15: 0 | D15: -
J16: OK
A17: All Local Developments | B17: 237 | D17: 8.330922242 | J17: OK | K17: OK | L17: OK
A18: Without Legal Agreement | B18: 236 | C18: 0.9957805907 | D18: 8.339588378
A19: With Legal Agreement | B19: 1 | C19: 0.004219409283 | D19: 6.285714286
A20: Local: less than 2 months | B20: 169 | C20: 0.7130801688 | D20: 5.783601014 | J20: OK | K20: OK | L20: OK
A21: Local: more than 2 months | B21: 68 | C21: 0.2869198312 | D21: 14.66176471
A23: All Local developments (non-householder) | B23: 149 | D23: 9.708533078 | J23: OK | K23: OK | L23: OK
A24: Local: less than 2 months | B24: 87 | C24: 0.5838926174 | D24: 6.215106732
A25: Local: more than 2 months | B25: 62 | C25: 0.4161073826 | D25: 14.61059908
A27: Householder developments | B27: 88 | D27: 5.998376623 | J27: OK | K27: OK | L27: OK
A28: Local: less than 2 months | B28: 82 | C28: 0.9318181818 | D28: 5.325783972
A29: Local: more than 2 months | B29: 6 | C29: 0.06818181818 | D29: 15.19047619
A31: Housing Developments - Major | B31: 1 | D31: 37.14285714
A33: Housing Developments - Local | B33: 61 | D33: 10.94379391 | J33: OK | K33: OK | L33: OK
A34: Local: less than 2 months | B34: 30 | C34: 0.4918032787 | D34: 6.861904762
A35: Local: more than 2 months | B35: 31 | C35: 0.5081967213 | D35: 14.89400922
A37: Business & Industry - Major | B37: 0 | D37: -
A39: Business & Industry - Local | B39: 0 | D39: - | J39: OK
A40: Local: less than 2 months | B40: 0 | C40: - | D40: -
A41: Local: more than 2 months | B41: 0 | C41: - | D41: -
A43: Other developments - Major | B43: 0 | D43: -
A45: Other developments - Local | B45: 85 | D45: 8.690756303 | J45: OK | K45: OK | L45: OK
A46: Local: less than 2 months | B46: 56 | C46: 0.6588235294 | D46: 5.864795918
A47: Local: more than 2 months | B47: 29 | C47: 0.3411764706 | D47: 14.14778325
A49: EIA Developments | B49: 0 | D49: -
A50: Other Consents | B50: 58 | D50: 7.022167488
A52: Decision Making: Applications subject to
A53: Planning/Legal Agreements | B53: 1 | D53: 6.285714286
A54: Local Reviews | B54: 1 | D54: 22.28571429 | J54: Check local review totals
J55: OK
A56: Decision Making: Local Reviews and Appeals
B58: Total number of decisions | C58: Original decision upheld (%)
A59: Local Reviews | B59: 1 | C59: 0
A60: Appeals to Scottish Ministers2 | B60: 4 | C60: 0.5
A62: Enforcement Activity
B64: Number
A65: Cases Taken Up | B65: 31
A66: Notices Served | B66: 1
A67: Reports to Procurator Fiscal | B67: 0
A68: Prosecutions | B68: 0
A69: Number of breaches resolved | B69: 23
A70: Approved and Delegated
A72: Percentage Approved | B72: 0.9397993311 | I72: Approved | J72: 281 | K72: 299 | L72: Total Applications less N17
A73: Percentage Delegated | B73: 0.9297124601 | I73: Delegated | J73: 291 | K73: 313 | L73: Total Applications
K74: 313 | L74: applications received
A75: 1. For a full description of the categories in this analysis please see NOTES page.
A76: 2. Cases where the decision was recalled and made by Ministers are not included in these figures.
A77: 3. Time has been removed from the decision time for 15 applications where delays were outwith the control of the local authority.

Sheet Dundee
A1: Planning Authority Performance Statistics1,3 | D1: Dundee City | I1: For Scottish Government Use during analysis Please do not delete or move these columns
D2: 2018/19 Q3 | J2: Check total number of applications
D3: All Applications excluding Legacy Cases | J3: 178 | K3: total apps | M3: OK
A5: Processing Agreements | B5: Total Number of Decisions | C5: % Within Agreed Timescales
A6: TOTAL | B6: 0 | C6: -
A7: Major Applications | B7: 0 | C7: -
A8: Local Applications | B8: 0 | C8: -
A9: EIA Applications | B9: 0 | C9: -
A10: Other Applications | B10: 0 | C10: -
A11: Applications with processing agreements are not included in the following figures.
B12: Total Number of Decisions | C12: Proportion of Decisions | D12: Average Time (Weeks) | J12: check sums to total
A13: All Major Developments | B13: 2 | D13: 17.28571429 | J13: OK | K13: OK
A14: Without Legal Agreement | B14: 2 | C14: 1 | D14: 17.28571429
A15: With Legal Agreement | B15: 0 | C15: 0 | D15: -
J16: OK
A17: All Local Developments | B17: 133 | D17: 10.00859291 | J17: OK | K17: OK | L17: OK
A18: Without Legal Agreement | B18: 132 | C18: 0.992481203 | D18: 9.896103896
A19: With Legal Agreement | B19: 1 | C19: 0.007518796992 | D19: 24.85714286
A20: Local: less than 2 months | B20: 91 | C20: 0.6842105263 | D20: 7.422291994 | J20: OK | K20: OK | L20: OK
A21: Local: more than 2 months | B21: 42 | C21: 0.3157894737 | D21: 15.6122449
A23: All Local developments (non-householder) | B23: 62 | D23: 11.98847926 | J23: OK | K23: OK | L23: OK
A24: Local: less than 2 months | B24: 36 | C24: 0.5806451613 | D24: 7.337301587
A25: Local: more than 2 months | B25: 26 | C25: 0.4193548387 | D25: 18.42857143
A27: Householder developments | B27: 71 | D27: 8.279678068 | J27: OK | K27: OK | L27: OK
A28: Local: less than 2 months | B28: 55 | C28: 0.7746478873 | D28: 7.477922078
A29: Local: more than 2 months | B29: 16 | C29: 0.2253521127 | D29: 11.03571429
A31: Housing Developments - Major | B31: 2 | D31: 17.28571429
A33: Housing Developments - Local | B33: 12 | D33: 12.57142857 | J33: OK | K33: OK | L33: OK
A34: Local: less than 2 months | B34: 3 | C34: 0.25 | D34: 6.952380952
A35: Local: more than 2 months | B35: 9 | C35: 0.75 | D35: 14.44444444
A37: Business & Industry - Major | B37: 0 | D37: -
A39: Business & Industry - Local | B39: 12 | D39: 7.345238095 | J39: OK | K39: OK
A40: Local: less than 2 months | B40: 12 | C40: 1 | D40: 7.345238095
A41: Local: more than 2 months | B41: 0 | C41: 0 | D41: -
A43: Other developments - Major | B43: 0 | D43: -
A45: Other developments - Local | B45: 36 | D45: 13.58333333 | J45: OK | K45: OK | L45: OK
A46: Local: less than 2 months | B46: 19 | C46: 0.5277777778 | D46: 7.360902256
A47: Local: more than 2 months | B47: 17 | C47: 0.4722222222 | D47: 20.53781513
A49: EIA Developments | B49: 0 | D49: -
A50: Other Consents | B50: 43 | D50: 10.56146179
A52: Decision Making: Applications subject to
A53: Planning/Legal Agreements | B53: 1 | D53: 24.85714286
A54: Local Reviews | B54: 2 | D54: 4.5 | J54: Check local review totals
J55: OK
A56: Decision Making: Local Reviews and Appeals
B58: Total number of decisions | C58: Original decision upheld (%)
A59: Local Reviews | B59: 2 | C59: 1
A60: Appeals to Scottish Ministers2 | B60: 0
A62: Enforcement Activity
B64: Number
A65: Cases Taken Up | B65: 15
A66: Notices Served | B66: 0
A67: Reports to Procurator Fiscal | B67: 0
A68: Prosecutions | B68: 0
A69: Number of breaches resolved | B69: 12
A70: Approved and Delegated
A72: Percentage Approved | B72: 0.9476744186 | I72: Approved | J72: 163 | K72: 172 | L72: Total Applications less N17
A73: Percentage Delegated | B73: 0.9494382022 | I73: Delegated | J73: 169 | K73: 178 | L73: Total Applications
K74: 145 | L74: applications received
A75: 1. For a full description of the categories in this analysis please see NOTES page.
A76: 2. Cases where the decision was recalled and made by Ministers are not included in these figures.
A77: 3. Time has been removed from the decision time for 7 applications where delays were outwith the control of the local authority.

Sheet East Ayrshire
A1: Planning Authority Performance Statistics1,3 | D1: East Ayrshire | I1: For Scottish Government Use during analysis Please do not delete or move these columns
D2: 2018/19 Q3 | J2: Check total number of applications
D3: All Applications excluding Legacy Cases | J3: 138 | K3: total apps | M3: OK
A5: Processing Agreements | B5: Total Number of Decisions | C5: % Within Agreed Timescales
A6: TOTAL | B6: 13 | C6: 0.07692307692
A7: Major Applications | B7: 0 | C7: -
A8: Local Applications | B8: 12 | C8: 0.08333333333
A9: EIA Applications | B9: 0 | C9: -
A10: Other Applications | B10: 1 | C10: 0
A11: Applications with processing agreements are not included in the following figures.
B12: Total Number of Decisions | C12: Proportion of Decisions | D12: Average Time (Weeks) | J12: check sums to total
A13: All Major Developments | B13: 0 | D13: - | J13: OK
A14: Without Legal Agreement | B14: 0 | C14: - | D14: -
A15: With Legal Agreement | B15: 0 | C15: - | D15: -
J16: OK
A17: All Local Developments | B17: 90 | D17: 9.087301587 | J17: OK | K17: OK
A18: Without Legal Agreement | B18: 90 | C18: 1 | D18: 9.087301587
A19: With Legal Agreement | B19: 0 | C19: 0 | D19: -
A20: Local: less than 2 months | B20: 76 | C20: 0.8444444444 | D20: 6.998120301 | J20: OK | K20: OK | L20: OK
A21: Local: more than 2 months | B21: 14 | C21: 0.1555555556 | D21: 20.42857143
A23: All Local developments (non-householder) | B23: 55 | D23: 10.5974026 | J23: OK | K23: OK | L23: OK
A24: Local: less than 2 months | B24: 42 | C24: 0.7636363636 | D24: 7.316326531
A25: Local: more than 2 months | B25: 13 | C25: 0.2363636364 | D25: 21.1978022
A27: Householder developments | B27: 35 | D27: 6.714285714 | J27: OK | K27: OK | L27: OK
A28: Local: less than 2 months | B28: 34 | C28: 0.9714285714 | D28: 6.605042017
A29: Local: more than 2 months | B29: 1 | C29: 0.02857142857 | D29: 10.42857143
A31: Housing Developments - Major | B31: 0 | D31: -
A33: Housing Developments - Local | B33: 18 | D33: 13.25396825 | J33: OK | K33: OK | L33: OK
A34: Local: less than 2 months | B34: 11 | C34: 0.6111111111 | D34: 7.155844156
A35: Local: more than 2 months | B35: 7 | C35: 0.3888888889 | D35: 22.83673469
A37: Business & Industry - Major | B37: 0 | D37: -
A39: Business & Industry - Local | B39: 22 | D39: 10.33116883 | J39: OK | K39: OK | L39: OK
A40: Local: less than 2 months | B40: 17 | C40: 0.7727272727 | D40: 7.201680672
A41: Local: more than 2 months | B41: 5 | C41: 0.2272727273 | D41: 20.97142857
A43: Other developments - Major | B43: 0 | D43: -
A45: Other developments - Local | B45: 13 | D45: 7.505494505 | J45: OK | K45: OK
A46: Local: less than 2 months | B46: 13 | C46: 1 | D46: 7.505494505
A47: Local: more than 2 months | B47: 0 | C47: 0 | D47: -
A49: EIA Developments | B49: 0 | D49: -
A50: Other Consents | B50: 35 | D50: 6.897959184
A52: Decision Making: Applications subject to
A53: Planning/Legal Agreements | B53: 1 | D53: 8.142857143
A54: Local Reviews | B54: 0 | D54: - | J54: Check local review totals
J55: OK
A56: Decision Making: Local Reviews and Appeals
B58: Total number of decisions | C58: Original decision upheld (%)
A59: Local Reviews | B59: 0 | C59: -
A60: Appeals to Scottish Ministers2 | B60: 3 | C60: 1
A62: Enforcement Activity
B64: Number
A65: Cases Taken Up | B65: 40
A66: Notices Served | B66: 4
A67: Reports to Procurator Fiscal | B67: 0
A68: Prosecutions | B68: 0
A69: Number of breaches resolved | B69: 41
A70: Approved and Delegated
A72: Percentage Approved | B72: 0.9212598425 | I72: Approved | J72: 117 | K72: 127 | L72: Total Applications less N17
A73: Percentage Delegated | B73: 1 | I73: Delegated | J73: 138 | K73: 138 | L73: Total Applications
K74: 124 | L74: applications received
A75: 1. For a full description of the categories in this analysis please see NOTES page.
A76: 2. Cases where the decision was recalled and made by Ministers are not included in these figures.
A77: 3. Time has been removed from the decision time for 15 applications where delays were outwith the control of the local authority.

Sheet East Dunbartonshire
A1: Planning Authority Performance Statistics1,3 | D1: East Dunbartonshire | I1: For Scottish Government Use during analysis Please do not delete or move these columns
D2: 2018/19 Q3 | J2: Check total number of applications
D3: All Applications excluding Legacy Cases | J3: 193 | K3: total apps | M3: OK
A5: Processing Agreements | B5: Total Number of Decisions | C5: % Within Agreed Timescales
A6: TOTAL | B6: 0 | C6: -
A7: Major Applications | B7: 0 | C7: -
A8: Local Applications | B8: 0 | C8: -
A9: EIA Applications | B9: 0 | C9: -
A10: Other Applications | B10: 0 | C10: -
A11: Applications with processing agreements are not included in the following figures.
B12: Total Number of Decisions | C12: Proportion of Decisions | D12: Average Time (Weeks) | J12: check sums to total
A13: All Major Developments | B13: 0 | D13: - | J13: OK
A14: Without Legal Agreement | B14: 0 | C14: - | D14: -
A15: With Legal Agreement | B15: 0 | C15: - | D15: -
J16: OK
A17: All Local Developments | B17: 169 | D17: 7.875739645 | J17: OK | K17: OK | L17: OK
A18: Without Legal Agreement | B18: 167 | C18: 0.9881656805 | D18: 7.693755346
A19: With Legal Agreement | B19: 2 | C19: 0.01183431953 | D19: 23.07142857
A20: Local: less than 2 months | B20: 152 | C20: 0.899408284 | D20: 7.137218045 | J20: OK | K20: OK | L20: OK
A21: Local: more than 2 months | B21: 17 | C21: 0.100591716 | D21: 14.4789916
A23: All Local developments (non-householder) | B23: 23 | D23: 10.34782609 | J23: OK | K23: OK | L23: OK
A24: Local: less than 2 months | B24: 16 | C24: 0.6956521739 | D24: 6.991071429
A25: Local: more than 2 months | B25: 7 | C25: 0.3043478261 | D25: 18.02040816
A27: Householder developments | B27: 146 | D27: 7.48630137 | J27: OK | K27: OK | L27: OK
A28: Local: less than 2 months | B28: 136 | C28: 0.9315068493 | D28: 7.154411765
A29: Local: more than 2 months | B29: 10 | C29: 0.06849315068 | D29: 12
A31: Housing Developments - Major | B31: 0 | D31: -
A33: Housing Developments - Local | B33: 3 | D33: 16.9047619 | J33: OK | K33: OK | L33: OK
A34: Local: less than 2 months | B34: 1 | C34: 0.3333333333 | D34: 5
A35: Local: more than 2 months | B35: 2 | C35: 0.6666666667 | D35: 22.85714286
A37: Business & Industry - Major | B37: 0 | D37: -
A39: Business & Industry - Local | B39: 1 | D39: 18.71428571 | J39: OK | K39: OK
A40: Local: less than 2 months | B40: 0 | C40: 0 | D40: -
A41: Local: more than 2 months | B41: 1 | C41: 1 | D41: 18.71428571
A43: Other developments - Major | B43: 0 | D43: -
A45: Other developments - Local | B45: 19 | D45: 8.872180451 | J45: OK | K45: OK | L45: OK
A46: Local: less than 2 months | B46: 15 | C46: 0.7894736842 | D46: 7.123809524
A47: Local: more than 2 months | B47: 4 | C47: 0.2105263158 | D47: 15.42857143
A49: EIA Developments | B49: 0 | D49: -
A50: Other Consents | B50: 24 | D50: 6.648809524
A52: Decision Making: Applications subject to
A53: Planning/Legal Agreements | B53: 2 | D53: 23.07142857
A54: Local Reviews | B54: 0 | D54: - | J54: Check local review totals
J55: OK
A56: Decision Making: Local Reviews and Appeals
B58: Total number of decisions | C58: Original decision upheld (%)
A59: Local Reviews | B59: 0 | C59: -
A60: Appeals to Scottish Ministers2 | B60: 1 | C60: 1
A62: Enforcement Activity
B64: Number
A65: Cases Taken Up | B65: 15
A66: Notices Served | B66: 0
A67: Reports to Procurator Fiscal | B67: 0
A68: Prosecutions | B68: 0
A69: Number of breaches resolved | B69: 16
A70: Approved and Delegated
A72: Percentage Approved | B72: 0.9378531073 | I72: Approved | J72: 166 | K72: 177 | L72: Total Applications less N17
A73: Percentage Delegated | B73: 0.9844559585 | I73: Delegated | J73: 190 | K73: 193 | L73: Total Applications
K74: 171 | L74: applications received
A75: 1. For a full description of the categories in this analysis please see NOTES page.
A76: 2. Cases where the decision was recalled and made by Ministers are not included in these figures.
A77: 3. Time has been removed from the decision time for 40 applications where delays were outwith the control of the local authority.

Sheet East Lothian
A1: Planning Authority Performance Statistics1,3 | D1: East Lothian | I1: For Scottish Government Use during analysis Please do not delete or move these columns
D2: 2018/19 Q3 | J2: Check total number of applications
D3: All Applications excluding Legacy Cases | J3: 297 | K3: total apps | M3: error | N3: 295
A5: Processing Agreements | B5: Total Number of Decisions | C5: % Within Agreed Timescales | J5: The difference of 2 in the total is due to 2 legacy cases, which is not an error.
A6: TOTAL | B6: 0 | C6: -
A7: Major Applications | B7: 0 | C7: -
A8: Local Applications | B8: 0 | C8: -
A9: EIA Applications | B9: 0 | C9: -
A10: Other Applications | B10: 0 | C10: -
A11: Applications with processing agreements are not included in the following figures.
B12: Total Number of Decisions | C12: Proportion of Decisions | D12: Average Time (Weeks) | J12: check sums to total
A13: All Major Developments | B13: 4 | D13: 33.92857143 | J13: OK | K13: OK | L13: OK
A14: Without Legal Agreement | B14: 3 | C14: 0.75 | D14: 32.23809524
A15: With Legal Agreement | B15: 1 | C15: 0.25 | D15: 39
J16: OK
A17: All Local Developments | B17: 223 | D17: 7.945547726 | J17: OK | K17: OK
A18: Without Legal Agreement | B18: 223 | C18: 1 | D18: 7.945547726
A19: With Legal Agreement | B19: 0 | C19: 0 | D19: -
A20: Local: less than 2 months | B20: 202 | C20: 0.9058295964 | D20: 7.31824611 | J20: OK | K20: OK | L20: OK
A21: Local: more than 2 months | B21: 21 | C21: 0.09417040359 | D21: 13.97959184
A23: All Local developments (non-householder) | B23: 78 | D23: 8.580586081 | J23: OK | K23: OK | L23: OK
A24: Local: less than 2 months | B24: 65 | C24: 0.8333333333 | D24: 7.18021978
A25: Local: more than 2 months | B25: 13 | C25: 0.1666666667 | D25: 15.58241758
A27: Householder developments | B27: 145 | D27: 7.603940887 | J27: OK | K27: OK | L27: OK
A28: Local: less than 2 months | B28: 137 | C28: 0.9448275862 | D28: 7.383733055
A29: Local: more than 2 months | B29: 8 | C29: 0.05517241379 | D29: 11.375
A31: Housing Developments - Major | B31: 2 | D31: 49.92857143
A33: Housing Developments - Local | B33: 17 | D33: 11.68067227 | J33: OK | K33: OK | L33: OK
A34: Local: less than 2 months | B34: 9 | C34: 0.5294117647 | D34: 8.349206349
A35: Local: more than 2 months | B35: 8 | C35: 0.4705882353 | D35: 15.42857143
A37: Business & Industry - Major | B37: 0 | D37: -
A39: Business & Industry - Local | B39: 9 | D39: 8.650793651 | J39: OK | K39: OK | L39: OK
A40: Local: less than 2 months | B40: 7 | C40: 0.7777777778 | D40: 7.653061224
A41: Local: more than 2 months | B41: 2 | C41: 0.2222222222 | D41: 12.14285714
A43: Other developments - Major | B43: 2 | D43: 17.92857143
A45: Other developments - Local | B45: 52 | D45: 7.554945055 | J45: OK | K45: OK | L45: OK
A46: Local: less than 2 months | B46: 49 | C46: 0.9423076923 | D46: 6.897959184
A47: Local: more than 2 months | B47: 3 | C47: 0.05769230769 | D47: 18.28571429
A49: EIA Developments | B49: 0 | D49: -
A50: Other Consents | B50: 68 | D50: 6.758403361
A52: Decision Making: Applications subject to
A53: Planning/Legal Agreements | B53: 1 | D53: 39
A54: Local Reviews | B54: 6 | D54: 9.904761905 | J54: Check local review totals
J55: OK
A56: Decision Making: Local Reviews and Appeals
B58: Total number of decisions | C58: Original decision upheld (%)
A59: Local Reviews | B59: 6 | C59: 0.3333333333
A60: Appeals to Scottish Ministers2 | B60: 0 | C60: 0
A62: Enforcement Activity
B64: Number
A65: Cases Taken Up | B65: 47
A66: Notices Served | B66: 11
A67: Reports to Procurator Fiscal | B67: 0
A68: Prosecutions | B68: 0
A69: Number of breaches resolved | B69: 78
A70: Approved and Delegated
A72: Percentage Approved | B72: 0.9684210526 | I72: Approved | J72: 276 | K72: 285 | L72: Total Applications less N17
A73: Percentage Delegated | B73: 0.9865319865 | I73: Delegated | J73: 293 | K73: 297 | L73: Total Applications
K74: 312 | L74: applications received
A75: 1. For a full description of the categories in this analysis please see NOTES page.
A76: 2. Cases where the decision was recalled and made by Ministers are not included in these figures.
A77: 3. Time has been removed from the decision time for 21 applications where delays were outwith the control of the local authority.

Sheet East Renfrewshire
A1: Planning Authority Performance Statistics1,3 | D1: East Renfrewshire | I1: For Scottish Government Use during analysis Please do not delete or move these columns
D2: 2018/19 Q3 | J2: Check total number of applications
D3: All Applications excluding Legacy Cases | J3: 159 | K3: total apps | M3: OK
A5: Processing Agreements | B5: Total Number of Decisions | C5: % Within Agreed Timescales
A6: TOTAL | B6: 0 | C6: -
A7: Major Applications | B7: 0 | C7: -
A8: Local Applications | B8: 0 | C8: -
A9: EIA Applications | B9: 0 | C9: -
A10: Other Applications | B10: 0 | C10: -
A11: Applications with processing agreements are not included in the following figures.
B12: Total Number of Decisions | C12: Proportion of Decisions | D12: Average Time (Weeks) | J12: check sums to total
A13: All Major Developments | B13: 0 | D13: - | J13: OK
A14: Without Legal Agreement | B14: 0 | C14: - | D14: -
A15: With Legal Agreement | B15: 0 | C15: - | D15: -
J16: OK
A17: All Local Developments | B17: 145 | D17: 8.398029557 | J17: OK | K17: OK | L17: OK
A18: Without Legal Agreement | B18: 144 | C18: 0.9931034483 | D18: 7.873015873
A19: With Legal Agreement | B19: 1 | C19: 0.006896551724 | D19: 84
A20: Local: less than 2 months | B20: 112 | C20: 0.7724137931 | D20: 6.257653061 | J20: OK | K20: OK | L20: OK
A21: Local: more than 2 months | B21: 33 | C21: 0.2275862069 | D21: 15.66233766
A23: All Local developments (non-householder) | B23: 25 | D23: 14.06285714 | J23: OK | K23: OK | L23: OK
A24: Local: less than 2 months | B24: 10 | C24: 0.4 | D24: 6.6
A25: Local: more than 2 months | B25: 15 | C25: 0.6 | D25: 19.03809524
A27: Householder developments | B27: 120 | D27: 7.217857143 | J27: OK | K27: OK | L27: OK
A28: Local: less than 2 months | B28: 102 | C28: 0.85 | D28: 6.224089636
A29: Local: more than 2 months | B29: 18 | C29: 0.15 | D29: 12.84920635
A31: Housing Developments - Major | B31: 0 | D31: -
A33: Housing Developments - Local | B33: 8 | D33: 12.92857143 | J33: OK | K33: OK | L33: OK
A34: Local: less than 2 months | B34: 2 | C34: 0.25 | D34: 8.142857143
A35: Local: more than 2 months | B35: 6 | C35: 0.75 | D35: 14.52380952
A37: Business & Industry - Major | B37: 0 | D37: -
A39: Business & Industry - Local | B39: 2 | D39: 6.785714286 | J39: OK | K39: OK
A40: Local: less than 2 months | B40: 2 | C40: 1 | D40: 6.785714286
A41: Local: more than 2 months | B41: 0 | C41: 0 | D41: -
A43: Other developments - Major | B43: 0 | D43: -
A45: Other developments - Local | B45: 12 | D45: 11.42857143 | J45: OK | K45: OK | L45: OK
A46: Local: less than 2 months | B46: 5 | C46: 0.4166666667 | D46: 6.371428571
A47: Local: more than 2 months | B47: 7 | C47: 0.5833333333 | D47: 15.04081633
A49: EIA Developments | B49: 0 | D49: -
A50: Other Consents | B50: 14 | D50: 4.612244898
A52: Decision Making: Applications subject to
A53: Planning/Legal Agreements | B53: 1 | D53: 84
A54: Local Reviews | B54: 12 | D54: 7.535714286 | J54: Check local review totals
J55: OK
A56: Decision Making: Local Reviews and Appeals
B58: Total number of decisions | C58: Original decision upheld (%)
A59: Local Reviews | B59: 12 | C59: 0.3333333333
A60: Appeals to Scottish Ministers2 | B60: 3 | C60: 0.667
A62: Enforcement Activity
B64: Number
A65: Cases Taken Up | B65: 0
A66: Notices Served | B66: 0
A67: Reports to Procurator Fiscal | B67: 0
A68: Prosecutions | B68: 0
A69: Number of breaches resolved | B69: 7
A70: Approved and Delegated
A72: Percentage Approved | B72: 0.9205298013 | I72: Approved | J72: 139 | K72: 151 | L72: Total Applications less N17
A73: Percentage Delegated | B73: 0.9748427673 | I73: Delegated | J73: 155 | K73: 159 | L73: Total Applications
K74: 159 | L74: applications received
A75: 1. For a full description of the categories in this analysis please see NOTES page.
A76: 2. Cases where the decision was recalled and made by Ministers are not included in these figures.
A77: 3. Time has been removed from the decision time for 3 applications where delays were outwith the control of the local authority.

Sheet City of Edinburgh
A1: Planning Authority Performance Statistics1,3 | D1: City of Edinburgh | I1: For Scottish Government Use during analysis Please do not delete or move these columns
D2: 2018/19 Q3 | J2: Check total number of applications
D3: All Applications excluding Legacy Cases | J3: 826 | K3: total apps | M3: error | N3: 825
A5: Processing Agreements | B5: Total Number of Decisions | C5: % Within Agreed Timescales | J5: difference of 1 is OK it's a legacy case.
A6: TOTAL | B6: 70 | C6: 0.7285714286
A7: Major Applications | B7: 3 | C7: 0.6666666667
A8: Local Applications | B8: 48 | C8: 0.7291666667
A9: EIA Applications | B9: 0 | C9: -
A10: Other Applications | B10: 19 | C10: 0.7368421053
A11: Applications with processing agreements are not included in the following figures.
B12: Total Number of Decisions | C12: Proportion of Decisions | D12: Average Time (Weeks) | J12: check sums to total
A13: All Major Developments | B13: 3 | D13: 33.28571429 | J13: OK | K13: OK | L13: OK
A14: Without Legal Agreement | B14: 1 | C14: 0.3333333333 | D14: 20.14285714
A15: With Legal Agreement | B15: 2 | C15: 0.6666666667 | D15: 39.85714286
J16: OK
A17: All Local Developments | B17: 459 | D17: 11.62994087 | J17: OK | K17: OK | L17: OK
A18: Without Legal Agreement | B18: 451 | C18: 0.9825708061 | D18: 10.06746912
A19: With Legal Agreement | B19: 8 | C19: 0.0174291939 | D19: 99.71428571
A20: Local: less than 2 months | B20: 321 | C20: 0.6993464052 | D20: 7.408099688 | J20: OK | K20: OK | L20: OK
A21: Local: more than 2 months | B21: 138 | C21: 0.3006535948 | D21: 21.45031056
A23: All Local developments (non-householder) | B23: 157 | D23: 17.77252047 | J23: OK | K23: OK | L23: OK
A24: Local: less than 2 months | B24: 76 | C24: 0.4840764331 | D24: 7.086466165
A25: Local: more than 2 months | B25: 81 | C25: 0.5159235669 | D25: 27.7989418
A27: Householder developments | B27: 302 | D27: 8.436613056 | J27: OK | K27: OK | L27: OK
A28: Local: less than 2 months | B28: 245 | C28: 0.8112582781 | D28: 7.50787172
A29: Local: more than 2 months | B29: 57 | C29: 0.1887417219 | D29: 12.42857143
A31: Housing Developments - Major | B31: 1 | D31: 8.428571429
A33: Housing Developments - Local | B33: 33 | D33: 30.14718615 | J33: OK | K33: OK | L33: OK
A34: Local: less than 2 months | B34: 9 | C34: 0.2727272727 | D34: 7.158730159
A35: Local: more than 2 months | B35: 24 | C35: 0.7272727273 | D35: 38.76785714
A37: Business & Industry - Major | B37: 0 | D37: -
A39: Business & Industry - Local | B39: 12 | D39: 13.45238095 | J39: OK | K39: OK | L39: OK
A40: Local: less than 2 months | B40: 6 | C40: 0.5 | D40: 7.261904762
A41: Local: more than 2 months | B41: 6 | C41: 0.5 | D41: 19.64285714
A43: Other developments - Major | B43: 2 | D43: 45.71428571
A45: Other developments - Local | B45: 100 | D45: 14.44428571 | J45: OK | K45: OK | L45: OK
A46: Local: less than 2 months | B46: 52 | C46: 0.52 | D46: 7.024725275
A47: Local: more than 2 months | B47: 48 | C47: 0.48 | D47: 22.48214286
A49: EIA Developments | B49: 0 | D49: -
A50: Other Consents | B50: 293 | D50: 10.51828376
A52: Decision Making: Applications subject to
A53: Planning/Legal Agreements | B53: 10 | D53: 87.74285714
A54: Local Reviews | B54: 28 | D54: 8.908163265 | J54: Check local review totals
J55: OK
A56: Decision Making: Local Reviews and Appeals
B58: Total number of decisions | C58: Original decision upheld (%)
A59: Local Reviews | B59: 28 | C59: 0.7142857143
A60: Appeals to Scottish Ministers2 | B60: 27 | C60: 0.519
A62: Enforcement Activity
B64: Number
A65: Cases Taken Up | B65: 163
A66: Notices Served | B66: 16
A67: Reports to Procurator Fiscal | B67: 0
A68: Prosecutions | B68: 0
A69: Number of breaches resolved | B69: 41
A70: Approved and Delegated
A72: Percentage Approved | B72: 0.9056847545 | I72: Approved | J72: 701 | K72: 774 | L72: Total Applications less N17
A73: Percentage Delegated | B73: 0.9661016949 | I73: Delegated | J73: 798 | K73: 826 | L73: Total Applications
K74: 998 | L74: applications received
A75: 1. For a full description of the categories in this analysis please see NOTES page.
A76: 2. Cases where the decision was recalled and made by Ministers are not included in these figures.
A77: 3. Time has been removed from the decision time for 2 applications where delays were outwith the control of the local authority.

Sheet Falkirk
A1: Planning Authority Performance Statistics1,3 | D1: Falkirk | I1: For Scottish Government Use during analysis Please do not delete or move these columns
D2: 2018/19 Q3 | J2: Check total number of applications
D3: All Applications excluding Legacy Cases | J3: 140 | K3: total apps | M3: error
J4: 139 | K4: total apps ex legacy | M4: OK
A5: Processing Agreements | B5: Total Number of Decisions | C5: % Within Agreed Timescales
A6: TOTAL | B6: 0 | C6: -
A7: Major Applications | B7: 0 | C7: -
A8: Local Applications | B8: 0 | C8: -
A9: EIA Applications | B9: 0 | C9: -
A10: Other Applications | B10: 0 | C10: -
A11: Applications with processing agreements are not included in the following figures.
B12: Total Number of Decisions | C12: Proportion of Decisions | D12: Average Time (Weeks) | J12: check sums to total
A13: All Major Developments | B13: 0 | D13: - | J13: OK
A14: Without Legal Agreement | B14: 0 | C14: - | D14: -
A15: With Legal Agreement | B15: 0 | C15: - | D15: -
J16: OK
A17: All Local Developments | B17: 117 | D17: 7.437118437 | J17: OK | K17: OK | L17: OK
A18: Without Legal Agreement | B18: 116 | C18: 0.9914529915 | D18: 7.334975369
A19: With Legal Agreement | B19: 1 | C19: 0.008547008547 | D19: 19.28571429
A20: Local: less than 2 months | B20: 94 | C20: 0.8034188034 | D20: 5.952887538 | J20: OK | K20: OK | L20: OK
A21: Local: more than 2 months | B21: 23 | C21: 0.1965811966 | D21: 13.50310559
A23: All Local developments (non-householder) | B23: 53 | D23: 8.916442049 | J23: OK | K23: OK | L23: OK
A24: Local: less than 2 months | B24: 36 | C24: 0.679245283 | D24: 6.166666667
A25: Local: more than 2 months | B25: 17 | C25: 0.320754717 | D25: 14.7394958
A27: Householder developments | B27: 64 | D27: 6.212053571 | J27: OK | K27: OK | L27: OK
A28: Local: less than 2 months | B28: 58 | C28: 0.90625 | D28: 5.820197044
A29: Local: more than 2 months | B29: 6 | C29: 0.09375 | D29: 10
A31: Housing Developments - Major | B31: 0 | D31: -
A33: Housing Developments - Local | B33: 19 | D33: 9.233082707 | J33: OK | K33: OK | L33: OK
A34: Local: less than 2 months | B34: 12 | C34: 0.6315789474 | D34: 6.476190476
A35: Local: more than 2 months | B35: 7 | C35: 0.3684210526 | D35: 13.95918367
A37: Business & Industry - Major | B37: 0 | D37: -
A39: Business & Industry - Local | B39: 2 | D39: 7.214285714 | J39: OK | K39: OK | L39: OK
A40: Local: less than 2 months | B40: 1 | C40: 0.5 | D40: 5.142857143
A41: Local: more than 2 months | B41: 1 | C41: 0.5 | D41: 9.285714286
A43: Other developments - Major | B43: 0 | D43: -
A45: Other developments - Local | B45: 32 | D45: 8.834821429 | J45: OK | K45: OK | L45: OK
A46: Local: less than 2 months | B46: 23 | C46: 0.71875 | D46: 6.049689441
A47: Local: more than 2 months | B47: 9 | C47: 0.28125 | D47: 15.95238095
A49: EIA Developments | B49: 0 | D49: -
A50: Other Consents | B50: 22 | D50: 6.357142857
A52: Decision Making: Applications subject to
A53: Planning/Legal Agreements | B53: 1 | D53: 19.28571429
A54: Local Reviews | B54: 0 | D54: - | J54: Check local review totals
J55: OK
A56: Decision Making: Local Reviews and Appeals
B58: Total number of decisions | C58: Original decision upheld (%)
A59: Local Reviews | B59: 0 | C59: -
A60: Appeals to Scottish Ministers2 | B60: 1 | C60: 0
A62: Enforcement Activity
B64: Number
A65: Cases Taken Up | B65: 23
A66: Notices Served | B66: 1
A67: Reports to Procurator Fiscal | B67: 0
A68: Prosecutions | B68: 0
A69: Number of breaches resolved | B69: 3
A70: Approved and Delegated
A72: Percentage Approved | B72: 0.969924812 | I72: Approved | J72: 129 | K72: 133 | L72: Total Applications less N17
A73: Percentage Delegated | B73: 0.9714285714 | I73: Delegated | J73: 136 | K73: 140 | L73: Total Applications
K74: 164 | L74: applications received
A75: 1. For a full description of the categories in this analysis please see NOTES page.
A76: 2. Cases where the decision was recalled and made by Ministers are not included in these figures.
A77: 3. Time has been removed from the decision time for 5 applications where delays were outwith the control of the local authority.

Sheet Fife
A1: Planning Authority Performance Statistics1,3 | D1: Fife | I1: For Scottish Government Use during analysis Please do not delete or move these columns
D2: 2018/19 Q3 | J2: Check total number of applications
D3: All Applications excluding Legacy Cases | J3: 506 | K3: total apps | M3: OK
A5: Processing Agreements | B5: Total Number of Decisions | C5: % Within Agreed Timescales
A6: TOTAL | B6: 111 | C6: 0.7297297297
A7: Major Applications | B7: 0 | C7: -
A8: Local Applications | B8: 90 | C8: 0.7222222222
A9: EIA Applications | B9: 0 | C9: -
A10: Other Applications | B10: 21 | C10: 0.7619047619
A11: Applications with processing agreements are not included in the following figures.
B12: Total Number of Decisions | C12: Proportion of Decisions | D12: Average Time (Weeks) | J12: check sums to total
A13: All Major Developments | B13: 1 | D13: 13.28571429 | J13: OK | K13: OK
A14: Without Legal Agreement | B14: 1 | C14: 1 | D14: 13.28571429
A15: With Legal Agreement | B15: 0 | C15: 0 | D15: -
J16: OK
A17: All Local Developments | B17: 285 | D17: 7.9839599 | J17: OK | K17: OK
A18: Without Legal Agreement | B18: 285 | C18: 1 | D18: 7.9839599
A19: With Legal Agreement | B19: 0 | C19: 0 | D19: -
A20: Local: less than 2 months | B20: 214 | C20: 0.750877193 | D20: 6.67623498 | J20: OK | K20: OK | L20: OK
A21: Local: more than 2 months | B21: 71 | C21: 0.249122807 | D21: 11.92555332
A23: All Local developments (non-householder) | B23: 103 | D23: 9.110957004 | J23: OK | K23: OK | L23: OK
A24: Local: less than 2 months | B24: 63 | C24: 0.6116504854 | D24: 7.029478458
A25: Local: more than 2 months | B25: 40 | C25: 0.3883495146 | D25: 12.38928571
A27: Householder developments | B27: 182 | D27: 7.346153846 | J27: OK | K27: OK | L27: OK
A28: Local: less than 2 months | B28: 151 | C28: 0.8296703297 | D28: 6.528855251
A29: Local: more than 2 months | B29: 31 | C29: 0.1703296703 | D29: 11.32718894
A31: Housing Developments - Major | B31: 0 | D31: -
A33: Housing Developments - Local | B33: 24 | D33: 9.886904762 | J33: OK | K33: OK | L33: OK
A34: Local: less than 2 months | B34: 12 | C34: 0.5 | D34: 7.464285714
A35: Local: more than 2 months | B35: 12 | C35: 0.5 | D35: 12.30952381
A37: Business & Industry - Major | B37: 0 | D37: -
A39: Business & Industry - Local | B39: 2 | D39: 8.285714286 | J39: OK | K39: OK
A40: Local: less than 2 months | B40: 2 | C40: 1 | D40: 8.285714286
A41: Local: more than 2 months | B41: 0 | C41: 0 | D41: -
A43: Other developments - Major | B43: 1 | D43: 13.28571429
A45: Other developments - Local | B45: 74 | D45: 8.683397683 | J45: OK | K45: OK | L45: OK
A46: Local: less than 2 months | B46: 48 | C46: 0.6486486486 | D46: 6.863095238
A47: Local: more than 2 months | B47: 26 | C47: 0.3513513514 | D47: 12.04395604
A49: EIA Developments | B49: 0 | D49: -
A50: Other Consents | B50: 109 | D50: 5.19921363
A52: Decision Making: Applications subject to
A53: Planning/Legal Agreements | B53: 0 | D53: -
A54: Local Reviews | B54: 4 | D54: 13.75 | J54: Check local review totals
J55: OK
A56: Decision Making: Local Reviews and Appeals
B58: Total number of decisions | C58: Original decision upheld (%)
A59: Local Reviews | B59: 4 | C59: 0.5
A60: Appeals to Scottish Ministers2 | B60: 3 | C60: 0.667
A62: Enforcement Activity
B64: Number
A65: Cases Taken Up | B65: 7
A66: Notices Served | B66: 0
A67: Reports to Procurator Fiscal | B67: 0
A68: Prosecutions | B68: 0
A69: Number of breaches resolved | B69: 21
A70: Approved and Delegated
A72: Percentage Approved | B72: 0.9671052632 | I72: Approved | J72: 441 | K72: 456 | L72: Total Applications less N17
A73: Percentage Delegated | B73: 0.9802371542 | I73: Delegated | J73: 496 | K73: 506 | L73: Total Applications
K74: 508 | L74: applications received
A75: 1. For a full description of the categories in this analysis please see NOTES page.
A76: 2. Cases where the decision was recalled and made by Ministers are not included in these figures.
A77: 3. Time has been removed from the decision time for 10 applications where delays were outwith the control of the local authority.

Sheet Glasgow City
A1: Planning Authority Performance Statistics1,3 | D1: Glasgow City | I1: For Scottish Government Use during analysis Please do not delete or move these columns
D2: 2018/19 Q3 | I2: Check total number of applications
D3: All Applications excluding Legacy Cases | J3: 689 | K3: total apps | M3: OK
A5: Processing Agreements | B5: Total Number of Decisions | C5: % Within Agreed Timescales
A6: TOTAL | B6: 28 | C6: 0.5714285714
A7: Major Applications | B7: 0 | C7: -
A8: Local Applications | B8: 18 | C8: 0.6111111111
A9: EIA Applications | B9: 0 | C9: -
A10: Other Applications | B10: 10 | C10: 0.5
A11: Applications with processing agreements are not included in the following figures.
B12: Total Number of Decisions | C12: Proportion of Decisions | D12: Average Time (Weeks) | J12: check sums to total
A13: All Major Developments | B13: 17 | D13: 19.98319328 | J13: OK | K13: OK | L13: OK
A14: Without Legal Agreement | B14: 9 | C14: 0.5294117647 | D14: 13.38095238
A15: With Legal Agreement | B15: 8 | C15: 0.4705882353 | D15: 27.41071429
J16: OK
A17: All Local Developments | B17: 419 | D17: 9.191612683 | J17: OK | K17: OK | L17: OK
A18: Without Legal Agreement | B18: 410 | C18: 0.9785202864 | D18: 8.871080139
A19: With Legal Agreement | B19: 9 | C19: 0.0214797136 | D19: 23.79365079
A20: Local: less than 2 months | B20: 317 | C20: 0.7565632458 | D20: 6.561964849 | J20: OK | K20: OK | L20: OK
A21: Local: more than 2 months | B21: 102 | C21: 0.2434367542 | D21: 17.36414566
A23: All Local developments (non-householder) | B23: 234 | D23: 11.14285714 | J23: OK | K23: OK | L23: OK
A24: Local: less than 2 months | B24: 142 | C24: 0.6068376068 | D24: 6.716297787
A25: Local: more than 2 months | B25: 92 | C25: 0.3931623932 | D25: 17.97515528
A27: Householder developments | B27: 185 | D27: 6.723552124 | J27: OK | K27: OK | L27: OK
A28: Local: less than 2 months | B28: 175 | C28: 0.9459459459 | D28: 6.436734694
A29: Local: more than 2 months | B29: 10 | C29: 0.05405405405 | D29: 11.74285714
A31: Housing Developments - Major | B31: 9 | D31: 23.04761905
A33: Housing Developments - Local | B33: 59 | D33: 13.17917676 | J33: OK | K33: OK | L33: OK
A34: Local: less than 2 months | B34: 31 | C34: 0.5254237288 | D34: 6.792626728
A35: Local: more than 2 months | B35: 28 | C35: 0.4745762712 | D35: 20.25
A37: Business & Industry - Major | B37: 3 | D37: 16.38095238
A39: Business & Industry - Local | B39: 36 | D39: 9.261904762 | J39: OK | K39: OK | L39: OK
A40: Local: less than 2 months | B40: 24 | C40: 0.6666666667 | D40: 6.452380952
A41: Local: more than 2 months | B41: 12 | C41: 0.3333333333 | D41: 14.88095238
A43: Other developments - Major | B43: 5 | D43: 16.62857143
A45: Other developments - Local | B45: 128 | D45: 10.54017857 | J45: OK | K45: OK | L45: OK
A46: Local: less than 2 months | B46: 80 | C46: 0.625 | D46: 6.692857143
A47: Local: more than 2 months | B47: 48 | C47: 0.375 | D47: 16.95238095
A49: EIA Developments | B49: 0 | D49: -
A50: Other Consents | B50: 225 | D50: 9.063492063
A52: Decision Making: Applications subject to
A53: Planning/Legal Agreements | B53: 17 | D53: 25.49579832
A54: Local Reviews | B54: 7 | D54: 10.53061224 | J54: Check local review totals
J55: OK
A56: Decision Making: Local Reviews and Appeals
B58: Total number of decisions | C58: Original decision upheld (%)
A59: Local Reviews | B59: 7 | C59: 0.5714285714
A60: Appeals to Scottish Ministers2 | B60: 4 | C60: 0
A62: Enforcement Activity
B64: Number
A65: Cases Taken Up | B65: 148
A66: Notices Served | B66: 14
A67: Reports to Procurator Fiscal | B67: 0
A68: Prosecutions | B68: 0
A69: Number of breaches resolved | B69: 89
A70: Approved and Delegated
A72: Percentage Approved | B72: 0.8917293233 | I72: Approved | J72: 593 | K72: 665 | L72: Total Applications less N17
A73: Percentage Delegated | B73: 0.9825834543 | I73: Delegated | J73: 677 | K73: 689 | L73: Total Applications
K74: 689 | L74: applications received
A75: 1. For a full description of the categories in this analysis please see NOTES page.
A76: 2. Cases where the decision was recalled and made by Ministers are not included in these figures.
A77: 3. Time has been removed from the decision time for 88 applications where delays were outwith the control of the local authority.

Sheet Highland
A1: Planning Authority Performance Statistics1,3 | D1: Highland | I1: For Scottish Government Use during analysis Please do not delete or move these columns
D2: 2018/19 Q3 | J2: Check total number of applications
D3: All Applications excluding Legacy Cases | J3: 763 | K3: total apps | M3: OK
A5: Processing Agreements | B5: Total Number of Decisions | C5: % Within Agreed Timescales
A6: TOTAL | B6: 17 | C6: 0.5882352941
A7: Major Applications | B7: 6 | C7: 0.6666666667
A8: Local Applications | B8: 11 | C8: 0.5454545455
A9: EIA Applications | B9: 0 | C9: -
A10: Other Applications | B10: 0 | C10: -
A11: Applications with processing agreements are not included in the following figures.
B12: Total Number of Decisions | C12: Proportion of Decisions | D12: Average Time (Weeks) | J12: check sums to total
A13: All Major Developments | B13: 1 | D13: 36.85714286 | J13: OK | K13: OK
A14: Without Legal Agreement | B14: 1 | C14: 1 | D14: 36.85714286
A15: With Legal Agreement | B15: 0 | C15: 0 | D15: -
J16: OK
A17: All Local Developments | B17: 630 | D17: 10.46938776 | J17: OK | K17: OK | L17: OK
A18: Without Legal Agreement | B18: 619 | C18: 0.9825396825 | D18: 10.08608354
A19: With Legal Agreement | B19: 11 | C19: 0.01746031746 | D19: 32.03896104
A20: Local: less than 2 months | B20: 429 | C20: 0.680952381 | D20: 6.26040626 | J20: OK | K20: OK | L20: OK
A21: Local: more than 2 months | B21: 201 | C21: 0.319047619 | D21: 19.45273632
A23: All Local developments (non-householder) | B23: 455 | D23: 12.11302983 | J23: OK | K23: OK | L23: OK
A24: Local: less than 2 months | B24: 268 | C24: 0.589010989 | D24: 6.623134328
A25: Local: more than 2 months | B25: 187 | C25: 0.410989011 | D25: 19.98090145
A27: Householder developments | B27: 175 | D27: 6.195918367 | J27: OK | K27: OK | L27: OK
A28: Local: less than 2 months | B28: 161 | C28: 0.92 | D28: 5.65661047
A29: Local: more than 2 months | B29: 14 | C29: 0.08 | D29: 12.39795918
A31: Housing Developments - Major | B31: 0 | D31: -
A33: Housing Developments - Local | B33: 233 | D33: 13.61925199 | J33: OK | K33: OK | L33: OK
A34: Local: less than 2 months | B34: 124 | C34: 0.5321888412 | D34: 6.746543779
A35: Local: more than 2 months | B35: 109 | C35: 0.4678111588 | D35: 21.43774574
A37: Business & Industry - Major | B37: 0 | D37: -
A39: Business & Industry - Local | B39: 54 | D39: 11.11640212 | J39: OK | K39: OK | L39: OK
A40: Local: less than 2 months | B40: 32 | C40: 0.5925925926 | D40: 6.883928571
A41: Local: more than 2 months | B41: 22 | C41: 0.4074074074 | D41: 17.27272727
A43: Other developments - Major | B43: 0 | D43: -
A45: Other developments - Local | B45: 143 | D45: 10.08691309 | J45: OK | K45: OK | L45: OK
A46: Local: less than 2 months | B46: 98 | C46: 0.6853146853 | D46: 6.405247813
A47: Local: more than 2 months | B47: 45 | C47: 0.3146853147 | D47: 18.1047619
A49: EIA Developments | B49: 1 | D49: 26.85714286
A50: Other Consents | B50: 114 | D50: 6.462406015
A52: Decision Making: Applications subject to
A53: Planning/Legal Agreements | B53: 13 | D53: 28.1978022
A54: Local Reviews | B54: 4 | D54: 8.642857143 | J54: Check local review totals
J55: OK
A56: Decision Making: Local Reviews and Appeals
B58: Total number of decisions | C58: Original decision upheld (%)
A59: Local Reviews | B59: 4 | C59: 0.5
A60: Appeals to Scottish Ministers2 | B60: 6 | C60: 0.5
A62: Enforcement Activity
B64: Number
A65: Cases Taken Up | B65: 31
A66: Notices Served | B66: 15
A67: Reports to Procurator Fiscal | B67: 0
A68: Prosecutions | B68: 0
A69: Number of breaches resolved | B69: 109
A70: Approved and Delegated
A72: Percentage Approved | B72: 0.9536516854 | I72: Approved | J72: 679 | K72: 712 | L72: Total Applications less N17
A73: Percentage Delegated | B73: 0.9567496723 | I73: Delegated | J73: 730 | K73: 763 | L73: Total Applications
K74: 1122 | L74: applications received
A75: 1. For a full description of the categories in this analysis please see NOTES page.
A76: 2. Cases where the decision was recalled and made by Ministers are not included in these figures.
A77: 3. Time has been removed from the decision time for 35 applications where delays were outwith the control of the local authority.

Sheet Inverclyde
A1: Planning Authority Performance Statistics1,3 | D1: Inverclyde | I1: For Scottish Government Use during analysis Please do not delete or move these columns
D2: 2018/19 Q3 | J2: Check total number of applications
D3: All Applications excluding Legacy Cases | J3: 78 | K3: total apps | M3: OK
A5: Processing Agreements | B5: Total Number of Decisions | C5: % Within Agreed Timescales
A6: TOTAL | B6: 0 | C6: -
A7: Major Applications | B7: 0 | C7: -
A8: Local Applications | B8: 0 | C8: -
A9: EIA Applications | B9: 0 | C9: -
A10: Other Applications | B10: 0 | C10: -
A11: Applications with processing agreements are not included in the following figures.
B12: Total Number of Decisions | C12: Proportion of Decisions | D12: Average Time (Weeks) | J12: check sums to total
A13: All Major Developments | B13: 0 | D13: - | J13: OK
A14: Without Legal Agreement | B14: 0 | C14: - | D14: -
A15: With Legal Agreement | B15: 0 | C15: - | D15: -
J16: OK
A17: All Local Developments | B17: 59 | D17: 7.118644068 | J17: OK | K17: OK
A18: Without Legal Agreement | B18: 59 | C18: 1 | D18: 7.118644068
A19: With Legal Agreement | B19: 0 | C19: 0 | D19: -
A20: Local: less than 2 months | B20: 49 | C20: 0.8305084746 | D20: 5.967930029 | J20: OK | K20: OK | L20: OK
A21: Local: more than 2 months | B21: 10 | C21: 0.1694915254 | D21: 12.75714286
A23: All Local developments (non-householder) | B23: 23 | D23: 8.652173913 | J23: OK | K23: OK | L23: OK
A24: Local: less than 2 months | B24: 18 | C24: 0.7826086957 | D24: 6.626984127
A25: Local: more than 2 months | B25: 5 | C25: 0.2173913043 | D25: 15.94285714
A27: Householder developments | B27: 36 | D27: 6.138888889 | J27: OK | K27: OK | L27: OK
A28: Local: less than 2 months | B28: 31 | C28: 0.8611111111 | D28: 5.585253456
A29: Local: more than 2 months | B29: 5 | C29: 0.1388888889 | D29: 9.571428571
A31: Housing Developments - Major | B31: 0 | D31: -
A33: Housing Developments - Local | B33: 4 | D33: 8.142857143 | J33: OK | K33: OK | L33: OK
A34: Local: less than 2 months | B34: 3 | C34: 0.75 | D34: 6.19047619
A35: Local: more than 2 months | B35: 1 | C35: 0.25 | D35: 14
A37: Business & Industry - Major | B37: 0 | D37: -
A39: Business & Industry - Local | B39: 1 | D39: 7.571428571 | J39: OK | K39: OK
A40: Local: less than 2 months | B40: 1 | C40: 1 | D40: 7.571428571
A41: Local: more than 2 months | B41: 0 | C41: 0 | D41: -
A43: Other developments - Major | B43: 0 | D43: -
A45: Other developments - Local | B45: 18 | D45: 8.825396825 | J45: OK | K45: OK | L45: OK
A46: Local: less than 2 months | B46: 14 | C46: 0.7777777778 | D46: 6.653061224
A47: Local: more than 2 months | B47: 4 | C47: 0.2222222222 | D47: 16.42857143
A49: EIA Developments | B49: 0 | D49: -
A50: Other Consents | B50: 19 | D50: 6.315789474
A52: Decision Making: Applications subject to
A53: Planning/Legal Agreements | B53: 0 | D53: -
A54: Local Reviews | B54: 2 | D54: 13.28571429 | J54: Check local review totals
J55: OK
A56: Decision Making: Local Reviews and Appeals
B58: Total number of decisions | C58: Original decision upheld (%)
A59: Local Reviews | B59: 2 | C59: 0
A60: Appeals to Scottish Ministers2 | B60: 0
A62: Enforcement Activity
B64: Number
A65: Cases Taken Up | B65: 4
A66: Notices Served | B66: 0
A67: Reports to Procurator Fiscal | B67: 0
A68: Prosecutions | B68: 0
A69: Number of breaches resolved | B69: 3
A70: Approved and Delegated
A72: Percentage Approved | B72: 0.9589041096 | I72: Approved | J72: 70 | K72: 73 | L72: Total Applications less N17
A73: Percentage Delegated | B73: 1 | I73: Delegated | J73: 78 | K73: 78 | L73: Total Applications
K74: 88 | L74: applications received
A75: 1. For a full description of the categories in this analysis please see NOTES page.
A76: 2. Cases where the decision was recalled and made by Ministers are not included in these figures.
A77: 3. Time has been removed from the decision time for 5 applications where delays were outwith the control of the local authority.

Sheet Loch Lomond
A1: Planning Authority Performance Statistics1,3 | D1: Loch Lomond and The Trossachs | I1: For Scottish Government Use during analysis Please do not delete or move these columns
D2: 2018/19 Q3 | J2: Check total number of applications
D3: All Applications excluding Legacy Cases | J3: 75 | K3: total apps | M3: OK
A5: Processing Agreements | B5: Total Number of Decisions | C5: % Within Agreed Timescales
A6: TOTAL | B6: 3 | C6: 0.6666666667
A7: Major Applications | B7: 1 | C7: 1
A8: Local Applications | B8: 2 | C8: 0.5
A9: EIA Applications | B9: 0 | C9: -
A10: Other Applications | B10: 0 | C10: -
A11: Applications with processing agreements are not included in the following figures.
B12: Total Number of Decisions | C12: Proportion of Decisions | D12: Average Time (Weeks) | J12: check sums to total
A13: All Major Developments | B13: 0 | D13: - | J13: OK
A14: Without Legal Agreement | B14: 0 | C14: - | D14: -
A15: With Legal Agreement | B15: 0 | C15: - | D15: -
J16: OK
A17: All Local Developments | B17: 59 | D17: 12.42372881 | J17: OK | K17: OK
A18: Without Legal Agreement | B18: 59 | C18: 1 | D18: 12.42372881
A19: With Legal Agreement | B19: 0 | C19: 0 | D19: -
A20: Local: less than 2 months | B20: 17 | C20: 0.2881355932 | D20: 6.798319328 | J20: OK | K20: OK | L20: OK
A21: Local: more than 2 months | B21: 42 | C21: 0.7118644068 | D21: 14.70068027
A23: All Local developments (non-householder) | B23: 44 | D23: 13.46103896 | J23: OK | K23: OK | L23: OK
A24: Local: less than 2 months | B24: 11 | C24: 0.25 | D24: 6.753246753
A25: Local: more than 2 months | B25: 33 | C25: 0.75 | D25: 15.6969697
A27: Householder developments | B27: 15 | D27: 9.380952381 | J27: OK | K27: OK | L27: OK
A28: Local: less than 2 months | B28: 6 | C28: 0.4 | D28: 6.880952381
A29: Local: more than 2 months | B29: 9 | C29: 0.6 | D29: 11.04761905
A31: Housing Developments - Major | B31: 0 | D31: -
A33: Housing Developments - Local | B33: 5 | D33: 16.14285714 | J33: OK | K33: OK
A34: Local: less than 2 months | B34: 0 | C34: 0 | D34: -
A35: Local: more than 2 months | B35: 5 | C35: 1 | D35: 16.14285714
A37: Business & Industry - Major | B37: 0 | D37: -
A39: Business & Industry - Local | B39: 4 | D39: 7.75 | J39: OK | K39: OK | L39: OK
A40: Local: less than 2 months | B40: 2 | C40: 0.5 | D40: 6.428571429
A41: Local: more than 2 months | B41: 2 | C41: 0.5 | D41: 9.071428571
A43: Other developments - Major | B43: 0 | D43: -
A45: Other developments - Local | B45: 29 | D45: 13.22167488 | J45: OK | K45: OK | L45: OK
A46: Local: less than 2 months | B46: 7 | C46: 0.2413793103 | D46: 6.653061224
A47: Local: more than 2 months | B47: 22 | C47: 0.7586206897 | D47: 15.31168831
A49: EIA Developments | B49: 0 | D49: -
A50: Other Consents | B50: 13 | D50: 11.84615385
A52: Decision Making: Applications subject to
A53: Planning/Legal Agreements | B53: 0 | D53: -
A54: Local Reviews | B54: 0 | D54: - | J54: Check local review totals
J55: OK
A56: Decision Making: Local Reviews and Appeals
B58: Total number of decisions | C58: Original decision upheld (%)
A59: Local Reviews | B59: 0 | C59: -
A60: Appeals to Scottish Ministers2 | B60: 0 | C60: -
A62: Enforcement Activity
B64: Number
A65: Cases Taken Up | B65: 13
A66: Notices Served | B66: 1
A67: Reports to Procurator Fiscal | B67: 0
A68: Prosecutions | B68: 0
A69: Number of breaches resolved | B69: 4
A70: Approved and Delegated
A72: Percentage Approved | B72: 0.9583333333 | I72: Approved | J72: 69 | K72: 72 | L72: Total Applications less N17
A73: Percentage Delegated | B73: 0.9333333333 | I73: Delegated | J73: 70 | K73: 75 | L73: Total Applications
K74: 85 | L74: applications received
A75: 1. For a full description of the categories in this analysis please see NOTES page.
A76: 2. Cases where the decision was recalled and made by Ministers are not included in these figures.
A77: 3. Time has been removed from the decision time for 25 applications where delays were outwith the control of the local authority.
A79: OR
A80: 3. Details of delays that are outwith the control of the local authority are not available. This could mean some average decision times may be higher than otherwise.
A82: OR
A83: 3. Time has not been removed from the decision time for any applications.

Sheet Midlothian
A1: Planning Authority Performance Statistics1,3 | D1: Midlothian | I1: For Scottish Government Use during analysis Please do not delete or move these columns
D2: 2018/19 Q3 | J2: Check total number of applications
D3: All Applications excluding Legacy Cases | J3: 152 | K3: total apps | M3: OK
A5: Processing Agreements | B5: Total Number of Decisions | C5: % Within Agreed Timescales
A6: TOTAL | B6: 0 | C6: -
A7: Major Applications | B7: 0 | C7: -
A8: Local Applications | B8: 0 | C8: -
A9: EIA Applications | B9: 0 | C9: -
A10: Other Applications | B10: 0 | C10: -
A11: Applications with processing agreements are not included in the following figures.
B12: Total Number of Decisions | C12: Proportion of Decisions | D12: Average Time (Weeks) | J12: check sums to total
A13: All Major Developments | B13: 1 | D13: 28.57142857 | J13: OK | K13: OK
A14: Without Legal Agreement | B14: 1 | C14: 1 | D14: 28.57142857
A15: With Legal Agreement | B15: 0 | C15: 0 | D15: -
J16: OK
A17: All Local Developments | B17: 122 | D17: 8.956674473 | J17: OK | K17: OK | L17: OK
A18: Without Legal Agreement | B18: 120 | C18: 0.9836065574 | D18: 8.482142857
A19: With Legal Agreement | B19: 2 | C19: 0.01639344262 | D19: 37.42857143
A20: Local: less than 2 months | B20: 100 | C20: 0.8196721311 | D20: 6.702857143 | J20: OK | K20: OK | L20: OK
A21: Local: more than 2 months | B21: 22 | C21: 0.1803278689 | D21: 19.2012987
A23: All Local developments (non-householder) | B23: 60 | D23: 11.70238095 | J23: OK | K23: OK | L23: OK
A24: Local: less than 2 months | B24: 39 | C24: 0.65 | D24: 7.435897436
A25: Local: more than 2 months | B25: 21 | C25: 0.35 | D25: 19.62585034
A27: Householder developments | B27: 62 | D27: 6.299539171 | J27: OK | K27: OK | L27: OK
A28: Local: less than 2 months | B28: 61 | C28: 0.9838709677 | D28: 6.234192037
A29: Local: more than 2 months | B29: 1 | C29: 0.01612903226 | D29: 10.28571429
A31: Housing Developments - Major | B31: 0 | D31: -
A33: Housing Developments - Local | B33: 17 | D33: 15.30252101 | J33: OK | K33: OK | L33: OK
A34: Local: less than 2 months | B34: 7 | C34: 0.4117647059 | D34: 8.285714286
A35: Local: more than 2 months | B35: 10 | C35: 0.5882352941 | D35: 20.21428571
A37: Business & Industry - Major | B37: 0 | D37: -
A39: Business & Industry - Local | B39: 2 | D39: 5.571428571 | J39: OK | K39: OK
A40: Local: less than 2 months | B40: 2 | C40: 1 | D40: 5.571428571
A41: Local: more than 2 months | B41: 0 | C41: 0 | D41: -
A43: Other developments - Major | B43: 1 | D43: 28.57142857
A45: Other developments - Local | B45: 35 | D45: 9.893877551 | J45: OK | K45: OK | L45: OK
A46: Local: less than 2 months | B46: 26 | C46: 0.7428571429 | D46: 7.258241758
A47: Local: more than 2 months | B47: 9 | C47: 0.2571428571 | D47: 17.50793651
A49: EIA Developments | B49: 0 | D49: -
A50: Other Consents | B50: 29 | D50: 5.556650246
A52: Decision Making: Applications subject to
A53: Planning/Legal Agreements | B53: 2 | D53: 37.42857143
A54: Local Reviews | B54: 4 | D54: 11.14285714 | J54: Check local review totals
J55: OK
A56: Decision Making: Local Reviews and Appeals
B58: Total number of decisions | C58: Original decision upheld (%)
A59: Local Reviews | B59: 4 | C59: 0.25
A60: Appeals to Scottish Ministers2 | B60: 1 | C60: 1
A62: Enforcement Activity
B64: Number
A65: Cases Taken Up | B65: 39
A66: Notices Served | B66: 1
A67: Reports to Procurator Fiscal | B67: 0
A68: Prosecutions | B68: 0
A69: Number of breaches resolved | B69: 57
A70: Approved and Delegated
A72: Percentage Approved | B72: 0.8698630137 | I72: Approved | J72: 127 | K72: 146 | L72: Total Applications less N17
A73: Percentage Delegated | B73: 0.9802631579 | I73: Delegated | J73: 149 | K73: 152 | L73: Total Applications
K74: 224 | L74: applications received
A75: 1. For a full description of the categories in this analysis please see NOTES page.
A76: 2. Cases where the decision was recalled and made by Ministers are not included in these figures.
A77: 3. Time has been removed from the decision time for 12 applications where delays were outwith the control of the local authority.

Sheet Moray
A1: Planning Authority Performance Statistics1,3 | D1: Moray | I1: For Scottish Government Use during analysis Please do not delete or move these columns
D2: 2018/19 Q3 | J2: Check total number of applications
D3: All Applications excluding Legacy Cases | J3: 159 | K3: total apps | M3: OK
A5: Processing Agreements | B5: Total Number of Decisions | C5: % Within Agreed Timescales
A6: TOTAL | B6: 2 | C6: 0
A7: Major Applications | B7: 0 | C7: -
A8: Local Applications | B8: 2 | C8: 0
A9: EIA Applications | B9: 0 | C9: -
A10: Other Applications | B10: 0 | C10: -
A11: Applications with processing agreements are not included in the following figures.
B12: Total Number of Decisions | C12: Proportion of Decisions | D12: Average Time (Weeks) | J12: check sums to total
A13: All Major Developments | B13: 2 | D13: 10 | J13: OK | K13: OK
A14: Without Legal Agreement | B14: 2 | C14: 1 | D14: 10
A15: With Legal Agreement | B15: 0 | C15: 0 | D15: -
J16: OK
A17: All Local Developments | B17: 132 | D17: 5.954545455 | J17: OK | K17: OK
A18: Without Legal Agreement | B18: 132 | C18: 1 | D18: 5.954545455
A19: With Legal Agreement | B19: 0 | C19: 0 | D19: -
A20: Local: less than 2 months | B20: 124 | C20: 0.9393939394 | D20: 5.664746544 | J20: OK | K20: OK | L20: OK
A21: Local: more than 2 months | B21: 8 | C21: 0.06060606061 | D21: 10.44642857
A23: All Local developments (non-householder) | B23: 79 | D23: 6.372513562 | J23: OK | K23: OK | L23: OK
A24: Local: less than 2 months | B24: 71 | C24: 0.8987341772 | D24: 5.913480885
A25: Local: more than 2 months | B25: 8 | C25: 0.1012658228 | D25: 10.44642857
A27: Householder developments | B27: 53 | D27: 5.331536388 | J27: OK | K27: OK
A28: Local: less than 2 months | B28: 53 | C28: 1 | D28: 5.331536388
A29: Local: more than 2 months | B29: 0 | C29: 0 | D29: -
A31: Housing Developments - Major | B31: 0 | D31: -
A33: Housing Developments - Local | B33: 51 | D33: 6.277310924 | J33: OK | K33: OK | L33: OK
A34: Local: less than 2 months | B34: 46 | C34: 0.9019607843 | D34: 5.798136646
A35: Local: more than 2 months | B35: 5 | C35: 0.09803921569 | D35: 10.68571429
A37: Business & Industry - Major | B37: 1 | D37: 3.285714286
A39: Business & Industry - Local | B39: 22 | D39: 6.545454545 | J39: OK | K39: OK | L39: OK
A40: Local: less than 2 months | B40: 20 | C40: 0.9090909091 | D40: 6.135714286
A41: Local: more than 2 months | B41: 2 | C41: 0.09090909091 | D41: 10.64285714
A43: Other developments - Major | B43: 1 | D43: 16.71428571
A45: Other developments - Local | B45: 5 | D45: 6.257142857 | J45: OK | K45: OK | L45: OK
A46: Local: less than 2 months | B46: 4 | C46: 0.8 | D46: 5.607142857
A47: Local: more than 2 months | B47: 1 | C47: 0.2 | D47: 8.857142857
A49: EIA Developments | B49: 0 | D49: -
A50: Other Consents | B50: 23 | D50: 6.242236025
A52: Decision Making: Applications subject to
A53: Planning/Legal Agreements | B53: 0 | D53: -
A54: Local Reviews | B54: 5 | D54: 8.285714286 | J54: Check local review totals
J55: OK
A56: Decision Making: Local Reviews and Appeals
B58: Total number of decisions | C58: Original decision upheld (%)
A59: Local Reviews | B59: 5 | C59: 0.4
A60: Appeals to Scottish Ministers2 | B60: 0 | C60: -
A62: Enforcement Activity
B64: Number
A65: Cases Taken Up | B65: 64
A66: Notices Served | B66: 5
A67: Reports to Procurator Fiscal | B67: 0
A68: Prosecutions | B68: 0
A69: Number of breaches resolved | B69: 45
A70: Approved and Delegated
A72: Percentage Approved | B72: 0.9426751592 | I72: Approved | J72: 148 | K72: 157 | L72: Total Applications less N17
A73: Percentage Delegated | B73: 0.9874213836 | I73: Delegated | J73: 157 | K73: 159 | L73: Total Applications
K74: 169 | L74: applications received
A75: 1. For a full description of the categories in this analysis please see NOTES page.
A76: 2. Cases where the decision was recalled and made by Ministers are not included in these figures.
A77: 3. Time has been removed from the decision time for 37 applications where delays were outwith the control of the local authority.

Sheet Na h-Eileanan Siar
A1: Planning Authority Performance Statistics1,3 | D1: Na h-Eileanan Siar | I1: For Scottish Government Use during analysis Please do not delete or move these columns
D2: 2018/19 Q3 | J2: Check total number of applications
D3: All Applications excluding Legacy Cases | J3: 100 | K3: total apps | M3: OK
A5: Processing Agreements | B5: Total Number of Decisions | C5: % Within Agreed Timescales
A6: TOTAL | B6: 1 | C6: 1
A7: Major Applications | B7: 1 | C7: 1
A8: Local Applications | B8: 0 | C8: -
A9: EIA Applications | B9: 0 | C9: -
A10: Other Applications | B10: 0 | C10: -
A11: Applications with processing agreements are not included in the following figures.
B12: Total Number of Decisions | C12: Proportion of Decisions | D12: Average Time (Weeks) | J12: check sums to total
A13: All Major Developments | B13: 0 | D13: - | J13: OK
A14: Without Legal Agreement | B14: 0 | C14: - | D14: -
A15: With Legal Agreement | B15: 0 | C15: - | D15: -
J16: OK
A17: All Local Developments | B17: 83 | D17: 7.562822719 | J17: OK | K17: OK
A18: Without Legal Agreement | B18: 83 | C18: 1 | D18: 7.562822719
A19: With Legal Agreement | B19: 0 | C19: 0 | D19: -
A20: Local: less than 2 months | B20: 68 | C20: 0.8192771084 | D20: 6.485294118 | J20: OK | K20: OK | L20: OK
A21: Local: more than 2 months | B21: 15 | C21: 0.1807228916 | D21: 12.44761905
A23: All Local developments (non-householder) | B23: 66 | D23: 8.088744589 | J23: OK | K23: OK | L23: OK
A24: Local: less than 2 months | B24: 51 | C24: 0.7727272727 | D24: 6.806722689
A25: Local: more than 2 months | B25: 15 | C25: 0.2272727273 | D25: 12.44761905
A27: Householder developments | B27: 17 | D27: 5.521008403 | J27: OK | K27: OK
A28: Local: less than 2 months | B28: 17 | C28: 1 | D28: 5.521008403
A29: Local: more than 2 months | B29: 0 | C29: 0 | D29: -
A31: Housing Developments - Major | B31: 0 | D31: -
A33: Housing Developments - Local | B33: 32 | D33: 8.196428571 | J33: OK | K33: OK | L33: OK
A34: Local: less than 2 months | B34: 23 | C34: 0.71875 | D34: 6.770186335
A35: Local: more than 2 months | B35: 9 | C35: 0.28125 | D35: 11.84126984
A37: Business & Industry - Major | B37: 0 | D37: -
A39: Business & Industry - Local | B39: 8 | D39: 8.089285714 | J39: OK | K39: OK | L39: OK
A40: Local: less than 2 months | B40: 6 | C40: 0.75 | D40: 6.952380952
A41: Local: more than 2 months | B41: 2 | C41: 0.25 | D41: 11.5
A43: Other developments - Major | B43: 0 | D43: -
A45: Other developments - Local | B45: 22 | D45: 8.142857143 | J45: OK | K45: OK | L45: OK
A46: Local: less than 2 months | B46: 18 | C46: 0.8181818182 | D46: 6.777777778
A47: Local: more than 2 months | B47: 4 | C47: 0.1818181818 | D47: 14.28571429
A49: EIA Developments | B49: 0 | D49: -
A50: Other Consents | B50: 16 | D50: 5.964285714
A52: Decision Making: Applications subject to
A53: Planning/Legal Agreements | B53: 0 | D53: -
A54: Local Reviews | B54: 0 | D54: - | J54: Check local review totals
J55: OK
A56: Decision Making: Local Reviews and Appeals
B58: Total number of decisions | C58: Original decision upheld (%)
A59: Local Reviews | B59: 0 | C59: -
A60: Appeals to Scottish Ministers2 | B60: 0 | C60: -
A62: Enforcement Activity
B64: Number
A65: Cases Taken Up | B65: 2
A66: Notices Served | B66: 0
A67: Reports to Procurator Fiscal | B67: 1
A68: Prosecutions | B68: 0
A69: Number of breaches resolved | B69: 0
A70: Approved and Delegated
A72: Percentage Approved | B72: 1 | I72: Approved | J72: 86 | K72: 86 | L72: Total Applications less N17
A73: Percentage Delegated | B73: 0.96 | I73: Delegated | J73: 96 | K73: 100 | L73: Total Applications
K74: 94 | L74: applications received
A75: 1. For a full description of the categories in this analysis please see NOTES page.
A76: 2. Cases where the decision was recalled and made by Ministers are not included in these figures.
A77: 3. Time has not been removed from the decision time for any applications.

Sheet North Ayrshire
A1: Planning Authority Performance Statistics1,3 | D1: North Ayrshire | I1: For Scottish Government Use during analysis Please do not delete or move these columns
D2: 2018/19 Q3 | J2: Check total number of applications
D3: All Applications excluding Legacy Cases | J3: 127 | K3: total apps | M3: OK
A5: Processing Agreements | B5: Total Number of Decisions | C5: % Within Agreed Timescales
A6: TOTAL | B6: 0 | C6: -
A7: Major Applications | B7: 0 | C7: -
A8: Local Applications | B8: 0 | C8: -
A9: EIA Applications | B9: 0 | C9: -
A10: Other Applications | B10: 0 | C10: -
A11: Applications with processing agreements are not included in the following figures.
B12: Total Number of Decisions | C12: Proportion of Decisions | D12: Average Time (Weeks) | J12: check sums to total
A13: All Major Developments | B13: 0 | D13: - | J13: OK
A14: Without Legal Agreement | B14: 0 | C14: - | D14: -
A15: With Legal Agreement | B15: 0 | C15: - | D15: -
J16: OK
A17: All Local Developments | B17: 105 | D17: 5.119727891 | J17: OK | K17: OK
A18: Without Legal Agreement | B18: 105 | C18: 1 | D18: 5.119727891
A19: With Legal Agreement | B19: 0 | C19: 0 | D19: -
A20: Local: less than 2 months | B20: 101 | C20: 0.9619047619 | D20: 4.910891089 | J20: OK | K20: OK | L20: OK
A21: Local: more than 2 months | B21: 4 | C21: 0.0380952381 | D21: 10.39285714
A23: All Local developments (non-householder) | B23: 48 | D23: 5.988095238 | J23: OK | K23: OK | L23: OK
A24: Local: less than 2 months | B24: 44 | C24: 0.9166666667 | D24: 5.587662338
A25: Local: more than 2 months | B25: 4 | C25: 0.08333333333 | D25: 10.39285714
A27: Householder developments | B27: 57 | D27: 4.388471178 | J27: OK | K27: OK
A28: Local: less than 2 months | B28: 57 | C28: 1 | D28: 4.388471178
A29: Local: more than 2 months | B29: 0 | C29: 0 | D29: -
A31: Housing Developments - Major | B31: 0 | D31: -
A33: Housing Developments - Local | B33: 20 | D33: 6.392857143 | J33: OK | K33: OK | L33: OK
A34: Local: less than 2 months | B34: 18 | C34: 0.9 | D34: 6.015873016
A35: Local: more than 2 months | B35: 2 | C35: 0.1 | D35: 9.785714286
A37: Business & Industry - Major | B37: 0 | D37: -
A39: Business & Industry - Local | B39: 3 | D39: 6.619047619 | J39: OK | K39: OK
A40: Local: less than 2 months | B40: 3 | C40: 1 | D40: 6.619047619
A41: Local: more than 2 months | B41: 0 | C41: 0 | D41: -
A43: Other developments - Major | B43: 0 | D43: -
A45: Other developments - Local | B45: 23 | D45: 5.459627329 | J45: OK | K45: OK | L45: OK
A46: Local: less than 2 months | B46: 21 | C46: 0.9130434783 | D46: 4.931972789
A47: Local: more than 2 months | B47: 2 | C47: 0.08695652174 | D47: 11
A49: EIA Developments | B49: 0 | D49: -
A50: Other Consents | B50: 22 | D50: 4.980519481
A52: Decision Making: Applications subject to
A53: Planning/Legal Agreements | B53: 0 | D53: -
A54: Local Reviews | B54: 2 | D54: 8.285714286 | J54: Check local review totals
J55: OK
A56: Decision Making: Local Reviews and Appeals
B58: Total number of decisions | C58: Original decision upheld (%)
A59: Local Reviews | B59: 2 | C59: 0.5
A60: Appeals to Scottish Ministers2 | B60: 0 | C60: -
A62: Enforcement Activity
B64: Number
A65: Cases Taken Up | B65: 19
A66: Notices Served | B66: 3
A67: Reports to Procurator Fiscal | B67: 0
A68: Prosecutions | B68: 0
A69: Number of breaches resolved | B69: 48
A70: Approved and Delegated
A72: Percentage Approved | B72: 0.9655172414 | I72: Approved | J72: 112 | K72: 116 | L72: Total Applications less N17
A73: Percentage Delegated | B73: 0.968503937 | I73: Delegated | J73: 123 | K73: 127 | L73: Total Applications
K74: 135 | L74: applications received
A75: 1. For a full description of the categories in this analysis please see NOTES page.
A76: 2. Cases where the decision was recalled and made by Ministers are not included in these figures.
A77: 3. Time has been removed from the decision time for 6 applications where delays were outwith the control of the local authority.

Sheet North Lanarkshire
A1: Planning Authority Performance Statistics1,3 | D1: North Lanarkshire | I1: For Scottish Government Use during analysis Please do not delete or move these columns
D2: 2018/19 Q3 | J2: Check total number of applications
D3: All Applications excluding Legacy Cases | J3: 227 | K3: total apps | M3: OK
A5: Processing Agreements | B5: Total Number of Decisions | C5: % Within Agreed Timescales
A6: TOTAL | B6: 30 | C6: 0.1666666667
A7: Major Applications | B7: 3 | C7: 0.3333333333
A8: Local Applications | B8: 24 | C8: 0.1666666667
A9: EIA Applications | B9: 0 | C9: -
A10: Other Applications | B10: 3 | C10: 0
A11: Applications with processing agreements are not included in the following figures.
B12: Total Number of Decisions | C12: Proportion of Decisions | D12: Average Time (Weeks) | J12: check sums to total
A13: All Major Developments | B13: 3 | D13: 28.42857143 | J13: OK | K13: OK
A14: Without Legal Agreement | B14: 3 | C14: 1 | D14: 28.42857143
A15: With Legal Agreement | B15: 0 | C15: 0 | D15: -
J16: OK
A17: All Local Developments | B17: 156 | D17: 8.443223443 | J17: OK | K17: OK | L17: OK
A18: Without Legal Agreement | B18: 155 | C18: 0.9935897436 | D18: 7.594470046
A19: With Legal Agreement | B19: 1 | C19: 0.00641025641 | D19: 140
A20: Local: less than 2 months | B20: 115 | C20: 0.7371794872 | D20: 6.458385093 | J20: OK | K20: OK | L20: OK
A21: Local: more than 2 months | B21: 41 | C21: 0.2628205128 | D21: 14.01045296
A23: All Local developments (non-householder) | B23: 60 | D23: 10.47380952 | J23: OK | K23: OK | L23: OK
A24: Local: less than 2 months | B24: 39 | C24: 0.65 | D24: 6.36996337
A25: Local: more than 2 months | B25: 21 | C25: 0.35 | D25: 18.0952381
A27: Householder developments | B27: 96 | D27: 7.174107143 | J27: OK | K27: OK | L27: OK
A28: Local: less than 2 months | B28: 76 | C28: 0.7916666667 | D28: 6.503759398
A29: Local: more than 2 months | B29: 20 | C29: 0.2083333333 | D29: 9.721428571
A31: Housing Developments - Major | B31: 2 | D31: 33.85714286
A33: Housing Developments - Local | B33: 13 | D33: 21.21978022 | J33: OK | K33: OK | L33: OK
A34: Local: less than 2 months | B34: 4 | C34: 0.3076923077 | D34: 7.321428571
A35: Local: more than 2 months | B35: 9 | C35: 0.6923076923 | D35: 27.3968254
A37: Business & Industry - Major | B37: 0 | D37: -
A39: Business & Industry - Local | B39: 19 | D39: 8.308270677 | J39: OK | K39: OK | L39: OK
A40: Local: less than 2 months | B40: 13 | C40: 0.6842105263 | D40: 6.901098901
A41: Local: more than 2 months | B41: 6 | C41: 0.3157894737 | D41: 11.35714286
A43: Other developments - Major | B43: 1 | D43: 17.57142857
A45: Other developments - Local | B45: 27 | D45: 7.015873016 | J45: OK | K45: OK | L45: OK
A46: Local: less than 2 months | B46: 21 | C46: 0.7777777778 | D46: 5.911564626
A47: Local: more than 2 months | B47: 6 | C47: 0.2222222222 | D47: 10.88095238
A49: EIA Developments | B49: 0 | D49: -
A50: Other Consents | B50: 38 | D50: 5.484962406
A52: Decision Making: Applications subject to
A53: Planning/Legal Agreements | B53: 1 | D53: 140
A54: Local Reviews | B54: 5 | D54: 8.171428571 | J54: Check local review totals
J55: OK
A56: Decision Making: Local Reviews and Appeals
B58: Total number of decisions | C58: Original decision upheld (%)
A59: Local Reviews | B59: 5 | C59: 0.6
A60: Appeals to Scottish Ministers2 | B60: 3 | C60: 1
A62: Enforcement Activity
B64: Number
A65: Cases Taken Up | B65: 9
A66: Notices Served | B66: 0
A67: Reports to Procurator Fiscal | B67: 0
A68: Prosecutions | B68: 0
A69: Number of breaches resolved | B69: 32
A70: Approved and Delegated
A72: Percentage Approved | B72: 0.9512195122 | I72: Approved | J72: 195 | K72: 205 | L72: Total Applications less N17
A73: Percentage Delegated | B73: 0.9559471366 | I73: Delegated | J73: 217 | K73: 227 | L73: Total Applications
K74: 275 | L74: applications received
A75: 1. For a full description of the categories in this analysis please see NOTES page.
A76: 2. Cases where the decision was recalled and made by Ministers are not included in these figures.
A77: 3. Time has been removed from the decision time for 4 applications where delays were outwith the control of the local authority.

Sheet Orkney Islands
A1: Planning Authority Performance Statistics1,3 | D1: Orkney Islands | I1: For Scottish Government Use during analysis Please do not delete or move these columns
D2: 2018/19 Q3 | J2: Check total number of applications
D3: All Applications excluding Legacy Cases | J3: 115 | K3: total apps | M3: OK
A5: Processing Agreements | B5: Total Number of Decisions | C5: % Within Agreed Timescales
A6: TOTAL | B6: 0 | C6: -
A7: Major Applications | B7: 0 | C7: -
A8: Local Applications | B8: 0 | C8: -
A9: EIA Applications | B9: 0 | C9: -
A10: Other Applications | B10: 0 | C10: -
A11: Applications with processing agreements are not included in the following figures.
B12: Total Number of Decisions | C12: Proportion of Decisions | D12: Average Time (Weeks) | J12: check sums to total
A13: All Major Developments | B13: 0 | D13: - | J13: OK
A14: Without Legal Agreement | B14: 0 | C14: - | D14: -
A15: With Legal Agreement | B15: 0 | C15: - | D15: -
J16: OK
A17: All Local Developments | B17: 90 | D17: 7.903174603 | J17: OK | K17: OK | L17: OK
A18: Without Legal Agreement | B18: 89 | C18: 0.9888888889 | D18: 7.889245586
A19: With Legal Agreement | B19: 1 | C19: 0.01111111111 | D19: 9.142857143
A20: Local: less than 2 months | B20: 64 | C20: 0.7111111111 | D20: 6.450892857 | J20: OK | K20: OK | L20: OK
A21: Local: more than 2 months | B21: 26 | C21: 0.2888888889 | D21: 11.47802198
A23: All Local developments (non-householder) | B23: 67 | D23: 8.379530917 | J23: OK | K23: OK | L23: OK
A24: Local: less than 2 months | B24: 45 | C24: 0.671641791 | D24: 6.679365079
A25: Local: more than 2 months | B25: 22 | C25: 0.328358209 | D25: 11.85714286
A27: Householder developments | B27: 23 | D27: 6.51552795 | J27: OK | K27: OK | L27: OK
A28: Local: less than 2 months | B28: 19 | C28: 0.8260869565 | D28: 5.909774436
A29: Local: more than 2 months | B29: 4 | C29: 0.1739130435 | D29: 9.392857143
A31: Housing Developments - Major | B31: 0 | D31: -
A33: Housing Developments - Local | B33: 31 | D33: 7.930875576 | J33: OK | K33: OK | L33: OK
A34: Local: less than 2 months | B34: 23 | C34: 0.7419354839 | D34: 6.714285714
A35: Local: more than 2 months | B35: 8 | C35: 0.2580645161 | D35: 11.42857143
A37: Business & Industry - Major | B37: 0 | D37: -
A39: Business & Industry - Local | B39: 22 | D39: 7.753246753 | J39: OK | K39: OK | L39: OK
A40: Local: less than 2 months | B40: 14 | C40: 0.6363636364 | D40: 6.346938776
A41: Local: more than 2 months | B41: 8 | C41: 0.3636363636 | D41: 10.21428571
A43: Other developments - Major | B43: 0 | D43: -
A45: Other developments - Local | B45: 6 | D45: 13.16666667 | J45: OK | K45: OK | L45: OK
A46: Local: less than 2 months | B46: 5 | C46: 0.8333333333 | D46: 7.6
A47: Local: more than 2 months | B47: 1 | C47: 0.1666666667 | D47: 41
A49: EIA Developments | B49: 0 | D49: -
A50: Other Consents | B50: 25 | D50: 5.468571429
A52: Decision Making: Applications subject to
A53: Planning/Legal Agreements | B53: 1 | D53: 9.142857143
A54: Local Reviews | B54: 2 | D54: 16.71428571 | J54: Check local review totals
J55: OK
A56: Decision Making: Local Reviews and Appeals
B58: Total number of decisions | C58: Original decision upheld (%)
A59: Local Reviews | B59: 2 | C59: 0.5
A60: Appeals to Scottish Ministers2 | B60: 0 | C60: -
A62: Enforcement Activity
B64: Number
A65: Cases Taken Up | B65: 0
A66: Notices Served | B66: 0
A67: Reports to Procurator Fiscal | B67: 0
A68: Prosecutions | B68: 0
A69: Number of breaches resolved | B69: 0
A70: Approved and Delegated
A72: Percentage Approved | B72: 0.932038835 | I72: Approved | J72: 96 | K72: 103 | L72: Total Applications less N17
A73: Percentage Delegated | B73: 0.9826086957 | I73: Delegated | J73: 113 | K73: 115 | L73: Total Applications
K74: 133 | L74: applications received
A75: 1. For a full description of the categories in this analysis please see NOTES page.
A76: 2. Cases where the decision was recalled and made by Ministers are not included in these figures.
A77: 3. Time has been removed from the decision time for 21 applications where delays were outwith the control of the local authority.

Sheet Perth and Kinross
A1: Planning Authority Performance Statistics1,3 | D1: Perth and Kinross | I1: For Scottish Government Use during analysis Please do not delete or move these columns
D2: 2018/19 Q3 | J2: Check total number of applications
D3: All Applications excluding Legacy Cases | J3: 423 | K3: total apps | M3: OK
A5: Processing Agreements | B5: Total Number of Decisions | C5: % Within Agreed Timescales
A6: TOTAL | B6: 8 | C6: 0.75
A7: Major Applications | B7: 1 | C7: 1
A8: Local Applications | B8: 4 | C8: 1
A9: EIA Applications | B9: 0 | C9: -
A10: Other Applications | B10: 3 | C10: 0.3333333333
A11: Applications with processing agreements are not included in the following figures.
B12: Total Number of Decisions | C12: Proportion of Decisions | D12: Average Time (Weeks) | J12: check sums to total
A13: All Major Developments | B13: 4 | D13: 32.5 | J13: OK | K13: OK | L13: OK
A14: Without Legal Agreement | B14: 3 | C14: 0.75 | D14: 16.47619048
A15: With Legal Agreement | B15: 1 | C15: 0.25 | D15: 80.57142857
J16: OK
A17: All Local Developments | B17: 299 | D17: 7.268991878 | J17: OK | K17: OK | L17: OK
A18: Without Legal Agreement | B18: 296 | C18: 0.9899665552 | D18: 7.150579151
A19: With Legal Agreement | B19: 3 | C19: 0.01003344482 | D19: 18.95238095
A20: Local: less than 2 months | B20: 241 | C20: 0.8060200669 | D20: 6.071724956 | J20: OK | K20: OK | L20: OK
A21: Local: more than 2 months | B21: 58 | C21: 0.1939799331 | D21: 12.24384236
A23: All Local developments (non-householder) | B23: 160 | D23: 7.640178571 | J23: OK | K23: OK | L23: OK
A24: Local: less than 2 months | B24: 124 | C24: 0.775 | D24: 5.965437788
A25: Local: more than 2 months | B25: 36 | C25: 0.225 | D25: 13.40873016
A27: Householder developments | B27: 139 | D27: 6.841726619 | J27: OK | K27: OK | L27: OK
A28: Local: less than 2 months | B28: 117 | C28: 0.8417266187 | D28: 6.184371184
A29: Local: more than 2 months | B29: 22 | C29: 0.1582733813 | D29: 10.33766234
A31: Housing Developments - Major | B31: 1 | D31: 8.714285714
A33: Housing Developments - Local | B33: 69 | D33: 7.964803313 | J33: OK | K33: OK | L33: OK
A34: Local: less than 2 months | B34: 49 | C34: 0.7101449275 | D34: 6.134110787
A35: Local: more than 2 months | B35: 20 | C35: 0.2898550725 | D35: 12.45
A37: Business & Industry - Major | B37: 1 | D37: 1.571428571
A39: Business & Industry - Local | B39: 11 | D39: 7.168831169 | J39: OK | K39: OK | L39: OK
A40: Local: less than 2 months | B40: 8 | C40: 0.7272727273 | D40: 5.553571429
A41: Local: more than 2 months | B41: 3 | C41: 0.2727272727 | D41: 11.47619048
A43: Other developments - Major | B43: 1 | D43: 80.57142857
A45: Other developments - Local | B45: 75 | D45: 7.026666667 | J45: OK | K45: OK | L45: OK
A46: Local: less than 2 months | B46: 64 | C46: 0.8533333333 | D46: 5.930803571
A47: Local: more than 2 months | B47: 11 | C47: 0.1466666667 | D47: 13.4025974
A49: EIA Developments | B49: 0 | D49: -
A50: Other Consents | B50: 112 | D50: 5.904336735
A52: Decision Making: Applications subject to
A53: Planning/Legal Agreements | B53: 4 | D53: 34.35714286 | N53: 52
A54: Local Reviews | B54: 18 | D54: 19.35714286 | J54: Check local review totals | N54: 49
J55: OK | K55: OK
A56: Decision Making: Local Reviews and Appeals
B58: Total number of decisions | C58: Original decision upheld (%)
A59: Local Reviews | B59: 18 | C59: 0.78
A60: Appeals to Scottish Ministers2 | B60: 1 | C60: 1
A62: Enforcement Activity
B64: Number
A65: Cases Taken Up | B65: 78
A66: Notices Served | B66: 11
A67: Reports to Procurator Fiscal | B67: 1
A68: Prosecutions | B68: 0
A69: Number of breaches resolved | B69: 194
A70: Approved and Delegated
A72: Percentage Approved | B72: 0.8888888889 | I72: Approved | J72: 344 | K72: 387 | L72: Total Applications less N17
A73: Percentage Delegated | B73: 0.9739952719 | I73: Delegated | J73: 412 | K73: 423 | L73: Total Applications
K74: 447 | L74: applications received
A75: 1. For a full description of the categories in this analysis please see NOTES page.
A76: 2. Cases where the decision was recalled and made by Ministers are not included in these figures.
A77: 3. Time has been removed from the decision time for 15 applications where delays were outwith the control of the local authority.

Sheet Renfrewshire
A1: Planning Authority Performance Statistics1,3 | D1: Renfrewshire | I1: For Scottish Government Use during analysis Please do not delete or move these columns
D2: 2018/19 Q3 | J2: Check total number of applications
D3: All Applications excluding Legacy Cases | J3: 160 | K3: total apps | M3: OK
A5: Processing Agreements | B5: Total Number of Decisions | C5: % Within Agreed Timescales
A6: TOTAL | B6: 0 | C6: -
A7: Major Applications | B7: 0 | C7: -
A8: Local Applications | B8: 0 | C8: -
A9: EIA Applications | B9: 0 | C9: -
A10: Other Applications | B10: 0 | C10: -
A11: Applications with processing agreements are not included in the following figures.
B12: Total Number of Decisions | C12: Proportion of Decisions | D12: Average Time (Weeks) | J12: check sums to total
A13: All Major Developments | B13: 3 | D13: 54.57142857 | J13: OK | K13: OK | L13: OK
A14: Without Legal Agreement | B14: 1 | C14: 0.3333333333 | D14: 22.57142857
A15: With Legal Agreement | B15: 2 | C15: 0.6666666667 | D15: 70.57142857
J16: OK
A17: All Local Developments | B17: 116 | D17: 7.177339901 | J17: OK | K17: OK | L17: OK
A18: Without Legal Agreement | B18: 115 | C18: 0.9913793103 | D18: 6.68447205
A19: With Legal Agreement | B19: 1 | C19: 0.008620689655 | D19: 63.85714286
A20: Local: less than 2 months | B20: 103 | C20: 0.8879310345 | D20: 6.237170596 | J20: OK | K20: OK | L20: OK
A21: Local: more than 2 months | B21: 13 | C21: 0.1120689655 | D21: 14.62637363
A23: All Local developments (non-householder) | B23: 47 | D23: 7.993920973 | J23: OK | K23: OK | L23: OK
A24: Local: less than 2 months | B24: 41 | C24: 0.8723404255 | D24: 6.229965157
A25: Local: more than 2 months | B25: 6 | C25: 0.1276595745 | D25: 20.04761905
A27: Householder developments | B27: 69 | D27: 6.621118012 | J27: OK | K27: OK | L27: OK
A28: Local: less than 2 months | B28: 62 | C28: 0.8985507246 | D28: 6.241935484
A29: Local: more than 2 months | B29: 7 | C29: 0.1014492754 | D29: 9.979591837
A31: Housing Developments - Major | B31: 2 | D31: 70.57142857
A33: Housing Developments - Local | B33: 11 | D33: 7.116883117 | J33: OK | K33: OK | L33: OK
A34: Local: less than 2 months | B34: 9 | C34: 0.8181818182 | D34: 6.476190476
A35: Local: more than 2 months | B35: 2 | C35: 0.1818181818 | D35: 10
A37: Business & Industry - Major | B37: 0 | D37: -
A39: Business & Industry - Local | B39: 5 | D39: 7.8 | J39: OK | K39: OK | L39: OK
A40: Local: less than 2 months | B40: 4 | C40: 0.8 | D40: 6.607142857
A41: Local: more than 2 months | B41: 1 | C41: 0.2 | D41: 12.57142857
A43: Other developments - Major | B43: 1 | D43: 22.57142857
A45: Other developments - Local | B45: 28 | D45: 8.229591837 | J45: OK | K45: OK | L45: OK
A46: Local: less than 2 months | B46: 26 | C46: 0.9285714286 | D46: 5.994505495
A47: Local: more than 2 months | B47: 2 | C47: 0.07142857143 | D47: 37.28571429
A49: EIA Developments | B49: 0 | D49: -
A50: Other Consents | B50: 41 | D50: 6.101045296
A52: Decision Making: Applications subject to
A53: Planning/Legal Agreements | B53: 3 | D53: 68.33333333
A54: Local Reviews | B54: 1 | D54: 10.14285714 | J54: Check local review totals
J55: OK
A56: Decision Making: Local Reviews and Appeals
B58: Total number of decisions | C58: Original decision upheld (%)
A59: Local Reviews | B59: 1 | C59: 1
A60: Appeals to Scottish Ministers2 | B60: 0 | C60: -
A62: Enforcement Activity
B64: Number
A65: Cases Taken Up | B65: 0
A66: Notices Served | B66: 3
A67: Reports to Procurator Fiscal | B67: 0
A68: Prosecutions | B68: 0
A69: Number of breaches resolved | B69: 0
A70: Approved and Delegated
A72: Percentage Approved | B72: 0.98 | I72: Approved | J72: 147 | K72: 150 | L72: Total Applications less N17
A73: Percentage Delegated | B73: 0.975 | I73: Delegated | J73: 156 | K73: 160 | L73: Total Applications
K74: 114 | L74: applications received
A75: 1. For a full description of the categories in this analysis please see NOTES page.
A76: 2. Cases where the decision was recalled and made by Ministers are not included in these figures.
A77: 3. Time has been removed from the decision time for 18 applications where delays were outwith the control of the local authority.

Sheet Scottish Borders
A1: Planning Authority Performance Statistics1,3 | D1: Scottish Borders | I1: For Scottish Government Use during analysis Please do not delete or move these columns
D2: 2018/19 Q3 | J2: Check total number of applications
D3: All Applications excluding Legacy Cases | J3: 296 | K3: total apps | M3: OK
A5: Processing Agreements | B5: Total Number of Decisions | C5: % Within Agreed Timescales
A6: TOTAL | B6: 104 | C6: 0.9230769231
A7: Major Applications | B7: 0 | C7: -
A8: Local Applications | B8: 95 | C8: 0.9157894737
A9: EIA Applications | B9: 0 | C9: -
A10: Other Applications | B10: 9 | C10: 1
A11: Applications with processing agreements are not included in the following figures.
B12: Total Number of Decisions | C12: Proportion of Decisions | D12: Average Time (Weeks) | J12: check sums to total
A13: All Major Developments | B13: 1 | D13: 12.42857143 | J13: OK | K13: OK
A14: Without Legal Agreement | B14: 1 | C14: 1 | D14: 12.42857143
A15: With Legal Agreement | B15: 0 | C15: 0 | D15: -
J16: OK
A17: All Local Developments | B17: 147 | D17: 7.185617104 | J17: OK | K17: OK
A18: Without Legal Agreement | B18: 147 | C18: 1 | D18: 7.185617104
A19: With Legal Agreement | B19: 0 | C19: 0 | D19: -
A20: Local: less than 2 months | B20: 118 | C20: 0.8027210884 | D20: 6.231234867 | J20: OK | K20: OK | L20: OK
A21: Local: more than 2 months | B21: 29 | C21: 0.1972789116 | D21: 11.06896552
A23: All Local developments (non-householder) | B23: 59 | D23: 7.966101695 | J23: OK | K23: OK | L23: OK
A24: Local: less than 2 months | B24: 43 | C24: 0.7288135593 | D24: 6.478405316
A25: Local: more than 2 months | B25: 16 | C25: 0.2711864407 | D25: 11.96428571
A27: Householder developments | B27: 88 | D27: 6.662337662 | J27: OK | K27: OK | L27: OK
A28: Local: less than 2 months | B28: 75 | C28: 0.8522727273 | D28: 6.08952381
A29: Local: more than 2 months | B29: 13 | C29: 0.1477272727 | D29: 9.967032967
A31: Housing Developments - Major | B31: 0 | D31: -
A33: Housing Developments - Local | B33: 14 | D33: 9.06122449 | J33: OK | K33: OK | L33: OK
A34: Local: less than 2 months | B34: 9 | C34: 0.6428571429 | D34: 6.888888889
A35: Local: more than 2 months | B35: 5 | C35: 0.3571428571 | D35: 12.97142857
A37: Business & Industry - Major | B37: 0 | D37: -
A39: Business & Industry - Local | B39: 10 | D39: 6.857142857 | J39: OK | K39: OK | L39: OK
A40: Local: less than 2 months | B40: 8 | C40: 0.8 | D40: 6.321428571
A41: Local: more than 2 months | B41: 2 | C41: 0.2 | D41: 9
A43: Other developments - Major | B43: 1 | D43: 12.42857143
A45: Other developments - Local | B45: 34 | D45: 7.575630252 | J45: OK | K45: OK | L45: OK
A46: Local: less than 2 months | B46: 26 | C46: 0.7647058824 | D46: 6.384615385
A47: Local: more than 2 months | B47: 8 | C47: 0.2352941176 | D47: 11.44642857
A49: EIA Developments | B49: 0 | D49: -
A50: Other Consents | B50: 44 | D50: 6.957792208
A52: Decision Making: Applications subject to
A53: Planning/Legal Agreements | B53: 0 | D53: -
A54: Local Reviews | B54: 9 | D54: 6.142857143 | J54: Check local review totals
J55: OK
A56: Decision Making: Local Reviews and Appeals
B58: Total number of decisions | C58: Original decision upheld (%)
A59: Local Reviews | B59: 9 | C59: 0.4444444444
A60: Appeals to Scottish Ministers2 | B60: 4 | C60: 0.25
A62: Enforcement Activity
B64: Number
A65: Cases Taken Up | B65: 42
A66: Notices Served | B66: 4
A67: Reports to Procurator Fiscal | B67: 0
A68: Prosecutions | B68: 0
A69: Number of breaches resolved | B69: 51
A70: Approved and Delegated
A72: Percentage Approved | B72: 0.9324324324 | I72: Approved | J72: 276 | K72: 296 | L72: Total Applications less N17
A73: Percentage Delegated | B73: 0.9695945946 | I73: Delegated | J73: 287 | K73: 296 | L73: Total Applications
K74: 321 | L74: applications received
A75: 1. For a full description of the categories in this analysis please see NOTES page.
A76: 2. Cases where the decision was recalled and made by Ministers are not included in these figures.
A77: 3. Time has been removed from the decision time for 1 applications where delays were outwith the control of the local authority.

Sheet Shetland Islands
A1: Planning Authority Performance Statistics1,3 | D1: Shetland Islands | I1: For Scottish Government Use during analysis Please do not delete or move these columns
D2: 2018/19 Q3 | J2: Check total number of applications
D3: All Applications excluding Legacy Cases | J3: 67 | K3: total apps | M3: OK
A5: Processing Agreements | B5: Total Number of Decisions | C5: % Within Agreed Timescales
A6: TOTAL | B6: 0 | C6: -
A7: Major Applications | B7: 0 | C7: -
A8: Local Applications | B8: 0 | C8: -
A9: EIA Applications | B9: 0 | C9: -
A10: Other Applications | B10: 0 | C10: -
A11: Applications with processing agreements are not included in the following figures.
B12: Total Number of Decisions | C12: Proportion of Decisions | D12: Average Time (Weeks) | J12: check sums to total
A13: All Major Developments | B13: 1 | D13: 16.85714286 | J13: OK | K13: OK
A14: Without Legal Agreement | B14: 1 | C14: 1 | D14: 16.85714286
A15: With Legal Agreement | B15: 0 | C15: 0 | D15: -
J16: OK
A17: All Local Developments | B17: 55 | D17: 15.73766234 | J17: OK | K17: OK
A18: Without Legal Agreement | B18: 55 | C18: 1 | D18: 15.73766234
A19: With Legal Agreement | B19: 0 | C19: 0 | D19: -
A20: Local: less than 2 months | B20: 4 | C20: 0.07272727273 | D20: 7.357142857 | J20: OK | K20: OK | L20: OK
A21: Local: more than 2 months | B21: 51 | C21: 0.9272727273 | D21: 16.39495798
A23: All Local developments (non-householder) | B23: 43 | D23: 16.03322259 | J23: OK | K23: OK | L23: OK
A24: Local: less than 2 months | B24: 3 | C24: 0.06976744186 | D24: 7
A25: Local: more than 2 months | B25: 40 | C25: 0.9302325581 | D25: 16.71071429
A27: Householder developments | B27: 12 | D27: 14.67857143 | J27: OK | K27: OK | L27: OK
A28: Local: less than 2 months | B28: 1 | C28: 0.08333333333 | D28: 8.428571429
A29: Local: more than 2 months | B29: 11 | C29: 0.9166666667 | D29: 15.24675325
A31: Housing Developments - Major | B31: 0 | D31: -
A33: Housing Developments - Local | B33: 18 | D33: 17.73809524 | J33: OK | K33: OK
A34: Local: less than 2 months | B34: 0 | C34: 0 | D34: -
A35: Local: more than 2 months | B35: 18 | C35: 1 | D35: 17.73809524
A37: Business & Industry - Major | B37: 0 | D37: -
A39: Business & Industry - Local | B39: 7 | D39: 15.93877551 | J39: OK | K39: OK
A40: Local: less than 2 months | B40: 0 | C40: 0 | D40: -
A41: Local: more than 2 months | B41: 7 | C41: 1 | D41: 15.93877551
A43: Other developments - Major | B43: 0 | D43: -
A45: Other developments - Local | B45: 10 | D45: 14.37142857 | J45: OK | K45: OK
A46: Local: less than 2 months | B46: 0 | C46: 0 | D46: -
A47: Local: more than 2 months | B47: 10 | C47: 1 | D47: 14.37142857
A49: EIA Developments | B49: 2 | D49: 19.42857143
A50: Other Consents | B50: 9 | D50: 5.984126984
A52: Decision Making: Applications subject to
A53: Planning/Legal Agreements | B53: 0 | D53: -
A54: Local Reviews | B54: 0 | D54: - | J54: Check local review totals
J55: OK
A56: Decision Making: Local Reviews and Appeals
B58: Total number of decisions | C58: Original decision upheld (%)
A59: Local Reviews | B59: 0 | C59: -
A60: Appeals to Scottish Ministers2 | B60: 0 | C60: -
A62: Enforcement Activity
B64: Number
A65: Cases Taken Up | B65: 0
A66: Notices Served | B66: 0
A67: Reports to Procurator Fiscal | B67: 0
A68: Prosecutions | B68: 0
A69: Number of breaches resolved | B69: 14
A70: Approved and Delegated
A72: Percentage Approved | B72: 1 | I72: Approved | J72: 61 | K72: 61 | L72: Total Applications less N17
A73: Percentage Delegated | B73: 0.9850746269 | I73: Delegated | J73: 66 | K73: 67 | L73: Total Applications
K74: 71 | L74: applications received
A75: 1. For a full description of the categories in this analysis please see NOTES page.
A76: 2. Cases where the decision was recalled and made by Ministers are not included in these figures.
A77: 3. Time has been removed from the decision time for 10 applications where delays were outwith the control of the local authority.

Sheet South Ayrshire
A1: Planning Authority Performance Statistics1,3 | D1: South Ayrshire | I1: For Scottish Government Use during analysis Please do not delete or move these columns
D2: 2018/19 Q3 | J2: Check total number of applications
D3: All Applications excluding Legacy Cases | J3: 221 | K3: total apps | M3: OK
A5: Processing Agreements | B5: Total Number of Decisions | C5: % Within Agreed Timescales
A6: TOTAL | B6: 5 | C6: 1
A7: Major Applications | B7: 2 | C7: 1
A8: Local Applications | B8: 3 | C8: 1
A9: EIA Applications | B9: 0 | C9: -
A10: Other Applications | B10: 0 | C10: -
A11: Applications with processing agreements are not included in the following figures.
B12: Total Number of Decisions | C12: Proportion of Decisions | D12: Average Time (Weeks) | J12: check sums to total
A13: All Major Developments | B13: 0 | D13: - | J13: OK
A14: Without Legal Agreement | B14: 0 | C14: - | D14: -
A15: With Legal Agreement | B15: 0 | C15: - | D15: -
J16: OK
A17: All Local Developments | B17: 172 | D17: 6.438538206 | J17: OK | K17: OK
A18: Without Legal Agreement | B18: 172 | C18: 1 | D18: 6.438538206
A19: With Legal Agreement | B19: 0 | C19: 0 | D19: -
A20: Local: less than 2 months | B20: 160 | C20: 0.9302325581 | D20: 6.14375 | J20: OK | K20: OK | L20: OK
A21: Local: more than 2 months | B21: 12 | C21: 0.06976744186 | D21: 10.36904762
A23: All Local developments (non-householder) | B23: 95 | D23: 6.530827068 | J23: OK | K23: OK | L23: OK
A24: Local: less than 2 months | B24: 84 | C24: 0.8842105263 | D24: 6.008503401
A25: Local: more than 2 months | B25: 11 | C25: 0.1157894737 | D25: 10.51948052
A27: Householder developments | B27: 77 | D27: 6.324675325 | J27: OK | K27: OK | L27: OK
A28: Local: less than 2 months | B28: 76 | C28: 0.987012987 | D28: 6.293233083
A29: Local: more than 2 months | B29: 1 | C29: 0.01298701299 | D29: 8.714285714
A31: Housing Developments - Major | B31: 0 | D31: -
A33: Housing Developments - Local | B33: 41 | D33: 6.348432056 | J33: OK | K33: OK | L33: OK
A34: Local: less than 2 months | B34: 38 | C34: 0.9268292683 | D34: 6.041353383
A35: Local: more than 2 months | B35: 3 | C35: 0.07317073171 | D35: 10.23809524
A37: Business & Industry - Major | B37: 0 | D37: -
A39: Business & Industry - Local | B39: 10 | D39: 8.128571429 | J39: OK | K39: OK | L39: OK
A40: Local: less than 2 months | B40: 7 | C40: 0.7 | D40: 6.326530612
A41: Local: more than 2 months | B41: 3 | C41: 0.3 | D41: 12.33333333
A43: Other developments - Major | B43: 0 | D43: -
A45: Other developments - Local | B45: 42 | D45: 6.278911565 | J45: OK | K45: OK | L45: OK
A46: Local: less than 2 months | B46: 37 | C46: 0.880952381 | D46: 5.83011583
A47: Local: more than 2 months | B47: 5 | C47: 0.119047619 | D47: 9.6
A49: EIA Developments | B49: 0 | D49: -
A50: Other Consents | B50: 44 | D50: 4.525974026
A52: Decision Making: Applications subject to
A53: Planning/Legal Agreements | B53: 0 | D53: -
A54: Local Reviews | B54: 6 | D54: 21.66666667 | J54: Check local review totals
J55: OK
A56: Decision Making: Local Reviews and Appeals
B58: Total number of decisions | C58: Original decision upheld (%)
A59: Local Reviews | B59: 6 | C59: 0.5
A60: Appeals to Scottish Ministers2 | B60: 3 | C60: 0.333
A62: Enforcement Activity
B64: Number
A65: Cases Taken Up | B65: 50
A66: Notices Served | B66: 3
A67: Reports to Procurator Fiscal | B67: 0
A68: Prosecutions | B68: 0
A69: Number of breaches resolved | B69: 46
A70: Approved and Delegated
A72: Percentage Approved | B72: 0.9306930693 | I72: Approved | J72: 188 | K72: 202 | L72: Total Applications less N17
A73: Percentage Delegated | B73: 0.9592760181 | I73: Delegated | J73: 212 | K73: 221 | L73: Total Applications
K74: 184 | L74: applications received
A75: 1. For a full description of the categories in this analysis please see NOTES page.
A76: 2. Cases where the decision was recalled and made by Ministers are not included in these figures.
A77: 3. Time has not been removed from the decision time for any applications.

Sheet South Lanarkshire
A1: Planning Authority Performance Statistics1,3 | D1: South Lanarkshire | I1: For Scottish Government Use during analysis Please do not delete or move these columns
D2: 2018/19 Q3 | J2: Check total number of applications
D3: All Applications excluding Legacy Cases | J3: 352 | K3: total apps | M3: OK
A5: Processing Agreements | B5: Total Number of Decisions | C5: % Within Agreed Timescales
A6: TOTAL | B6: 2 | C6: 0
A7: Major Applications | B7: 1 | C7: 0
A8: Local Applications | B8: 1 | C8: 0
A9: EIA Applications | B9: 0 | C9: -
A10: Other Applications | B10: 0 | C10: -
A11: Applications with processing agreements are not included in the following figures.
B12: Total Number of Decisions | C12: Proportion of Decisions | D12: Average Time (Weeks) | J12: check sums to total
A13: All Major Developments | B13: 3 | D13: 49.57142857 | J13: OK | K13: OK | L13: OK
A14: Without Legal Agreement | B14: 1 | C14: 0.3333333333 | D14: 12
A15: With Legal Agreement | B15: 2 | C15: 0.6666666667 | D15: 68.35714286
J16: OK
A17: All Local Developments | B17: 305 | D17: 10.07540984 | J17: OK | K17: OK | L17: OK
A18: Without Legal Agreement | B18: 304 | C18: 0.9967213115 | D18: 10.09069549
A19: With Legal Agreement | B19: 1 | C19: 0.003278688525 | D19: 5.428571429
A20: Local: less than 2 months | B20: 191 | C20: 0.6262295082 | D20: 5.500373972 | J20: OK | K20: OK | L20: OK
A21: Local: more than 2 months | B21: 114 | C21: 0.3737704918 | D21: 17.7406015
A23: All Local developments (non-householder) | B23: 138 | D23: 13.55072464 | J23: OK | K23: OK | L23: OK
A24: Local: less than 2 months | B24: 55 | C24: 0.3985507246 | D24: 6.542857143
A25: Local: more than 2 months | B25: 83 | C25: 0.6014492754 | D25: 18.19449225
A27: Householder developments | B27: 167 | D27: 7.203592814 | J27: OK | K27: OK | L27: OK
A28: Local: less than 2 months | B28: 136 | C28: 0.8143712575 | D28: 5.078781513
A29: Local: more than 2 months | B29: 31 | C29: 0.1856287425 | D29: 16.52534562
A31: Housing Developments - Major | B31: 3 | D31: 49.57142857
A33: Housing Developments - Local | B33: 59 | D33: 14.50847458 | J33: OK | K33: OK | L33: OK
A34: Local: less than 2 months | B34: 23 | C34: 0.3898305085 | D34: 6.720496894
A35: Local: more than 2 months | B35: 36 | C35: 0.6101694915 | D35: 19.48412698
A37: Business & Industry - Major | B37: 0 | D37: -
A39: Business & Industry - Local | B39: 14 | D39: 10.66326531 | J39: OK | K39: OK | L39: OK
A40: Local: less than 2 months | B40: 7 | C40: 0.5 | D40: 6.224489796
A41: Local: more than 2 months | B41: 7 | C41: 0.5 | D41: 15.10204082
A43: Other developments - Major | B43: 0 | D43: -
A45: Other developments - Local | B45: 62 | D45: 13.26267281 | J45: OK | K45: OK | L45: OK
A46: Local: less than 2 months | B46: 24 | C46: 0.3870967742 | D46: 6.422619048
A47: Local: more than 2 months | B47: 38 | C47: 0.6129032258 | D47: 17.58270677
A49: EIA Developments | B49: 0 | D49: -
A50: Other Consents | B50: 42 | D50: 10.29591837
A52: Decision Making: Applications subject to
A53: Planning/Legal Agreements | B53: 3 | D53: 47.38095238
A54: Local Reviews | B54: 0 | D54: - | J54: Check local review totals
J55: OK
A56: Decision Making: Local Reviews and Appeals
B58: Total number of decisions | C58: Original decision upheld (%)
A59: Local Reviews | B59: 0 | C59: -
A60: Appeals to Scottish Ministers2 | B60: 2 | C60: 0.5
A62: Enforcement Activity
B64: Number
A65: Cases Taken Up | B65: 10
A66: Notices Served | B66: 2
A67: Reports to Procurator Fiscal | B67: 0
A68: Prosecutions | B68: 0
A69: Number of breaches resolved | B69: 9
A70: Approved and Delegated
A72: Percentage Approved | B72: 0.9824561404 | I72: Approved | J72: 336 | K72: 342 | L72: Total Applications less N17
A73: Percentage Delegated | B73: 0.9545454545 | I73: Delegated | J73: 336 | K73: 352 | L73: Total Applications
K74: 372 | L74: applications received
A75: 1. For a full description of the categories in this analysis please see NOTES page.
A76: 2. Cases where the decision was recalled and made by Ministers are not included in these figures.
A77: 3. Time has been removed from the decision time for 8 applications where delays were outwith the control of the local authority.

Sheet Stirling
A1: Planning Authority Performance Statistics1,3 | D1: Stirling | I1: For Scottish Government Use during analysis Please do not delete or move these columns
D2: 2018/19 Q3 | J2: Check total number of applications
D3: All Applications excluding Legacy Cases | J3: ='[1]Results Q3'!E253 -> 197 | K3: total apps | M3: =IF(ROUND(B6+B13+B17+B49+B50,6)=ROUND(J3,6),"OK","error") -> OK
A5: Processing Agreements | B5: Total Number of Decisions | C5: % Within Agreed Timescales
A6: TOTAL | B6: ='[1]Results Q3'!D20 -> 1 | C6: =IF(B6=0,"-",'[1]Results Q3'!E20) -> 1
A7: Major Applications | B7: ='[1]Results Q3'!D21 -> 1 | C7: =IF(B7=0,"-",'[1]Results Q3'!E21) -> 1
A8: Local Applications | B8: ='[1]Results Q3'!D22 -> 0 | C8: =IF(B8=0,"-",'[1]Results Q3'!E22) -> -
A9: EIA Applications | B9: ='[1]Results Q3'!D23 -> 0 | C9: =IF(B9=0,"-",'[1]Results Q3'!E23) -> -
A10: Other Applications | B10: ='[1]Results Q3'!D24 -> 0 | C10: =IF(B10=0,"-",'[1]Results Q3'!E24) -> -
A11: Applications with processing agreements are not included in the following figures.
B12: Total Number of Decisions | C12: Proportion of Decisions | D12: Average Time (Weeks) | J12: check sums to total
A13: All Major Developments | B13: ='[1]Results Q3'!D40 -> 0 | D13: =IF(B13=0,"-",'[1]Results Q3'!E40) -> - | J13: =IF(ROUND((B15+B14),6)=ROUND(B13,6), "OK","ERROR") -> OK | K13: =IF(C14+C15=1,"OK","error") ->  | L13: =IF(ROUND(C14*D14+C15*D15,6)=ROUND(D13,6),"OK","ERROR") -> 
A14: Without Legal Agreement | B14: ='[1]Results Q3'!D41 -> 0 | C14: =IF($B$13=0,"-",B14/$B$13) -> - | D14: =IF(B14=0,"-",'[1]Results Q3'!E41) -> -
A15: With Legal Agreement | B15: ='[1]Results Q3'!D42 -> 0 | C15: =IF($B$13=0,"-",B15/$B$13) -> - | D15: =IF(B15=0,"-",'[1]Results Q3'!E42) -> -
J16: =IF(ROUND(B23+B27,6)=ROUND(B17,6), "OK","ERROR") -> OK
A17: All Local Developments | B17: ='[1]Results Q3'!D64 -> 159 | D17: =IF(B17=0,"-",'[1]Results Q3'!E64) -> 12.09074573 | J17: =IF(ROUND(B19+B18,6)=ROUND(B17,6), "OK","ERROR") -> OK | K17: =IF(C18+C19=1,"OK","error") -> OK | L17: =IF(ROUND(C18*D18+C19*D19,6)=ROUND(D17,6),"OK","ERROR") -> OK
A18: Without Legal Agreement | B18: ='[1]Results Q3'!D65 -> 152 | C18: =IF($B$17=0,"-",B18/$B$17) -> 0.9559748428 | D18: =IF(B18=0,"-",'[1]Results Q3'!E65) -> 8.859962406
A19: With Legal Agreement | B19: ='[1]Results Q3'!D66 -> 7 | C19: =IF($B$17=0,"-",B19/$B$17) -> 0.04402515723 | D19: =IF(B19=0,"-",'[1]Results Q3'!E66) -> 82.24489796
A20: Local: less than 2 months | B20: ='[1]Results Q3'!D89 -> 109 | C20: =IF($B$17=0,"-",B20/$B$17) -> 0.6855345912 | D20: =IF(B20=0,"-",'[1]Results Q3'!E89) -> 5.668414155 | J20: =IF(ROUND(B21+B20,6)=ROUND(B17,6), "OK","ERROR") -> OK | K20: =IF(C20+C21=1,"OK","error") -> OK | L20: =IF(ROUND(C20*D20+C21*D21,6)=ROUND(D17,6),"OK","ERROR") -> OK
A21: Local: more than 2 months | B21: ='[1]Results Q3'!D90 -> 50 | C21: =IF($B$17=0,"-",B21/$B$17) -> 0.3144654088 | D21: =IF(B21=0,"-",'[1]Results Q3'!E90) -> 26.09142857
A23: All Local developments (non-householder) | B23: ='[1]Results Q3'!D114 -> 76 | D23: =IF(B23=0,"-",'[1]Results Q3'!E114) -> 18.82706767 | J23: =IF(ROUND(B25+B24,6)=ROUND(B23,6), "OK","ERROR") -> OK | K23: =IF(C24+C25=1,"OK","error") -> OK | L23: =IF(ROUND(C24*D24+C25*D25,6)=ROUND(D23,6),"OK","ERROR") -> OK
A24: Local: less than 2 months | B24: ='[1]Results Q3'!D115 -> 33 | C24: =IF($B$23=0,"-",B24/$B$23) -> 0.4342105263 | D24: =IF(B24=0,"-",'[1]Results Q3'!E115) -> 6.632034632
A25: Local: more than 2 months | B25: ='[1]Results Q3'!D116 -> 43 | C25: =IF($B$23=0,"-",B25/$B$23) -> 0.5657894737 | D25: =IF(B25=0,"-",'[1]Results Q3'!E116) -> 28.18604651
A27: Householder developments | B27: ='[1]Results Q3'!D136 -> 83 | D27: =IF(B27=0,"-",'[1]Results Q3'!E136) -> 5.922547332 | J27: =IF(ROUND(B29+B28,6)=ROUND(B27,6), "OK","ERROR") -> OK | K27: =IF(C28+C29=1,"OK","error") -> OK | L27: =IF(ROUND(C28*D28+C29*D29,6)=ROUND(D27,6),"OK","ERROR") -> OK
A28: Local: less than 2 months | B28: ='[1]Results Q3'!D137 -> 76 | C28: =IF($B$27=0,"-",B28/$B$27) -> 0.9156626506 | D28: =IF(B28=0,"-",'[1]Results Q3'!E137) -> 5.25
A29: Local: more than 2 months | B29: ='[1]Results Q3'!D138 -> 7 | C29: =IF($B$27=0,"-",B29/$B$27) -> 0.0843373494 | D29: =IF(B29=0,"-",'[1]Results Q3'!E138) -> 13.2244898
A31: Housing Developments - Major | B31: ='[1]Results Q3'!D160 -> 0 | D31: =IF(B31=0,"-",'[1]Results Q3'!E160) -> -
A33: Housing Developments - Local | B33: ='[1]Results Q3'!D140 -> 31 | D33: =IF(B33=0,"-",'[1]Results Q3'!E140) -> 31.06912442 | J33: =IF(ROUND(B35+B34,6)=ROUND(B33,6), "OK","ERROR") -> OK | K33: =IF(C34+C35=1,"OK","error") -> OK | L33: =IF(ROUND(C34*D34+C35*D35,6)=ROUND(D33,6),"OK","ERROR") -> OK
A34: Local: less than 2 months | B34: ='[1]Results Q3'!D141 -> 9 | C34: =IF($B$33=0,"-",B34/$B$33) -> 0.2903225806 | D34: =IF(B34=0,"-",'[1]Results Q3'!E141) -> 6.952380952
A35: Local: more than 2 months | B35: ='[1]Results Q3'!D142 -> 22 | C35: =IF($B$33=0,"-",B35/$B$33) -> 0.7096774194 | D35: =IF(B35=0,"-",'[1]Results Q3'!E142) -> 40.93506494
A37: Business & Industry - Major | B37: ='[1]Results Q3'!D161 -> 0 | D37: =IF(B37=0,"-",'[1]Results Q3'!E161) -> -
A39: Business & Industry - Local | B39: ='[1]Results Q3'!D144 -> 7 | D39: =IF(B39=0,"-",'[1]Results Q3'!E144) -> 13.44897959 | J39: =IF(ROUND(B41+B40,6)=ROUND(B39,6), "OK","ERROR") -> OK | K39: =IF(C40+C41=1,"OK","error") -> OK | L39: =IF(ROUND(C40*D40+C41*D41,6)=ROUND(D39,6),"OK","ERROR") -> OK
A40: Local: less than 2 months | B40: ='[1]Results Q3'!D145 -> 1 | C40: =IF($B$39=0,"-",B40/$B$39) -> 0.1428571429 | D40: =IF(B40=0,"-",'[1]Results Q3'!E145) -> 7
A41: Local: more than 2 months | B41: ='[1]Results Q3'!D146 -> 6 | C41: =IF($B$39=0,"-",B41/$B$39) -> 0.8571428571 | D41: =IF(B41=0,"-",'[1]Results Q3'!E146) -> 14.52380952
A43: Other developments - Major | B43: ='[1]Results Q3'!D162 -> 0 | D43: =IF(B43=0,"-",'[1]Results Q3'!E162) -> -
A45: Other developments - Local | B45: ='[1]Results Q3'!D148 -> 35 | D45: =IF(B45=0,"-",'[1]Results Q3'!E148) -> 10.10204082 | J45: =IF(ROUND(B47+B46,6)=ROUND(B45,6), "OK","ERROR") -> OK | K45: =IF(C46+C47=1,"OK","error") -> OK | L45: =IF(ROUND(C46*D46+C47*D47,6)=ROUND(D45,6),"OK","ERROR") -> OK
A46: Local: less than 2 months | B46: ='[1]Results Q3'!D149 -> 20 | C46: =IF($B$45=0,"-",B46/$B$45) -> 0.5714285714 | D46: =IF(B46=0,"-",'[1]Results Q3'!E149) -> 6.464285714
A47: Local: more than 2 months | B47: ='[1]Results Q3'!D150 -> 15 | C47: =IF($B$45=0,"-",B47/$B$45) -> 0.4285714286 | D47: =IF(B47=0,"-",'[1]Results Q3'!E150) -> 14.95238095
A49: EIA Developments | B49: ='[1]Results Q3'!D175 -> 0 | D49: =IF(B49=0,"-",'[1]Results Q3'!E175) -> -
A50: Other Consents | B50: ='[1]Results Q3'!D187 -> 37 | D50: =IF(B50=0,"-",'[1]Results Q3'!E187) -> 9.096525097
A52: Decision Making: Applications subject to
A53: Planning/Legal Agreements | B53: ='[1]Results Q3'!D205 -> 7 | D53: =IF(B53=0,"-",'[1]Results Q3'!E205) -> 82.24489796
A54: Local Reviews | B54: ='[1]Template 2-LRB'!B5 -> 3 | D54: =IF(B54=0,"-",'[1]Template 2-LRB'!F5) -> 17.33333333 | J54: Check local review totals
J55: =IF(ROUND(B59,6)=ROUND(B54,6),"OK","error") -> OK
A56: Decision Making: Local Reviews and Appeals
B58: Total number of decisions | C58: Original decision upheld (%)
A59: Local Reviews | B59: =B54 -> 3 | C59: ='[1]Template 2-LRB'!E5 -> 0
A60: Appeals to Scottish Ministers2 | B60: 2 | C60: 0
A62: Enforcement Activity
B64: Number
A65: Cases Taken Up | B65: ='[1]Templates 3 & 4'!B5 -> 9
A66: Notices Served | B66: ='[1]Templates 3 & 4'!B6 -> 1
A67: Reports to Procurator Fiscal | B67: ='[1]Templates 3 & 4'!B7 -> 0
A68: Prosecutions | B68: ='[1]Templates 3 & 4'!B8 -> 0
A69: Number of breaches resolved | B69: ='[1]Templates 3 & 4'!B9 -> 39
A70: Approved and Delegated
A72: Percentage Approved | B72: ='[1]Results Q3'!E230 -> 0.9365079365 | I72: Approved | J72: ='[1]Results Q3'!E228 -> 177 | K72: ='[1]Results Q3'!E229 -> 189 | L72: Total Applications less N17
A73: Percentage Delegated | B73: ='[1]Results Q3'!E254 -> 0.9644670051 | I73: Delegated | J73: ='[1]Results Q3'!E252 -> 190 | K73: ='[1]Results Q3'!E253 -> 197 | L73: Total Applications
K74: ='[1]Templates 3 & 4'!C25 -> 203 | L74: applications received
A75: 1. For a full description of the categories in this analysis please see NOTES page.
A76: 2. Cases where the decision was recalled and made by Ministers are not included in these figures.
A77: 3. Time has been removed from the decision time for 1 application where delays were outwith the control of the local authority.

Sheet West Dunbartonshire
A1: Planning Authority Performance Statistics1,3 | D1: West Dunbartonshire | I1: For Scottish Government Use during analysis Please do not delete or move these columns
D2: 2018/19 Q3 | J2: Check total number of applications
D3: All Applications excluding Legacy Cases | J3: 58 | K3: total apps | M3: OK
A5: Processing Agreements | B5: Total Number of Decisions | C5: % Within Agreed Timescales
A6: TOTAL | B6: 0 | C6: -
A7: Major Applications | B7: 0 | C7: -
A8: Local Applications | B8: 0 | C8: -
A9: EIA Applications | B9: 0 | C9: -
A10: Other Applications | B10: 0 | C10: -
A11: Applications with processing agreements are not included in the following figures.
B12: Total Number of Decisions | C12: Proportion of Decisions | D12: Average Time (Weeks) | J12: check sums to total
A13: All Major Developments | B13: 3 | D13: 28.33333333 | J13: OK | K13: OK
A14: Without Legal Agreement | B14: 3 | C14: 1 | D14: 28.33333333
A15: With Legal Agreement | B15: 0 | C15: 0 | D15: -
J16: OK
A17: All Local Developments | B17: 43 | D17: 11.27242525 | J17: OK | K17: OK
A18: Without Legal Agreement | B18: 43 | C18: 1 | D18: 11.27242525
A19: With Legal Agreement | B19: 0 | C19: 0 | D19: -
A20: Local: less than 2 months | B20: 18 | C20: 0.4186046512 | D20: 7.166666667 | J20: OK | K20: OK | L20: OK
A21: Local: more than 2 months | B21: 25 | C21: 0.5813953488 | D21: 14.22857143
A23: All Local developments (non-householder) | B23: 14 | D23: 14.74489796 | J23: OK | K23: OK | L23: OK
A24: Local: less than 2 months | B24: 5 | C24: 0.3571428571 | D24: 6.8
A25: Local: more than 2 months | B25: 9 | C25: 0.6428571429 | D25: 19.15873016
A27: Householder developments | B27: 29 | D27: 9.596059113 | J27: OK | K27: OK | L27: OK
A28: Local: less than 2 months | B28: 13 | C28: 0.4482758621 | D28: 7.307692308
A29: Local: more than 2 months | B29: 16 | C29: 0.5517241379 | D29: 11.45535714
A31: Housing Developments - Major | B31: 2 | D31: 22.57142857
A33: Housing Developments - Local | B33: 1 | D33: 17.71428571 | J33: OK | K33: OK
A34: Local: less than 2 months | B34: 0 | C34: 0 | D34: -
A35: Local: more than 2 months | B35: 1 | C35: 1 | D35: 17.71428571
A37: Business & Industry - Major | B37: 0 | D37: -
A39: Business & Industry - Local | B39: 5 | D39: 8.028571429 | J39: OK | K39: OK | L39: OK
A40: Local: less than 2 months | B40: 4 | C40: 0.8 | D40: 7.464285714
A41: Local: more than 2 months | B41: 1 | C41: 0.2 | D41: 10.28571429
A43: Other developments - Major | B43: 1 | D43: 39.85714286
A45: Other developments - Local | B45: 8 | D45: 18.57142857 | J45: OK | K45: OK | L45: OK
A46: Local: less than 2 months | B46: 1 | C46: 0.125 | D46: 4.142857143
A47: Local: more than 2 months | B47: 7 | C47: 0.875 | D47: 20.63265306
A49: EIA Developments | B49: 0 | D49: -
A50: Other Consents | B50: 12 | D50: 11.73809524
A52: Decision Making: Applications subject to
A53: Planning/Legal Agreements | B53: 0 | D53: -
A54: Local Reviews | B54: 0 | D54: - | J54: Check local review totals
J55: OK
A56: Decision Making: Local Reviews and Appeals
B58: Total number of decisions | C58: Original decision upheld (%)
A59: Local Reviews | B59: 0 | C59: -
A60: Appeals to Scottish Ministers2 | B60: 0 | C60: -
A62: Enforcement Activity
B64: Number
A65: Cases Taken Up | B65: 13
A66: Notices Served | B66: 1
A67: Reports to Procurator Fiscal | B67: 0
A68: Prosecutions | B68: 0
A69: Number of breaches resolved | B69: 6
A70: Approved and Delegated
A72: Percentage Approved | B72: 0.9423076923 | I72: Approved | J72: 49 | K72: 52 | L72: Total Applications less N17
A73: Percentage Delegated | B73: 0.8620689655 | I73: Delegated | J73: 50 | K73: 58 | L73: Total Applications
K74: 53 | L74: applications received
A75: 1. For a full description of the categories in this analysis please see NOTES page.
A76: 2. Cases where the decision was recalled and made by Ministers are not included in these figures.
A77: 3. Time has been removed from the decision time for 17 applications where delays were outwith the control of the local authority.

Sheet West Lothian
A1: Planning Authority Performance Statistics1,3 | D1: West Lothian | I1: For Scottish Government Use during analysis Please do not delete or move these columns
D2: 2018/19 Q3 | J2: Check total number of applications
D3: All Applications excluding Legacy Cases | J3: 199 | K3: total apps | M3: OK
A5: Processing Agreements | B5: Total Number of Decisions | C5: % Within Agreed Timescales
A6: TOTAL | B6: 3 | C6: 1
A7: Major Applications | B7: 0 | C7: -
A8: Local Applications | B8: 3 | C8: 1
A9: EIA Applications | B9: 0 | C9: -
A10: Other Applications | B10: 0 | C10: -
A11: Applications with processing agreements are not included in the following figures.
B12: Total Number of Decisions | C12: Proportion of Decisions | D12: Average Time (Weeks) | J12: check sums to total
A13: All Major Developments | B13: 2 | D13: 24.14285714 | J13: OK | K13: OK
A14: Without Legal Agreement | B14: 2 | C14: 1 | D14: 24.14285714
A15: With Legal Agreement | B15: 0 | C15: 0 | D15: -
J16: OK
A17: All Local Developments | B17: 147 | D17: 10.43731778 | J17: OK | K17: OK | L17: OK
A18: Without Legal Agreement | B18: 137 | C18: 0.9319727891 | D18: 8.286757039
A19: With Legal Agreement | B19: 10 | C19: 0.06802721088 | D19: 39.9
A20: Local: less than 2 months | B20: 114 | C20: 0.7755102041 | D20: 6.006265664 | J20: OK | K20: OK | L20: OK
A21: Local: more than 2 months | B21: 33 | C21: 0.2244897959 | D21: 25.74458874
A23: All Local developments (non-householder) | B23: 79 | D23: 14.61301989 | J23: OK | K23: OK | L23: OK
A24: Local: less than 2 months | B24: 51 | C24: 0.6455696203 | D24: 6.907563025
A25: Local: more than 2 months | B25: 28 | C25: 0.3544303797 | D25: 28.64795918
A27: Householder developments | B27: 68 | D27: 5.586134454 | J27: OK | K27: OK | L27: OK
A28: Local: less than 2 months | B28: 63 | C28: 0.9264705882 | D28: 5.276643991
A29: Local: more than 2 months | B29: 5 | C29: 0.07352941176 | D29: 9.485714286
A31: Housing Developments - Major | B31: 1 | D31: 19.28571429
A33: Housing Developments - Local | B33: 19 | D33: 24.4887218 | J33: OK | K33: OK | L33: OK
A34: Local: less than 2 months | B34: 9 | C34: 0.4736842105 | D34: 7.317460317
A35: Local: more than 2 months | B35: 10 | C35: 0.5263157895 | D35: 39.94285714
A37: Business & Industry - Major | B37: 1 | D37: 29
A39: Business & Industry - Local | B39: 12 | D39: 14.98809524 | J39: OK | K39: OK | L39: OK
A40: Local: less than 2 months | B40: 8 | C40: 0.6666666667 | D40: 6.964285714
A41: Local: more than 2 months | B41: 4 | C41: 0.3333333333 | D41: 31.03571429
A43: Other developments - Major | B43: 0 | D43: -
A45: Other developments - Local | B45: 43 | D45: 10.3255814 | J45: OK | K45: OK | L45: OK
A46: Local: less than 2 months | B46: 31 | C46: 0.7209302326 | D46: 6.801843318
A47: Local: more than 2 months | B47: 12 | C47: 0.2790697674 | D47: 19.42857143
A49: EIA Developments | B49: 0 | D49: -
A50: Other Consents | B50: 47 | D50: 7.656534954
A52: Decision Making: Applications subject to
A53: Planning/Legal Agreements | B53: 10 | D53: 39.9
A54: Local Reviews | B54: 2 | D54: 5.571428571 | J54: Check local review totals
J55: OK
A56: Decision Making: Local Reviews and Appeals
B58: Total number of decisions | C58: Original decision upheld (%)
A59: Local Reviews | B59: 2 | C59: 1
A60: Appeals to Scottish Ministers2 | B60: 9 | C60: 0.556
A62: Enforcement Activity
B64: Number
A65: Cases Taken Up | B65: 89
A66: Notices Served | B66: 9
A67: Reports to Procurator Fiscal | B67: 0
A68: Prosecutions | B68: 0
A69: Number of breaches resolved | B69: 91
A70: Approved and Delegated
A72: Percentage Approved | B72: 0.8611111111 | I72: Approved | J72: 155 | K72: 180 | L72: Total Applications less N17
A73: Percentage Delegated | B73: 0.9547738693 | I73: Delegated | J73: 190 | K73: 199 | L73: Total Applications
K74: 214 | L74: applications received
A75: 1. For a full description of the categories in this analysis please see NOTES page.
A76: 2. Cases where the decision was recalled and made by Ministers are not included in these figures.
A77: 3. Time has been removed from the decision time for 13 applications where delays were outwith the control of the local authority.
